Workbook

Sheet Instructions
A1: Select language | E1: English
A2: Sélectionnez la langue
A3: Seleccione el idioma
A14: Links:
A61: Links:
A106: Enlaces:

Sheet Indicator Registry
A1: Indicator Registry - highlighting those used for HNO and HRP response planning
A2: Global Clusters | B2: HNO and HRP | C2: Code | D2: Sub-domain | E2: Title | F2: Description | G2: Unit of Measurement | H2: Unit Description | I2: Denominator | J2: Numerator | K2: Disaggregation | L2: Key indicator | M2: Types | N2: Response Monitoring | O2: Standards | P2: Threshold | Q2: Guidance on phases | R2: General guidance | S2: Guidance for pre-crisis/baseline | T2: Comments | U2: Data Sources | V2: Sector cross-tagging
A3: Nutrition | B3: Core - Outcome | C3: N-001 | D3: N1 Prevention and Management of Acute Malnutrition | E3: Global acute malnutrition (GAM) | F3: prevalence (%) of global acute malnutrition in children 6 to 59 months of age based on presence of bilateral pitting oedema and / or weight-for-height z-score less than -2 standard deviations of the median of the standard population (WHO 2006) | G3: Individual | H3: Percentage | I3: Total number of children aged 6-59 months surveyed | J3: Number of children aged 6-59 months that meet the criteria for global acute malnutrition | K3: Geographical area, age, sex | L3: Yes | M3: Baseline, Outcome | N3: Yes | P3: WHO TRS 854. Severity classification: 5,10, 15% | Q3: preparatory; Phase III and IV | R3: Should be based on a methodologically solid anthropometric nutrition survey finding and include Confidence Intervals | T3: Note that WFH and MUAC do not measure the same things and are not comparable. Data on the global malnutrition rate should be compared by sex in order to identify any specific discrimination girls or boys might face in accessing nutrition. In case there is an important difference between the percentage of girls and the percentage of boys suffering from malnutrition, the programme should address these gaps by undertaking a gender analysis of the specific challenges the disadvantaged group is facing in equally accessing nutrition, including an analysis of the socio cultural habits and beliefs that might differently impact on girls' and boys' nutritional well being. | U3: Population-based surveys with representative sampling methods (MICS, DHS, SMART) | V3: F1 Food Assistance, H2 Child health, H4.2 Maternal and newborn care, W1 Hygiene Promotion, W2 Water Supply, W3 Excreta Disposal
A4: Nutrition | B4: Core - Outcome | C4: N-005 | D4: N1 Prevention and Management of Acute Malnutrition | E4: Moderate acute malnutrition (MAM) | F4: prevalence (%) of moderate acute malnutrition in children 6 to 59 months of age based on presence of weight-for-height z-score less than -2 and equal or greater than -3 standard deviations of the median of the standard population (WHO 2006) | G4: Individual | H4: Percentage | I4: Total number of children aged 6-59 months surveyed | J4: Number of children aged 6-59 months that meet the criteria for moderate acute malnutrition | K4: Geographical area, age, sex | L4: Yes | M4: Baseline, Outcome | N4: Yes | P4: No standard WHO thresholds; this indicator cut-off should be interpreted in consideration of other indicators including morbidity, mortality and proportion of GAM | Q4: preparatory; Phase III and IV | R4: Should be based on a methodologically solid anthropometric nutrition survey finding and include Confidence Intervals | S4: Prevalence easy to derive by subtracting SAM from GAM | T4: Note that WFH and MUAC do not measure the same things and are not comparable. Data on the moderate acute malnutrition prevalence should be compared by sex in order to identify any specific discrimination girls or boys might face in accessing nutrition. In case there is an important difference between the percentage of girls and the percentage of boys suffering from malnutrition, the programme should address these gaps by undertaking a gender analysis of the specific challenges the disadvantaged group is facing in equally accessing nutrition, including an analysis of the socio cultural habits and beliefs that might differently impact on girls' and boys' nutritional well being. | U4: Population-based surveys with representative sampling methods (MICS, DHS, SMART) | V4: F1 Food Assistance, H2 Child health, H4.2 Maternal and newborn care, W1 Hygiene Promotion, W2 Water Supply, W3 Excreta Disposal
A5: Nutrition | B5: Core - Outcome | C5: N-003 | D5: N1 Prevention and Management of Acute Malnutrition | E5: Severe acute malnutrition (SAM) | F5: prevalence (%) of severe acute malnutrition in children 6 to 59 months of age based on presence of bilateral pitting oedema and / or weight-for-height z-score less than -3 standard deviations of the median of the standard population (WHO 2006) | G5: Individual | H5: Percentage | I5: Total number of children aged 6-59 months surveyed | J5: Number of children aged 6-59 months that meet the criteria for severe acute malnutrition | K5: Geographical area, age, sex | L5: Yes | M5: Baseline, Outcome | N5: Yes | P5: No standard WHO thresholds; this indicator cut-off should be interpreted in consideration of other indicators including morbidity, mortality and proportion of GAM; Reference: WHO child growth standards and the identification of severe acute malnutrition in infants and children. A Joint Statement by the World Health Organization and the United Nations Children's Fund, 2009. | Q5: preparatory; Phase III and IV | R5: Should be based on a methodologically solid anthropometric nutrition survey finding and include Confidence Intervals | T5: Note that WFH and MUAC do not measure the same things and are not comparable. Data on the severe acute malnutrition prevalence should be compared by sex in order to identify any specific discrimination girls or boys might face in accessing nutrition. In case there is an important difference between the percentage of girls and the percentage of boys suffering from malnutrition, the programme should address these gaps by undertaking a gender analysis of the specific challenges the disadvantaged group is facing in equally accessing nutrition, including an analysis of the socio cultural habits and beliefs that might differently impact on girls' and boys' nutritional well being. | U5: Population-based surveys with representative sampling methods (MICS, DHS, SMART) | V5: F1 Food Assistance, H1 General clinical services & essential trauma care, H2 Child health, H4.2 Maternal and newborn care, W1 Hygiene Promotion, W2 Water Supply, W3 Excreta Disposal
A6: Nutrition | B6: Core - Outcome | C6: N-008 | D6: N1 Prevention and Management of Acute Malnutrition | E6: Acute malnutrition based on MUAC and oedema | F6: prevalence (%) of children 6-59 months with MUAC less than 125 mm and/or having bilateral pitting oedema | G6: Individual | H6: Percentage | I6: Total number of children aged 6-59 months surveyed | J6: Number of children aged 6-59 months that meet the criteria for wasting based on MUAC | K6: Geographical area, age, sex | L6: Yes | M6: Baseline, Outcome | N6: Yes | P6: WHO child growth standards and the identification of severe acute malnutrition in infants and children. A Joint Statement by the World Health Organization and the United Nations Children's Fund, 2009. | Q6: Phase I,II; added to surveys Phase III,IV | R6: When possible to use representative surveys, alternatively - rapid nutrition assessment with smaller number of children can give an idea of the situation - but these findings from a rapid nutrition assessment - with small numbers of children need to be treated with caution and should NOT be presented as prevalence but as number of children | T6: It is a good practice to disaggregate oedema cases, however there is a concern of accuracy and precision | U6: Population surveys with representative sampling methods (MICS, DHS, SMART) & rapid nutrition assessment | V6: F1 Food Assistance, F3 Food Access, F5 Market Access, F7 Utilization, H2 Child health, H4.2 Maternal and newborn care, W1 Hygiene Promotion, W2 Water Supply, W3 Excreta Disposal, W4 Vector Control
A7: Nutrition | B7: Core - Outcome | C7: N-010 | D7: N1 Prevention and Management of Acute Malnutrition | E7: Moderate acute malnutrition based on MUAC | F7: prevalence (%) children 6-59 months with MUAC less than 125 mm but equal or more than 115 mm | G7: Individual | H7: Percentage | I7: Total number of children aged 6-59 months surveyed | J7: Number of children aged 6-59 months that meet the criteria for moderate wasting based on MUAC | K7: Geographical area, age, sex | L7: Yes | M7: Baseline, Outcome | N7: Yes | Q7: Phase I,II; added to surveys Phase III,IV | R7: When possible to use representative survey, alternatively - rapid nutrition assessment with smaller number of children can give you a idea of the situation - but these findings from a rapid nutrition assessment - with small numbers of children need to be treated with caution and should NOT be presented as prevalence but as number of children | S7: Prevalence easy to derive by subtracting Proportion of severe wasting based on low MUAC from Proportion of wasting based on low MUAC | U7: Population-based surveys with representative sampling methods (MICS, DHS, SMART) | V7: F1 Food Assistance, F3 Food Access, F5 Market Access, F7 Utilization, H2 Child health, H4.2 Maternal and newborn care, W1 Hygiene Promotion, W2 Water Supply, W3 Excreta Disposal, W4 Vector Control
A8: Nutrition | B8: Core - Outcome | C8: N-009 | D8: N1 Prevention and Management of Acute Malnutrition | E8: Severe acute malnutrition based on MUAC and oedema | F8: prevalence (%) children 6-59 months with MUAC less than 115 mm and/or having bilateral pitting oedema | G8: Individual | H8: Percentage | I8: Total number of children aged 6-59 months surveyed | J8: Number of children aged 6-59 months that meet the criteria for severe wasting based on MUAC | K8: Geographical area, age, sex | L8: Yes | M8: Baseline, Outcome | N8: Yes | P8: WHO child growth standards and the identification of severe acute malnutrition in infants and children. A Joint Statement by the World Health Organization and the United Nations Children's Fund, 2009. | Q8: Phase I,II; added to surveys Phase III,IV | R8: When possible to use representative surveys, alternatively - rapid nutrition assessment with smaller number of children can give an idea of the situation - but these findings from a rapid nutrition assessment - with small numbers of children need to be treated with caution and should NOT be presented as prevalence but as number of children | T8: It is a good practice to disaggregate oedema cases, however there is a concern of accuracy and precision. | U8: Population surveys with representative sampling methods (MICS, DHS, SMART) & rapid nutrition assessment | V8: F1 Food Assistance, F3 Food Access, F5 Market Access, F7 Utilization, H1 General clinical services & essential trauma care, H2 Child health, H4.2 Maternal and newborn care, W1 Hygiene Promotion, W2 Water Supply, W3 Excreta Disposal, W4 Vector Control
A9: Nutrition | B9: Core - Outcome | C9: N-011 | D9: N1 Prevention and Management of Acute Malnutrition | E9: Acute malnutrition in Pregnant and Lactating Women | F9: prevalence (%) PLW with MUAC less than 210-230 mm (Note: Countries use a range of different cut-offs depending on resources) | G9: Individual | H9: Percentage | I9: Total number of Pregnant and Lactating Women with infants below age of 0 to 5 months surveyed | J9: Number of Pregnant and Lactating Women with infants 0-5 months that meet the criteria for acute malnutrition based on MUAC | K9: Geographical area | L9: Yes | M9: Baseline, Outcome | N9: Yes | Q9: All phases | R9: There are NO agreed international Cut off points for MUAC for PLW so National MUAC cut off points may vary, If available/possible, use representative survey, if not - rapid nutrition assessment with smaller number of PLW can give you some idea of the situation | T9: PLW may be a problematic to define and identify, SMART surveys provide data for women with children, so definition of lactating should be mothers with infants 0-5 months; caution on excluding women in first pregnancy | U9: Population-based surveys with representative sampling methods (MICS, DHS, SMART) or rapid nutrition assessment | V9: F1 Food Assistance, F3 Food Access, F4 Income Access, F5 Market Access, F6 Availability, F7 Utilization, H1 General clinical services & essential trauma care, H2 Child health, H4.2 Maternal and newborn care, W1 Hygiene Promotion, W2 Water Supply, W4 Vector Control
A10: Nutrition | B10: Core - Outcome/Key Contributing Factor | C10: N-007 | D10: N1 Prevention and Management of Acute Malnutrition | E10: Childhood stunting | F10: prevalence (%) of stunting in children 0 to 59 months of age based on height-for-age z-score less than -2 standard deviations of the median of the standard population (WHO 2006) | G10: Individual | H10: Percentage | I10: Total number of children 0 to 59 months of age surveyed | J10: Number of children 0 to 59 months of age that meet the criteria for stunting | K10: Geographical area, age, sex | L10: Yes | M10: Baseline, Outcome | N10: Yes | P10: WHO TRS 854. Severity classification: 20,30,40 % | Q10: preparatory; Phase III and IV | R10: Should be based on a methodologically solid anthropometric nutrition survey finding and include Confidence Intervals | S10: Aim should be to assess stunting in the entire age group 0-59 months | T10: Disaggregation by sex and age group should be aimed for and results should be analysed. Note: if surveys being undertaken include 0-59 then use this age group - if not - and the survey is including 6-59 then we may use 6-59. Ideally the Proportion of should be adjusted for 0-59 months) | U10: Population-based surveys with representative sampling methods (MICS, DHS, SMART) | V10: F1 Food Assistance, F2 Livelihood Assistance, F3 Food Access, F4 Income Access, H2 Child health, H4.2 Maternal and newborn care, W1 Hygiene Promotion, W2 Water Supply, W3 Excreta Disposal, W4 Vector Control
A11: Nutrition | B11: Core - Key Contributing Factor | C11: N-030 | D11: N2 Infant and Young Child Feeding | E11: Exclusive breastfeeding under 6 months | F11: Proportion of infants 0-5 months of age who are fed exclusively with breast milk | G11: Individual | H11: Percentage | I11: Total number of infants 0 to 5 months of age surveyed | J11: Infants 0 to 5 months of age who received only breast milk during the previous day | K11: Geographical area, sex, age: 0-1, 2-3, 4-5 months if available | L11: Yes | M11: Baseline, Outcome | N11: Yes | O11: Food Security and Nutrition 4.2.1 | P11: No standard; < 80Proportion of is generally a priority. Discuss high, medium and low designations as a group | Q11: For Phases III and IV, core WHO indicator should be measured. In Phases 1 and 11, it is not possible to accurately assess the exclusive breastfeeding rate in the population. Baseline information and N-40 (not breastfed) will be key information in Phases I and II. | R11: WHO IYCF core indicator. | S11: For preparatory phase, core WHO indicator should be measured | T11: Attention should be paid on the potential difference in breastfeeding male and female infants. If difference exists, this should inform the nutritional education messages. | U11: Preparatory, Phase III and IV: representative IYCF survey. Phase I and II: use key informant interviews and opportunistic sampling to give an ALERT indication | V11: H2 Child health, H4.2 Maternal and newborn care, (R) Early Recovery
A12: Nutrition | B12: Core - Key Contributing Factor | C12: N-040 | D12: N2 Infant and Young Child Feeding | E12: Distribution of infant formula, dried or liquid milk to the affected population | F12: Confirmed distribution of infant formula, dried or liquid milk to the affected population | G12: Individual | H12: Yes/No | I12: N/A | J12: N/A | K12: Geographical area | L12: Yes | M12: Baseline, Outcome | N12: Yes | O12: Food Security and Nutrition 4.2.1 | P12: zero tolerance | Q12: Phases 1,11, 111 and IV. | R12: This is an alert to problems. Any general distribution of these products to the affected population is a concern as there is a risk of spill over to infants and young children. | U12: Key informant interviews (include logistics and any agencies involved in distribution, as well as health and nutrition staff and caregivers). Distribution reports. Observations. | V12: H2 Child health, H4.2 Maternal and newborn care
A13: Nutrition | B13: Core - Key Contributing Factor | C13: N-041 | D13: N2 Infant and Young Child Feeding | E13: Inappropriate distribution of infant formula, dried or liquid milk to children 0-<2 years | F13: Confirmed distribution of infant formula, dried or liquid milk to children 0-< 2 years | G13: Community | H13: Yes/No | I13: N/A | J13: N/A | K13: Geographical area | L13: Yes | M13: Baseline, Outcome | N13: Yes | O13: Food Security and Nutrition 4.2.1 | P13: zero tolerance | Q13: Phases 1,11, 111 and IV. | R13: This is an alert to problems. Inappropriate distribution is where distribution is not in accordance with the Operational Guidance on IFE in meeting criteria for assessment of need, skilled support available, guaranteed continuity of supplies, individual follow up, availability of storage and preparation facilities, appropriate labelling, and monitoring for spill over to breastfed infants. | U13: Key informant interviews (include logistics and any agencies involved in distribution, as well as health and nutrition staff and caregivers). Distribution reports. Observations. | V13: H2 Child health, H4.2 Maternal and newborn care
A14: Nutrition | B14: Core - Key Contributing Factor | C14: N-035 | D14: N2 Infant and Young Child Feeding | E14: Minimum dietary diversity | F14: Proportion of children 6-23 months of age who receive foods from 4 or more food groups | G14: Individual | H14: Percentage | I14: Total number of children 6-23 months surveyed | J14: Number of children 6-23 months who receive food from 4 or more food groups | K14: Geographical area, sex | L14: No | M14: Baseline, Outcome | N14: Yes | O14: Food Security and Nutrition 4.2.2 | P14: No standard; < 80Proportion of is generally a priority. Discuss high, medium and low designations as a group | Q14: preparatory; Phase III and IV | R14: This indicator is adapted from the WHO IYCF core indicator for children 6-23 months. | T14: Data should be compared by sex in order to identify any specific limitation girls or boys might face in accessing dietary diversity. In case there is an important difference, the programme should address these gaps by undertaking a gender analysis of the specific challenges the disadvantaged group is facing, including an analysis of the socio cultural habits and beliefs (i.e. food taboos) that might differently impact on girls' and boys' dietary diversity. | U14: representative IYCF survey | V14: F3 Food Access, F4 Income Access, F5 Market Access, F6 Availability, F7 Utilization, H2 Child health
A15: Nutrition | B15: Core - Key Contributing Factor | C15: N-037 | D15: N2 Infant and Young Child Feeding | E15: Minimum acceptable diet | F15: Proportion of children 6-23 months of age who receive a minimum acceptable diet (apart from breast milk) | G15: Individual | H15: Percentage | I15: Total number of children 6-23 months surveyed | J15: Number of children 6-23 months who receive a minimum acceptable diet | K15: Geographical area, sex | L15: Yes | M15: Baseline, Outcome | N15: Yes | O15: Food Security and Nutrition 4.2.2 | P15: No standard; < 80Proportion of is generally a priority. Discuss high, medium and low designations as a group | Q15: preparatory; Phase III and IV | R15: WHO IYCF core indicator | U15: representative IYCF survey | V15: F3 Food Access, F4 Income Access, F5 Market Access, F6 Availability, F7 Utilization, H2 Child health
A16: Nutrition | B16: Core - Key Contributing Factor | C16: N-024 | D16: N3 Prevention and Control of Micronutrients Deficiencies | E16: Prevalence of anaemia | F16: Proportion of children below five years of age with Hb concentration of <11 g/dL | G16: Individual | H16: Percentage | I16: Total number of children below five years of age surveyed | J16: Number of children below five years of age with Hb concentration of <11 g/dL | K16: Geographical area | L16: No | M16: Baseline, Outcome | N16: Yes | O16: Food Security and Nutrition 4.1.0 | P16: Public Health Significance: <4.9Proportion of Normal/Adequate; 5-19.9Proportion of Low; 20-39.9Proportion of Medium; >40Proportion of High (ref: WHO 2001). | Q16: Preparatory | R16: The finger-prick blood sample test is easy to administer in the field. The test could be easily integrated in regular health or prenatal visit to capture all women in reproductive ages. Cost of equipment may be prohibitive | T16: WHO guideline: who.int/indicators/haemolobin.pdf; | U16: primary data - National Surveys, Local studies, DHS, MICS; secondary data - VMNIS | V16: F1 Food Assistance, F3 Food Access, F4 Income Access, F5 Market Access, F6 Availability, F7 Utilization, H2 Child health, H4.2 Maternal and newborn care, H5 Non communicable diseases and mental health
A17: Nutrition | B17: Core - Key Contributing Factor | C17: N-025 | D17: N3 Prevention and Control of Micronutrients Deficiencies | E17: Prevalence of anaemia | F17: Proportion of PW with Hb concentration of <11 g/dL | G17: Individual | H17: Percentage | I17: Total number of pregnant women surveyed | J17: Number of pregnant women with anaemia (Hb<11g/dl for pregnant women) | K17: Geographical area | L17: No | M17: Baseline, Outcome | N17: Yes | O17: Food Security and Nutrition 4.1.1 | P17: Public Health Significance: <4.9Proportion of Normal/Adequate; 5-19.9Proportion of Low; 20-39.9Proportion of Medium; >40Proportion of High (ref: WHO 2001). | Q17: Preparatory | R17: The finger-prick blood sample test is easy to administer in the field. The test could be easily integrated in regular health or prenatal visit to capture all women in reproductive ages. Cost of equipment may be prohibitive | T17: WHO guideline: who.int/indicators/haemolobin.pdf; | U17: primary data - National Surveys, Local studies, DHS, MICS; secondary data - VMNIS | V17: F1 Food Assistance, F3 Food Access, F4 Income Access, F5 Market Access, F6 Availability, F7 Utilization, H2 Child health, H4.2 Maternal and newborn care, H5 Non communicable diseases and mental health
A18: Nutrition | B18: Core - Contextual Factor | C18: N-001 | D18: N4 Prevention and Management of Double Burden of Malnutrition | E18: Prevalence of overweight | F18: prevalence (%) of overweight in children 6 to 59 months of age based on weight-for-height z-score more than 2 standard deviations of the median of the standard population (WHO 2006) | G18: Individual | H18: Percentage | I18: Total number of children aged 6-59 months surveyed | J18: Number of children aged 6-59 months that meet the criteria for overweight | K18: Geographical area, age, sex | L18: Yes | M18: Baseline, Outcome | N18: Yes | P18: WHO TRS 854. Severity classification: 5,10, 15% | R18: Should be based on a methodologically solid anthropometric nutrition survey finding and include Confidence Intervals | U18: Population-based surveys with representative sampling methods (MICS, DHS, SMART)
A19: Nutrition | B19: Core - Contextual Factor | C19: N-015 | D19: N1 Prevention and Management of Acute Malnutrition | E19: Acute malnutrition for older people | F19: prevalence (%) of older people with a MUAC below 210mm or having bilateral pitting oedema | G19: Individual | H19: Percentage | I19: Total number of older people surveyed | J19: Number of older people that meet the criteria for acute malnutrition | K19: Geographical area, sex: in preparatory, Phase III and IV, disaggregate by severity (<185mm and between 185 and 209mm) | L19: Yes | M19: Baseline, Outcome | N19: Yes | P19: MUAC >210mm: no malnutrition; MAM: MUAC <210mm SAM: MUAC<185mm or oedema (Help Age guidelines 2013) | Q19: In preparatory phase as well as phases I and II: use rapid assessment methods In phases III and IV, organize surveys with larger samples or use rapid assessment method, with multi-indicator questionnaire | R19: Rapid assessment methods can be used at any phase. The questionnaire should include questions about socio-economic status, health, household food security, water and sanitation. | S19: In preparatory phase,: Collect baseline demographic data about the percentage of people 50 and above (or 60 and above) disaggregated by sex and by age groups of 5 years (50-59, 60-64, 65-69, 70-74, 75-80, 80 and above) Assess household food security Organize focus group discussions with older people to have an idea of their access to food. | T19: older people are defined as "people aged 60 and above" (UN definition), but in some contexts (e.g. Somali, Ethiopia, Sudan etc.), can be 50 and above (as people are considered "old" from this age); Note: Nutritional oedema in older people may be difficult to distinguish from other types of oedema, so suggestion to separate BMI and oedema cases if necessary. Data on acute malnutrition rate should be compared by sex in order to identify any specific discrimination elderly women and elderly men might face in accessing nutrition. In case there is an important difference between the percentage of elderly women and the percentage of elderly men suffering from acute malnutrition, the programme should address these gaps by undertaking a gender analysis of the specific challenges the disadvantaged group is facing, including an analysis of the socio cultural habits and beliefs as well as on the social and family support networks available to them that might differ, hence impacting differently their nutritional well being. | U19: surveys: rapid assessments | V19: F1 Food Assistance, F3 Food Access, F4 Income Access, F5 Market Access, F6 Availability, F7 Utilization, H3 Communicable diseases, W1 Hygiene Promotion, W2 Water Supply, W4 Vector Control
A20: Nutrition | B20: Core - Contextual Factor | C20: N-014 | D20: N1 Prevention and Management of Acute Malnutrition | E20: Undernutrition for 5 to 19 year olds | F20: prevalence (%) of children and adolescents 5-19 years of age with Z-scores defined as BMI-for-age index less than -2 standard deviations from the median BMI of a reference population of children/adolescents of the same age and/or having bilateral pitting oedema | G20: Individual | H20: Percentage | I20: Total number of children and adolescents 5-19 years surveyed | J20: Number of children and adolescents 5-19 years that meet the criteria for undernutrition | K20: Geographical area, sex | L20: No | M20: Baseline, Outcome | N20: Yes | P20: WHO Reference 2007 www.who.int/growthref. | Q20: Preparatory and phase iv and beyond | R20: Should be based on a methodologically solid anthropometric nutrition survey finding and include Confidence Intervals | T20: Particularly important for adolescent girls. Data on the undernutrition rate should be compared by sex in order to identify any specific discrimination girls, boys, adolescent girls and adolescent boys might face in accessing nutrition. In case there is an important difference between the percentage of girls and the percentage of boys suffering from undernutrition, the programme should address these gaps by undertaking a gender analysis of the specific challenges the disadvantaged group is facing, including an analysis of the socio cultural habits and beliefs that might differently impact on girls' and boys' nutritional well being. Note: the indicator includes 5.0 to 19.0 years. Based on WHO 2007 reference population | V20: F1 Food Assistance, F3 Food Access, F4 Income Access, F5 Market Access, F6 Availability, F7 Utilization, H3 Communicable diseases, H4.2 Maternal and newborn care, W1 Hygiene Promotion, W2 Water Supply, W4 Vector Control
A23: ADDITIONAL INDICATORS TO BE CONSIDERED GIVEN THE HUMANITARIAN CONTEXT
A24: Nutrition | B24: Non-core | C24: N-031 | D24: N2 Infant and Young Child Feeding | E24: Continued breastfeeding at one year and at 2 years | F24: Proportion of children 12-15 months of age and 20-23 months of age who are fed breast milk | G24: Individual | H24: Percentage | I24: Total number of infants 12-15 months of age and total number of infants 20-23 months of age surveyed | J24: Infants 12-15 months of age and 20-23 months of age who receive any breast milk | K24: Geographical area | L24: No | M24: Baseline, Outcome | N24: Yes | Q24: preparatory; Phase III and IV | R24: The WHO IYCF core indicator reports continued breastfeeding at 1 year. In emergencies, it is important to also monitor continued breastfeeding rate at 2 years (WHO IYCF optional indicator) as children 1-2 years are also at significant risk of increased morbidity and mortality if not breastfed in this context. | T24: Attention should be paid on the potential difference in breastfeeding male and female infants. If difference exists, this should inform the nutritional education messages. | U24: representative IYCF survey | V24: H2 Child health, H4.2 Maternal and newborn care, (R) Early Recovery
A25: Nutrition | B25: Non-core | C25: N-032 | D25: N2 Infant and Young Child Feeding | E25: Children ever breastfed | F25: Proportion of children born in the last 24 months who were ever breastfed | G25: Individual | H25: Percentage | I25: Total number of infants born in the past 23 months in the surveyed area | J25: Number of infants 0-23 months of age who ever received breast milk | K25: Geographical area | L25: Yes | M25: Baseline, Outcome | N25: Yes | P25: No standard; < 80Proportion of is generally a priority. Discuss high, medium and low designations as a group | Q25: For measurement in Phases 1-IV, an adapted indicator should be used where the denominator should be infants born since onset of the emergency. In phases 1 and 2, opportunistic sampling will be necessary, e.g. piggy backed onto reproductive health sampling or anthropometric screening or food security assessment. | R25: WHO IYCF core indicator. | S25: For preparatory phase, the core WHO Indicator should be used as a baseline where the denominator is infants born in the last 24 months. | U25: Preparatory, Phase III and IV: representative IYCF survey. Phase I and II: use key informant interviews and opportunistic sampling to give an ALERT indication | V25: H2 Child health, H4.2 Maternal and newborn care, (R) Early Recovery
A26: Nutrition | B26: Non-core | C26: N-033 | D26: N2 Infant and Young Child Feeding | E26: Predominant breastfeeding under 6 months | F26: Proportion of infants 0-5 months of age who are predominantly breastfed | G26: Individual | H26: Percentage | I26: Total number of infants 0 to 5 months of age surveyed | J26: Number of infants 0-5 months of age who are predominantly breastfed | K26: Geographical area, sex | L26: No | M26: Baseline | N26: No | P26: No standard; < 80Proportion of is generally a priority. Discuss high, medium and low designations as a group | Q26: preparatory; Phase III and IV | R26: WHO IYCF optional indicator | T26: Attention should be paid on the potential difference in breastfeeding male and female infants. If difference exists, this should inform the nutritional education messages. | U26: representative IYCF survey | V26: H2 Child health, H4.2 Maternal and newborn care, (R) Early Recovery
A27: Nutrition | B27: Non-core | C27: N-034 | D27: N2 Infant and Young Child Feeding | E27: Bottle feeding | F27: Proportion of children 0-23 months of age who are fed with a bottle | G27: Individual | H27: Percentage | I27: Total number of infants 0-23 months surveyed | J27: Number of infants 0-23 months who are fed with a bottle | K27: Geographical area, sex | L27: Yes | M27: Baseline, Outcome | N27: Yes | O27: Food Security and Nutrition 4.2.4 | Q27: preparatory; Phases I, II, III and IV | R27: WHO IYCF optional indicator. This indicator determines the use of bottles which carry risk; is not an indicator of use of infant formula or breast milk substitutes, since it records any item fed using a bottle including breast milk, water, semi-solids, etc.). | U27: Preparatory, Phase III and IV: representative IYCF survey. Phase I and II use key informant interviews and opportunistic sampling to give an ALERT indication | V27: H2 Child health, H4.2 Maternal and newborn care, W1 Hygiene Promotion, W2 Water Supply
A28: Nutrition | B28: Non-core | C28: N-026 | D28: N3 Prevention and Control of Micronutrients Deficiencies | E28: prevalence of iodine deficiency | F28: Median urinary iodine concentration (?g/L) in children aged 6-12 years | G28: Individual | H28: Percentage | I28: Total number of children aged 6- 12 years surveyed | J28: Median urinary iodine concentration (?g/L) in children aged 6-12 years | K28: Geographical area, age | L28: Yes | M28: Baseline | N28: No | O28: Food Security and Nutrition 4.1.1 | P28: For children under-5, Public Health significance if <100µg/l but I don't know for children 6-12 years of age (ref: WHO, UNICEF, ICCIDD 2007) | Q28: Preparatory | R28: A median urinary iodine concentration in a population of < 100 ?g/l indicates that the iodine intake is insufficient. A non-invasive method of measurement, the cost of spoturine samples tests is affordable. School age children 6-12 years can be easily tested in population-based surveys. | T28: WHO guideline: apps.who.int/iris/bitstream/10665/85972/1/WHO_NMH_NHD_EPG_13.1_eng.pdf; According to WHO ideally one should also assess PLW | U28: primary data - National Surveys, Local studies; secondary data - VMNIS | V28: F1 Food Assistance, F6 Availability, H2 Child health, H4.2 Maternal and newborn care, H5 Non communicable diseases and mental health
A29: Nutrition | B29: Non-core | C29: N-027 | D29: N1 Prevention and Management of Acute Malnutrition | E29: Child morbidity | F29: Proportion of children 0-59 months whose caregiver reported an illness in the previous 2 weeks | G29: Individual | H29: Percentage | I29: Total number of children 0 to 59 months of age surveyed | J29: Number of children 0-59 months whose caregiver reported an illness in the previous 2 weeks | K29: Geographical area | L29: Yes | M29: Baseline | N29: No | P29: No threshold | Q29: preparatory; Phase I and II; Phase II and IV | R29: survey data | T29: This information may be available through the Health Cluster, but nutrition surveys may provide updated representative information | U29: SMART surveys, Disease early warning systems | V29: H1 General clinical services & essential trauma care, H2 Child health, H3 Communicable diseases, H4.2 Maternal and newborn care, W1 Hygiene Promotion, W2 Water Supply, W3 Excreta Disposal
A30: Nutrition | B30: Non-core | C30: N-028 | D30: N1 Prevention and Management of Acute Malnutrition | E30: Under-five mortality | F30: The rate of death among children below of 5 years of age in the population | G30: Individual | H30: death per 10,000 children under 5 years/day | I30: Total number of children under 5 years multiple by number of days in time period over 10,000 persons | J30: Total number of death in children under 5 years during time period | K30: Geographical area | L30: Yes | M30: Baseline | N30: No | O30: Health Action 2.2.1 | P30: See Sphere (http://www.spherehandbook.org/en/essential-health-services-standard-1-prioritising-health-services/) for emergency thresholds for different regions. When the baseline rate is unknown or of doubtful validity, agencies should aim to maintain the U5MR at least below 2.0/10,000/day | Q30: preparatory; Phases I, II III and IV | R30: Under-five mortality rate as defined here is strictly speaking not a rate (i.e. the number of deaths divided by the number of population at risk during a certain period of time) but a probability of death derived from a life table and expressed as rate per 1000 live births | T30: These data should be taken from Health Cluster or specific mortality surveys, representative surveys, A proxy can be calculated through health facilities and community records in early phases of emergency. Under-five mortality rate measures child survival. It also reflects the social, economic and environmental conditions in which children (and others in society) live, including their health care. Because data on the incidences and prevalence of diseases (morbidity data) frequently are unavailable, mortality rates are often used to identify vulnerable populations. Under-five mortality rate is an MDG indicator | U30: Representative survey and or from health facility / community records | V30: H1 General clinical services & essential trauma care, H2 Child health, W1 Hygiene Promotion, W2 Water Supply, W3 Excreta Disposal
A31: Nutrition | B31: Non-core | C31: N-002 | D31: N1 Prevention and Management of Acute Malnutrition | E31: Acute malnutrition in infants less than 6 months | F31: prevalence (%) of global acute malnutrition in infants less than 6 months of age based on presence of bilateral pitting oedema and /or weight-for-height z-score less than -2 standard deviations of the median of the standard population (WHO 2006) | G31: Individual | H31: Percentage | I31: Total number of children less than 6 months surveyed | J31: Number of infants 0-5 months that meet the criteria for global acute malnutrition | K31: Geographical area, sex | L31: Yes | M31: Baseline, Outcome | N31: Yes | P31: WHO TRS 854. Severity classification: 5,10, 15% | Q31: preparatory; Phase III and IV | R31: Should be based on a methodologically solid anthropometric nutrition survey finding and include Confidence Intervals | T31: Note that WFH and MUAC do not measure the same things and are not comparable. Data on the acute malnutrition rate should be compared by sex in order to identify any specific discrimination baby girls or baby boys might face in accessing nutrition. In case there is an important difference between the percentage of infant girls and the percentage of infant boys suffering from malnutrition, the programme should address these gaps by undertaking a gender analysis of the specific challenges the disadvantaged group is facing, including an analysis of the socio cultural habits and beliefs on breastfeeding that might differently impact on baby girls' and baby boys' nutritional well being. | U31: Population-based surveys with representative sampling methods (MICS, DHS, SMART) | V31: F1 Food Assistance, H2 Child health, H4.2 Maternal and newborn care, W1 Hygiene Promotion, W2 Water Supply, W3 Excreta Disposal
A32: Nutrition | B32: Non-core | C32: N-006 | D32: N1 Prevention and Management of Acute Malnutrition | E32: Moderate acute malnutrition (MAM) in infants 0-5 months | F32: prevalence (%) of moderate acute malnutrition in infants less than 6 months of age based on weight-for-height z-score less than -2 and equal or greater than -3 standard deviations of the median of the standard population (WHO 2006) | G32: Individual | H32: Percentage | I32: Total number of children less than 6 months surveyed | J32: Number of infants less than 6 months that meet the criteria for moderate acute malnutrition | K32: Geographical area, sex | L32: Yes | M32: Baseline, Outcome | N32: Yes | P32: No standard WHO thresholds; this indicator cut-off should be interpreted in consideration of other indicators including morbidity, mortality and proportion of GAM | Q32: preparatory; Phase III and IV | R32: Should be based on a methodologically solid anthropometric nutrition survey finding and include Confidence Intervals | S32: Prevalence easy to derive by subtracting Proportion of SAM from Proportion of GAM | T32: Note that WFH and MUAC do not measure the same things and are not comparable. Data on the moderate acute malnutrition rate should be compared by sex in order to identify any specific discrimination baby girls or baby boys might face in accessing nutrition. In case there is an important difference between the percentage of infant girls and the percentage of infant boys suffering from malnutrition, the programme should address these gaps by undertaking a gender analysis of the specific challenges the disadvantaged group is facing, including an analysis of the socio cultural habits and beliefs on breastfeeding that might differently impact on baby girls' and baby boys' nutritional well being. | U32: Population-based surveys with representative sampling methods (MICS, DHS, SMART) | V32: F1 Food Assistance, H2 Child health, H4.2 Maternal and newborn care, W1 Hygiene Promotion, W2 Water Supply, W3 Excreta Disposal
A33: Nutrition | B33: Non-core | C33: N-004 | D33: N1 Prevention and Management of Acute Malnutrition | E33: Severe acute malnutrition (SAM) in infants 0-5 months | F33: prevalence (%) of severe acute malnutrition in infants less than 6 months of age based on presence of bilateral pitting oedema and weight-for-height z-score less than -3 standard deviations of the median of the standard population (WHO 2006) | G33: Individual | H33: Percentage | I33: Total number of children 0-5 months surveyed | J33: Number of infants 0-5 months that meet the criteria for severe acute malnutrition | K33: Geographical area, sex | L33: Yes | M33: Baseline, Outcome | N33: Yes | P33: No standard WHO thresholds; this indicator cut-off should be interpreted in consideration of other indicators including morbidity, mortality and proportion of GAM; Reference: WHO child growth standards and the identification of severe acute malnutrition in infants and children. A Joint Statement by the World Health Organization and the United Nations Children's Fund, 2009. | Q33: preparatory; Phase III and IV | R33: Should be based on a methodologically solid anthropometric nutrition survey finding and include Confidence Intervals | T33: Note that WFH and MUAC do not measure the same things and are not comparable. Data on the severe acute malnutrition rate should be compared by sex in order to identify any specific discrimination baby girls or baby boys might face in accessing nutrition. In case there is an important difference between the percentage of infant girls and the percentage of infant boys suffering from malnutrition, the programme should address these gaps by undertaking a gender analysis of the specific challenges the disadvantaged group is facing, including an analysis of the socio cultural habits and beliefs on breastfeeding that might differently impact on baby girls' and baby boys' nutritional well being. | U33: Population-based surveys with representative sampling methods (MICS, DHS, SMART) | V33: F1 Food Assistance, H1 General clinical services & essential trauma care, H2 Child health, H4.2 Maternal and newborn care, W1 Hygiene Promotion, W2 Water Supply, W3 Excreta Disposal
A34: Nutrition | B34: Non-core | C34: N-012 | D34: N1 Prevention and Management of Acute Malnutrition | E34: Stunting in women of reproductive age | F34: prevalence (%) of women 15-49 years old who have height less than 145 cm | G34: Individual | H34: Percentage | I34: Total number of women 15-49 years surveyed | J34: Number of women 15-49 years that meet the criteria for stunting | K34: Geographical area | L34: No | M34: Baseline, Outcome | N34: Yes | Q34: preparatory; Phase III and IV | R34: Should be based on a methodologically solid anthropometric nutrition survey finding and include Confidence Intervals | U34: Population-based surveys with representative sampling methods (MICS, DHS, SMART) | V34: F1 Food Assistance, F3 Food Access, F4 Income Access, F5 Market Access, F6 Availability, F7 Utilization, H1 General clinical services & essential trauma care, H2 Child health, H4.2 Maternal and newborn care, W1 Hygiene Promotion, W2 Water Supply, W4 Vector Control
A35: Nutrition | B35: Non-core | C35: N-013 | D35: N1 Prevention and Management of Acute Malnutrition | E35: Undernutrition for adults | F35: prevalence (%) of adults aged 19.1 to 59.9 years old with BMI less than 17.00 kg/m2 and/or having bilateral pitting oedema | G35: Individual | H35: Percentage | I35: Total number of adults aged 19.1 to 59.9 years old surveyed | J35: Number of adults aged 19.1 to 59.9 years old that meet the criteria for undernutrition | K35: Geographical area, age, sex | L35: No | M35: Baseline, Outcome | N35: Yes | P35: WHO TRS 854 classification: mild thinness (BMI = 17.00-18.49 kg/m2), moderate thinness (BMI = 16.00-16.99 kg/m2), and severe thinness (BMI < 16.00 kg/m2). | Q35: Preparatory and phase IV and beyond | R35: Should be based on a methodologically solid anthropometric nutrition survey finding and include Confidence Intervals | T35: Anthropometric data should be interpreted with a contextual analysis of the associated nutritional risks for the population using underlying causes. In particular, data on the undernutrition rate should be compared by sex in order to identify any specific discrimination adult women or adult men might face in accessing nutrition. In case there is an important difference between the percentage of women and the percentage of men suffering from undernutrition, the programme should address these gaps by undertaking a gender analysis of the specific challenges the disadvantaged group is facing, including an analysis of the socio cultural habits and beliefs that might differently impact their nutritional well being. | U35: Population-based surveys with representative sampling methods (MICS, DHS, SMART) | V35: F1 Food Assistance, F3 Food Access, F4 Income Access, F5 Market Access, F6 Availability, F7 Utilization, H3 Communicable diseases, H4.2 Maternal and newborn care, W1 Hygiene Promotion, W2 Water Supply, W4 Vector Control
A36: Nutrition | B36: Non-core | C36: N-016 | D36: N1 Prevention and Management of Acute Malnutrition | E36: Minimum meal frequency for children 24-59 months | F36: Proportion of children 24-59 months who are eating 3 meals a day or more | G36: Individual | H36: Percentage | I36: Total number of children 24-59 months surveyed | J36: Number of children 24-59 months who are eating 3 meals a day or more | K36: Geographical area, age, sex | L36: No | M36: Baseline | N36: No | Q36: preparatory; Phase I and II; Phase II and IV | R36: Use 6-23 months age group indicator as proxy for 24-59 months, and assume older age group is worse off CAN be an important ALERT indicator in early phases of an emergency | T36: Indicator used for IYCF for 6-23 month age group based on WHO indicator. | U36: surveys; rapid assessments; | V36: F1 Food Assistance, F3 Food Access, F4 Income Access, F5 Market Access, F6 Availability, F7 Utilization, H2 Child health, H4.2 Maternal and newborn care
A37: Nutrition | B37: Non-core | C37: N-019 | D37: N3 Prevention and Control of Micronutrients Deficiencies | E37: level of risk to common micronutrient deficiencies (high, medium, low) | F37: Qualitative assessment of nutritional risk of common micronutrient deficiencies (anaemia, iodine deficiency, vitamin A deficiency (night blindness), scurvy, beri beri, vitamin D deficiency) based on composite indicator analysis on prevalences, diet analysis, water quality and diarrheal disease, case finding | G37: Community | H37: high, medium, low | I37: N/A | J37: N/A | K37: By deficiency; geographical area, sex, potentially vulnerable groups: PLW, children 6-59 months, other potentially vulnerable groups | L37: Yes | M37: Baseline | N37: No | P37: SPHERE 2011, appendix 5 - thresholds (http://www.spherehandbook.org/en/appendix-15/) | Q37: Preparatory; Phase II, III, IV | R37: List prevalences for micronutrient status known for any vitamins and minerals and collect additional information on diet, water quality and disease, to assess the severity of the risk for specific population groups | U37: use survey data ; estimate from numbers of affected population by type of vulnerable groups | V37: F1 Food Assistance, F2 Livelihood Assistance, F3 Food Access, F4 Income Access, F5 Market Access, F6 Availability, F7 Utilization, H1 General clinical services & essential trauma care, H2 Child health, H5 Non communicable diseases and mental health, (R) Early Recovery, W1 Hygiene Promotion, W2 Water Supply, W3 Excreta Disposal
A38: Nutrition | B38: Non-core | C38: N-020 | D38: N3 Prevention and Control of Micronutrients Deficiencies | E38: Vitamin A coverage in children 6--59 months | F38: Proportion of children 6 - 59 months having received vitamin A in previous 6 months | G38: Individual | H38: Percentage | I38: Total number of children 6-59 months surveyed | J38: Number of children 6 - 59 months that received vitamin A in the previous 6 months (mother's recall or card verified) | K38: Geographical area, age (6-11, 12-23 months), sex | L38: Yes | M38: Baseline, Output | N38: Yes | O38: Health Action 2.2.1 | P38: Target: 95%. Upon completion of measles vaccination campaign at least 95 per cent of children aged 6–59 months have received an appropriate dose of Vitamin A | Q38: preparatory; Phase III and IV | T38: The indicator applies for children living in settings where VAD is a public health problem, WHO follows the GAVA recommendation and advocates for two doses in the last year. In case there is an important difference, the programme should address these gaps by undertaking a gender analysis of the specific challenges the disadvantaged group is facing, including an analysis of the socio cultural habits and beliefs that might differently impact on girls' and boys' nutritional well being. Consider the dates of the actual vitamin A supplementation to get an indication of number of children uncovered (0 to 5 months old) and who should be included in the new supplementation programme. | U38: population surveys with representative sampling methods (MICS, DHS, SMART) | V38: F1 Food Assistance, F3 Food Access, F4 Income Access, F5 Market Access, F6 Availability, F7 Utilization, H1 General clinical services & essential trauma care, H2 Child health, H5 Non communicable diseases and mental health
A39: Nutrition | B39: Non-core | C39: N-021 | D39: N3 Prevention and Control of Micronutrients Deficiencies | E39: Iron supplementation coverage rate in children | F39: Proportion of children 6-59 months of age receiving micronutrient supplements that contain adequate iron | G39: Individual | H39: Percentage | I39: Total number of children 6-59 months surveyed | J39: Number of children 6-59 months who received micronutrient supplements with adequate iron in/with one of their meals the previous day | K39: Geographical area, age (6-24, 24-59 months), sex | L39: No | M39: Baseline, Output | N39: Yes | O39: Food Security and Nutrition 4.1.1 | Q39: preparatory; Phase III and IV | U39: population surveys with representative sampling methods (MICS, DHS, SMART) | V39: F1 Food Assistance, F3 Food Access, F4 Income Access, F5 Market Access, F6 Availability, F7 Utilization, H1 General clinical services & essential trauma care, H2 Child health, H5 Non communicable diseases and mental health
A40: Nutrition | B40: Non-core | C40: N-022 | D40: N3 Prevention and Control of Micronutrients Deficiencies | E40: Iron-folic acid supplementation in pregnant women | F40: Proportion of pregnant women having received iron-folic acid contained supplementation daily in previous 6 months/during pregnancy | G40: Individual | H40: Percentage | I40: Total number of pregnant women surveyed | J40: Number of pregnant women who bought or received iron-folic acid contained supplementation daily in the previous 6 months during pregnancy | K40: Geographical area | L40: Yes | M40: Baseline, Output | N40: Yes | O40: Food Security and Nutrition 4.1.1 | Q40: preparatory; Phase III and IV | R40: In some countries iron-folic acid supplements are replaced by multiple micronutrients, therefore depending on the situation the indicator should be changed to "received iron-folic acid supplements "or "received multiple micronutrient supplements" | U40: Population survey with representative sampling methods (eg, MICS, DHA, SMART) | V40: F1 Food Assistance, F3 Food Access, F6 Availability, H1 General clinical services & essential trauma care, H2 Child health, H4.2 Maternal and newborn care
A41: Nutrition | B41: Non-core | C41: N-023 | D41: N3 Prevention and Control of Micronutrients Deficiencies | E41: Iodized salt consumption | F41: Proportion households using adequately iodized salt in previous 6 months | G41: Households | H41: Percentage | I41: Total number of households surveyed | J41: Number of households using adequately iodized salt (20-40 ppm) in previous 6 months | K41: Geographical area | L41: No | M41: Baseline, Output | N41: No | O41: Food Security and Nutrition 4.1.1 | P41: Indicator should be equal to or greater than 90Proportion of(reference?) -Number of households using adequately iodized salt (20-40 ppm) in previous 6 months | Q41: preparatory; Phase III and IV | R41: Adequately iodized salt is salt containing 15 to 40 ppm of iodine at the household level. Reference: Assessment of iodine deficiency disorders and monitoring their elimination : a guide for programme managers. 3rd edition WHO, 2008 | T41: Use of "using" rather than "having regularly consumed in previous 6 months" based on recommended assessment methods, which is measuring iodine level in salt in households at a time of assessment and not collecting retrospective data (as the level of iodine in salt consumed cannot be assessed and many people do not know if salt is / was iodized). Alternative formulation: "Proportion of households using adequately iodized salt" - see reference. Apparently not a food security indicator; | V41: F1 Food Assistance, F6 Availability, H2 Child health, H5 Non communicable diseases and mental health
A42: Nutrition | B42: Non-core | C42: N-024 | D42: N3 Prevention and Control of Micronutrients Deficiencies | E42: Prevalence of vitamin A deficiency | F42: (1)Proportion of children below five years of age with sub-clinical vitamin A deficiency (2) Proportion of women of reproductive age with clinical vitamin A deficiency | G42: Individual | H42: Percentage | I42: Total number of children below five years of age surveyed or Total number of women of reproductive age surveyed | J42: Number of children below five years of age with vitamin A deficiency (serum retinol values <0.70µmol/l) or Proportion of women of reproductive age or 15-49 years of age) with Vitamin A deficiency (serum retinol values<0.70µmol/l) | K42: Geographical area, boys and girls 0-59 months, women of reproductive age | L42: Yes | M42: Baseline | N42: No | O42: Food Security and Nutrition 4.1.1 | P42: Public Health Significance: <2Proportion of normal; 2-9.9Proportion of Low; 10-19.9Proportion of Medium; >20Proportion of High (ref: WHO 1996) | Q42: Preparatory | R42: FOR CHILDREN - Serum or plasma retinol levels measured in capillary or venous samples is an invasive test that is expensive if HPLC is used. Newer methods for dry blood spots with the capillary method are emerging. FOR WOMEN - Information can be ascertained verbally. Since the question is targeted at a specific subset of women, the indicator fails to capture the full range of women of reproductive ages. There is a need to standardize the phrasing of the question. | T42: WHO guideline: who.int/vmnis/retinol.pdf | U42: primary data - National Surveys, Local studies, DHS, MICS; secondary data - VMNIS | V42: F1 Food Assistance, F3 Food Access, F4 Income Access, F5 Market Access, F6 Availability, F7 Utilization, H2 Child health, H4.2 Maternal and newborn care, H5 Non communicable diseases and mental health
A43: Nutrition | B43: Non-core | C43: N-018 | D43: N3 Prevention and Control of Micronutrients Deficiencies | E43: Minimum dietary diversity for children 24-59 months | F43: Proportion of children 24-59 months who receive foods from 4 or more food groups | G43: Individual | H43: Percentage | I43: Total number of children 24-59 months surveyed | J43: Number of children 24-59 months who receive from 4 or more of the following food groups. | K43: Geographical area, age, sex | L43: No | M43: Baseline | N43: No | O43: Food Security and Nutrition 4.1.1 | P43: No standard identified, only WHO source indicator | Q43: preparatory; Phase I and II; Phase II and IV | R43: Use 6-23 months age group indicator as proxy for 24-59 months, and assume older age group is worse off - CAN be an important ALERT indicator in early phases of an emergency (WHO uses a parameter of previous 24 hours). Food groups defined as follows: (1) grains, roots and tubers (2) legumes and nuts (3) dairy products (milk, yogurt, cheese) (4) flesh foods (meat, fish, poultry and liver/organ meats) (5) eggs (6) vitamin-A rich fruits and vegetables (7) other fruits and vegetables | T43: Indicator used for IYCF for 6-23 month age group based on WHO indicator | U43: surveys; rapid assessments; | V43: F1 Food Assistance, F3 Food Access, F4 Income Access, F5 Market Access, F6 Availability, F7 Utilization, H2 Child health, H4.2 Maternal and newborn care
A44: Nutrition | B44: Non-core | C44: N-029 | D44: N2 Infant and Young Child Feeding | E44: Early initiation of breastfeeding | F44: Proportion of children 0-23 months who were put to the breast within one hour of birth. | G44: Individual | H44: Percentage | I44: Total number of women with a live birth in the X years prior to the survey | J44: Number of women with a live birth in the X years prior to the survey who put the newborn infant to the breast within one hour of birth | K44: Geographical area, sex | L44: No | M44: Baseline | N44: No | O44: Food Security and Nutrition 4.2.1 | P44: No standard; < 80Proportion of is generally a priority. Discuss high, medium and low designations as a group | Q44: For Phases III-IV, an adapted indicator should be used where the same methodology is used but the denominator is infants born since onset of the emergency. (Proportion of children born since the onset of the emergency who were put to the breastfed within one hour of birth). In Phase 1 and 11, the denominator used should be infants born since onset of the emergency. In these phases opportunistic sampling will be necessary, e.g. at facilities providing obstetric services/newborn support. | R44: WHO IYCF core indicator. | S44: For preparatory phase, the WHO core indicator should be used as a baseline where the denominator is children born in the last 24 months (Proportion of children born in the last 24 months who were put to the breastfed within one hour of birth). | T44: Note: DHS data are based on the three years or five years prior to survey and MICS data are based on the two years prior to survey | U44: Preparatory, Phase III and IV: representative IYCF survey. Phase I and II: use key informant interviews and opportunistic sampling to give an ALERT indication | V44: H2 Child health, H4.2 Maternal and newborn care, (R) Early Recovery
A45: Nutrition | B45: Non-core | C45: N-036 | D45: N2 Infant and Young Child Feeding | E45: Minimum meal frequency | F45: Proportion of children 6-23 months who received solid, semi-solid or soft foods the minimum number of times or more. | G45: Individual | H45: Percentage | I45: Total number of children 6-23 months surveyed | J45: Number of children 6-23 months who received solid, semi-solid or soft foods for the minimum number of times or more | K45: Geographical area, sex | L45: No | M45: Baseline, Outcome | N45: Yes | O45: Food Security and Nutrition 4.2.2 | P45: No standard; < 80Proportion of is generally a priority. Discuss high, medium and low designations as a group | Q45: preparatory; Phase III and IV | R45: WHO IYCF core indicator | U45: representative IYCF survey | V45: F3 Food Access, F4 Income Access, F5 Market Access, F6 Availability, F7 Utilization, H2 Child health
A46: Nutrition | B46: Non-core | C46: N-038 | D46: N2 Infant and Young Child Feeding | E46: Introduction of solid, semi-solid or soft food | F46: Proportion of children 6-8 months of age who received solid, semi-solid or soft foods during the previous day | G46: Individual | H46: Percentage | I46: Total number of infants 5-8 months surveyed | J46: Number of infants 5-8 months who received solid, semi-solid or soft foods during the previous day | K46: Geographical area, sex | L46: No | M46: Baseline, Outcome | N46: Yes | P46: No standard; < 80Proportion of is generally a priority. Discuss high, medium and low designations as a group | Q46: preparatory; Phase III and IV | R46: WHO IYCF core indicator. Need guidance on sample size | U46: representative IYCF survey | V46: F3 Food Access, F4 Income Access, F5 Market Access, F6 Availability, F7 Utilization, H2 Child health
A47: Nutrition | B47: Non-core | C47: N-039 | D47: N2 Infant and Young Child Feeding | E47: Not breastfed | F47: Proportion of infants 0<12 months and 12<24 months not breastfed | G47: Individual | H47: Percentage | I47: Total number of children 0<12 months and 12<24 months surveyed | J47: Number of infants 0-12 months and 12-24 months not breastfed | K47: Geographical area; 0-<12 months, 12-<24 months, sex | L47: Yes | M47: Baseline, Outcome | N47: Yes | Q47: Calculate this indicator based on standardized data collected. In phases 1 and 11, an indication of the proportion of non-breastfed infants should be estimated based on key informant interviews and opportunistic sampling. | R47: This is not a standard indicator. However it is possible to calculate this indicator using standardized data collected to produce WHO IYCF core indicators. | S47: Preparatory: calculate this indicator based on standardized data collected. In phases 1 and 11, an indication of the proportion of non-breastfed infants should be estimated based on key informant interviews and opportunistic sampling. | T47: Need to raise this with WHO to see how we might develop this as a standard indicator to report in emergency prone contexts. | U47: Preparatory, Phases 111 and IV: Indicator produced from data collected from MICS/DHS. Phase I and II will use key informant interviews and opportunistic sampling to give an ALERT indication. | V47: H2 Child health, H4.2 Maternal and newborn care, W1 Hygiene Promotion, W2 Water Supply
A52: Registre des indicateurs - mettant en évidence ceux utilisés pour la prévision des réponses HNO et PRH
A53: Clusters globaux | B53: HNO et PRH | C53: Code | D53: Sous-domaine | E53: Titre | F53: Description | G53: Unité de mesure | H53: Description de l’unité | I53: Dénominateur | J53: Numérateur | K53: Données ventilées | L53: Indicateur clé | M53: Types | N53: Suivi des réponses | O53: Standards | P53: Seuil | Q53: Directives sur les phases | R53: Directives générales | S53: Directives pour la pré-crise/base de référence | T53: Commentaires | U53: Sources de données | V53: Marquage sectoriel croisé
A54: Nutrition | B54: Clé - Résultat | C54: N-001 | D54: N1 Prévention et gestion de la malnutrition aiguë | E54: Malnutrition aiguë globale (MAG) | F54: prévalence (%) de malnutrition aiguë globale chez les enfants de 6-59 mois en fonction de la présence d’un œdème bilatéral aiguë et/ou d'un rapport poids/taille inférieur à 2 écarts-type de la médiane de la population de référence (OMS, 2006) | G54: Individuel | H54: Pourcentage | I54: Nombre total d’enfant âgés de 6-59 mois enquêtés | J54: Nombre d’enfants âgés de 6-59 mois répondant aux critères concernant la malnutrition aiguë globale | K54: Zone géographique, âge, sexe | L54: Oui | M54: Base de référence, Résultat | N54: Oui | P54: SEUIL DE L’OMS 854. Classification de la sévérité : 5,10, 15 % | Q54: préparatoire ; Phase III et IV | R54: Doit être basé sur les résultats d'une enquête anthropométrique méthodologiquement solide sur la nutrition et doit inclure des intervalles de confiance | T54: Remarque : les taux P/T et PB ne mesurent pas les mêmes choses et ne sont pas comparables. Les données sur les taux de malnutrition globale doivent être comparées par sexe afin d’identifier toute discrimination spécifique à laquelle les filles ou les garçons pourraient être confrontés dans l'accès à la nutrition. Dans ce cas, il est important de faire la différence entre le pourcentage de filles et le pourcentage de garçons souffrant de malnutrition, le programme devrait s'attaquer à ces écarts en procédant à une analyse sexospécifique des défis spécifiques auxquels le groupe défavorisé est confronté en matière d'égalité d'accès à la nutrition, y compris une analyse des habitudes et croyances socioculturelles qui pourraient avoir un impact différent sur le bien-être nutritionnel des filles et des garçons. | U54: Enquêtes démographiques avec méthodes d’échantillonnage représentatives (MICS, EDS, SMART) | V54: F1 Aide alimentaire, H2 Santé infantile, H4.2 Soins maternels et néonatals, W1 Promotion de l’hygiène, W2 Approvisionnement en eau, W3 Évacuation des excréments
A55: Nutrition | B55: Clé - Résultat | C55: N-005 | D55: N1 Prévention et gestion de la malnutrition aiguë | E55: Malnutrition aiguë modérée (MAM) | F55: prévalence (%) de malnutrition aiguë modérée chez les enfants de 6-59 mois en fonction de la présence d’un rapport poids/taille inférieur à -2 et supérieur ou égal à -3 écarts-type de la médiane de la population de référence (OMS, 2006) | G55: Individuel | H55: Pourcentage | I55: Nombre total d’enfant âgés de 6-59 mois enquêtés | J55: Nombre d’enfants âgés de 6-59 mois répondant aux critères concernant la malnutrition aiguë modérée | K55: Zone géographique, âge, sexe | L55: Oui | M55: Base de référence, Résultat | N55: Oui | P55: Pas de seuil standard de l'OMS ; ce seuil doit être interprété en tenant compte d'autres indicateurs, notamment la morbidité, la mortalité et la proportion de la MAG. | Q55: préparatoire ; Phase III et IV | R55: Doit être basé sur les résultats d'une enquête anthropométrique méthodologiquement solide sur la nutrition et doit inclure des intervalles de confiance | S55: Prévalence facile à obtenir en soustrayant la MAS de la MAG | T55: Remarque : les taux P/T et PB ne mesurent pas les mêmes choses et ne sont pas comparables. Les données sur la prévalence de malnutrition aiguë modérée doivent être comparées par sexe afin d’identifier toute discrimination spécifique à laquelle les filles ou les garçons pourraient être confrontés dans l'accès à la nutrition. Dans ce cas, il est important de faire la différence entre le pourcentage de filles et le pourcentage de garçons souffrant de malnutrition, le programme devrait s'attaquer à ces écarts en procédant à une analyse sexospécifique des défis spécifiques auxquels le groupe défavorisé est confronté en matière d'égalité d'accès à la nutrition, y compris une analyse des habitudes et croyances socioculturelles qui pourraient avoir un impact différent sur le bien-être nutritionnel des filles et des garçons. | U55: Enquêtes démographiques avec méthodes d’échantillonnage représentatives (MICS, EDS, SMART) | V55: F1 Aide alimentaire, H2 Santé infantile, H4.2 Soins maternels et néonatals, W1 Promotion de l’hygiène, W2 Approvisionnement en eau, W3 Évacuation des excréments
A56: Nutrition | B56: Clé - Résultat | C56: N-003 | D56: N1 Prévention et gestion de la malnutrition aiguë | E56: Malnutrition aiguë sévère (MAS) | F56: prévalence (%) de malnutrition aiguë sévère chez les enfants de 6-59 mois en fonction de la présence d’un œdème de piqûres bilatéral et/ou d'un rapport poids/taille inférieur à -3 des écarts-type de la médiane de la population de référence (OMS, 2006) | G56: Individuel | H56: Pourcentage | I56: Nombre total d’enfant âgés de 6-59 mois enquêtés | J56: Nombre d’enfants âgés de 6-59 mois répondant aux critères concernant la malnutrition aiguë sévère | K56: Zone géographique, âge, sexe | L56: Oui | M56: Base de référence, Résultat | N56: Oui | P56: Pas de seuil standard de l'OMS ; ce seuil doit être interprété en tenant compte d'autres indicateurs, notamment la morbidité, la mortalité et la proportion de la MAG ; Référence : Normes OMS de croissance de l’enfant et identification de la malnutrition aiguë sévère chez les nourrissons et les enfants. Une déclaration conjointe par l’Organisation Mondiale de la Santé et le Fonds des Nations Unies pour l’enfance, 2009 | Q56: préparatoire ; Phase III et IV | R56: Doit être basé sur les résultats d'une enquête anthropométrique méthodologiquement solide sur la nutrition et doit inclure des intervalles de confiance | T56: Remarque : les taux P/T et PB ne mesurent pas les mêmes choses et ne sont pas comparables. Les données sur la prévalence de malnutrition aiguë sévère doivent être comparées par sexe afin d’identifier toute discrimination spécifique à laquelle les filles ou les garçons pourraient être confrontés dans l'accès à la nutrition. Dans ce cas, il est important de faire la différence entre le pourcentage de filles et le pourcentage de garçons souffrant de malnutrition, le programme devrait s'attaquer à ces écarts en procédant à une analyse sexospécifique des défis spécifiques auxquels le groupe défavorisé est confronté en matière d'égalité d'accès à la nutrition, y compris une analyse des habitudes et croyances socioculturelles qui pourraient avoir un impact différent sur le bien-être nutritionnel des filles et des garçons. | U56: Enquêtes démographiques avec méthodes d’échantillonnage représentatives (MICS, EDS, SMART) | V56: F1 Aide alimentaire, H1 Services cliniques généraux et soins de traumatologie, H2 Santé infantile, H4.2 Soins maternels et néonatals, W1 Promotion de l’hygiène, W2 Approvisionnement en eau, W3 Évacuation des excréments
A57: Nutrition | B57: Clé - Résultat | C57: N-008 | D57: N1 Prévention et gestion de la malnutrition aiguë | E57: Malnutrition aiguë en fonction du PB et de l'œdème | F57: Prévalence (%) des enfants de 6-59 mois avec un PB inférieur à 125 mm et/ou ayant un œdème bilatéral aiguë | G57: Individuel | H57: Pourcentage | I57: Nombre total d’enfant âgés de 6-59 mois enquêtés | J57: Nombre d’enfants âgés de 6-59 mois répondant aux critères concernant l’émaciation basée sur le PB | K57: Zone géographique, âge, sexe | L57: Oui | M57: Base de référence, Résultat | N57: Oui | P57: Normes OMS de croissance de l’enfant et identification de la malnutrition aiguë sévère chez les nourrissons et les enfants. Une déclaration conjointe par l’Organisation Mondiale de la Santé et le Fonds des Nations Unies pour l’enfance, 2009 | Q57: Phase I, II ; ajoutées aux enquêtes de Phase III, IV | R57: Lorsque cela est possible, utiliser des enquêtes représentatives, alternativement - une évaluation nutritionnelle rapide avec un nombre réduit d'enfants peut donner une idée de la situation - mais ces résultats d'une évaluation nutritionnelle rapide - avec un nombre réduit d'enfants doivent être traités avec prudence et ne doivent PAS être présentés comme une prévalence mais comme un nombre d'enfants | T57: Il convient de fractionner les cas d’œdèmes ; néanmoins il y a un souci d’exactitude et de précision. | U57: Enquêtes démographiques avec méthodes d’échantillonnage représentatives (MICS, EDS, SMART) et évaluation rapide de la nutrition | V57: F1 Aide alimentaire, F3 Accès à l'alimentation, F5 Accès au marché, F7 Utilisation, H2 Santé infantile, H4.2 Soins maternels et néonatals, W1 Promotion de l’hygiène, W2 Approvisionnement en eau, W3 Évacuation des excréments, W4 Lutte antivectorielle
A58: Nutrition | B58: Clé - Résultat | C58: N-010 | D58: N1 Prévention et gestion de la malnutrition aiguë | E58: Malnutrition aiguë modérée en fonction du PB | F58: prévalence (%) des enfants de 6-59 mois avec un PB inférieur à 125 mm mais égal ou supérieur à 115 mm | G58: Individuel | H58: Pourcentage | I58: Nombre total d’enfant âgés de 6-59 mois enquêtés | J58: Nombre d’enfants âgés de 6-59 moins répondant aux critères concernant l’émaciation modérée en fonction du PB | K58: Zone géographique, âge, sexe | L58: Oui | M58: Base de référence, Résultat | N58: Oui | Q58: Phase I, II ; ajoutées aux enquêtes de Phase III, IV | R58: Lorsque cela est possible, utiliser une enquête représentative, alternativement - une évaluation nutritionnelle rapide avec un nombre réduit d'enfants peut vous donner une idée de la situation - mais ces résultats d'une évaluation nutritionnelle rapide - avec un nombre réduit d'enfants doivent être traités avec prudence et ne doivent PAS être présentés comme une prévalence mais comme un nombre d'enfants | S58: Prévalence facile à calculer : soustraction de la Proportion de l’émaciation sévère basée sur un PB faible de la Proportion de l’émaciation basée sur un PB faible | U58: Enquêtes démographiques avec méthodes d’échantillonnage représentatives (MICS, EDS, SMART) | V58: F1 Aide alimentaire, F3 Accès à l'alimentation, F5 Accès au marché, F7 Utilisation, H2 Santé infantile, H4.2 Soins maternels et néonatals, W1 Promotion de l’hygiène, W2 Approvisionnement en eau, W3 Évacuation des excréments, W4 Lutte antivectorielle
A59: Nutrition | B59: Clé - Résultat | C59: N-009 | D59: N1 Prévention et gestion de la malnutrition aiguë | E59: Malnutrition aiguë sévère en fonction du PB et de l’œdème | F59: prévalence (%) des enfants de 6-59 mois avec un PB inférieur à 115 mm et/ou ayant un œdème bilatéral aiguë | G59: Individuel | H59: Pourcentage | I59: Nombre total d’enfant âgés de 6-59 mois enquêtés | J59: Nombre d’enfants âgés de 6-59 mois répondant aux critères concernant l’émaciation sévère basé sur le PB | K59: Zone géographique, âge, sexe | L59: Oui | M59: Base de référence, Résultat | N59: Oui | P59: Normes OMS de croissance de l’enfant et identification de la malnutrition aiguë sévère chez les nourrissons et les enfants. Une déclaration conjointe par l’Organisation Mondiale de la Santé et le Fonds des Nations Unies pour l’enfance, 2009 | Q59: Phase I, II ; ajoutées aux enquêtes de Phase III, IV | R59: Lorsque cela est possible, utiliser des enquêtes représentatives, alternativement - une évaluation nutritionnelle rapide avec un nombre réduit d'enfants peut donner une idée de la situation - mais ces résultats d'une évaluation nutritionnelle rapide - avec un nombre réduit d'enfants doivent être traités avec prudence et ne doivent PAS être présentés comme une prévalence mais comme un nombre d'enfants | T59: Il convient de fractionner les cas d’œdèmes ; néanmoins il y a un souci d’exactitude et de précision. | U59: Enquêtes démographiques avec méthodes d’échantillonnage représentatives (MICS, EDS, SMART) et évaluation rapide de la nutrition | V59: F1 Aide alimentaire, F3 Accès à l'alimentation, F5 Accès au marché, F7 Utilisation, H1 Services cliniques généraux et soins de traumatologie essentiels, H2 Santé infantile, H4.2 Soins maternels et néonatals, W1 Promotion de l’hygiène, W2 Approvisionnement en eau, W3 Évacuation des excréments, W4 Lutte antivectorielle
A60: Nutrition | B60: Clé - Résultat | C60: N-011 | D60: N1 Prévention et gestion de la malnutrition aiguë | E60: Malnutrition aiguë chez les femmes enceintes et allaitantes | F60: prévalence (%) de femmes enceintes et allaitantes avec un PB inférieur à 210-230 mm (Remarque : Les pays utilisent une série de seuils différents en fonction des ressources) | G60: Individuel | H60: Pourcentage | I60: Nombre total de femmes enceintes et allaitantes ayant des nourrissons de 0-5 mois enquêtés | J60: Nombre de femmes enceintes et allaitantes avec des nourrissons âgés de 0-5 mois répondant aux critères concernant la malnutrition aiguë basé sur le PB | K60: Zone géographique | L60: Oui | M60: Base de référence, Résultat | N60: Oui | Q60: Toutes les phases | R60: Il n'existe AUCUN seuil international convenu pour le PB pour les femmes enceintes et allaitantes. Les seuils nationaux du PB peuvent donc varier. Si disponible/possible, utiliser une enquête représentative, sinon - une évaluation rapide de la nutrition avec un nombre réduit de femmes enceintes et allaitantes peut vous donner une certaine idée de la situation | T60: Le nombre de femmes enceintes et allaitantes peut être problématique à définir et à identifier. Les enquêtes SMART fournissent des données pour les femmes ayant des enfants, la définition de l’allaitement doit donc se faire pour les mères ayant des nourrissons de 0-5 mois ; prudence concernant l’exclusion des femmes en première grossesse | U60: Enquêtes démographiques avec méthodes d’échantillonnage représentatives (MICS, EDS, SMART) ou évaluation rapide de la nutrition | V60: F1 Aide alimentaire, F3 Accès à l’alimentation, F4 Accès aux revenus, F5 Accès au marché, F6 Disponibilité, F7 Utilisation, H1 Services cliniques généraux et soins de traumatologie essentiels, H2 Santé infantile, H4.2 Soins maternels et néonatals, W1 Promotion de l’hygiène, W2 Approvisionnement en eau, W4 Évacuation des excréments
A61: Nutrition | B61: Clé - Résultat/Facteur de contribution clé | C61: N-007 | D61: N1 Prévention et gestion de la malnutrition aiguë | E61: Retard de croissance chez les enfants | F61: prévalence (%) de malnutrition aiguë modérée chez les enfants de 0-59 mois en fonction de la présence d’un score z de poids pour taille inférieur à -2 des écarts-type de la médiane de la population de référence (OMS, 2006) | G61: Individuel | H61: Pourcentage | I61: Nombre total d’enfant âgés de 0-59 mois enquêtés | J61: Nombre d’enfants de 0-59 mois répondant au critère de retard de croissance | K61: Zone géographique, âge, sexe | L61: Oui | M61: Base de référence, Résultat | N61: Oui | P61: SEUIL DE L’OMS 854. Classification de la sévérité : 20, 30, 40 % | Q61: préparatoire ; Phase III et IV | R61: Doit être basé sur les résultats d'une enquête anthropométrique méthodologiquement solide sur la nutrition et doit inclure des intervalles de confiance | S61: L'objectif sera d'évaluer le retard de croissance dans toute la tranche d'âge de 0-59 mois | T61: Les données ventilées par sexe et groupe d’âge doivent être visées et les résultats analysés. Remarque : si les enquêtes en cours incluent les 0-59 ans, utilisez cette tranche d'âge - si cela n'est pas le cas - et que l'enquête inclut les 6-59 ans, nous pouvons utiliser les 6-59 ans. La proportion doit être idéalement ajustée pour les 0-59 mois | U61: Enquêtes démographiques avec méthodes d’échantillonnage représentatives (MICS, EDS, SMART) | V61: F1 Aide alimentaire, F2 Aide aux moyens de subsistance, F3 Accès à l'alimentation, F4 Accès aux revenus, H2 Santé infantile, H4.2 Soins maternels et néonatals, W1 Promotion de l’hygiène, W2 Approvisionnement en eau, W3 Évacuation des excréments, W4 Lutte anti-vectorielle
A62: Nutrition | B62: Clé - Facteur de contribution clé | C62: N-030 | D62: N2 Alimentation des nourrissons et des jeunes enfants | E62: Allaitement exclusif jusqu'à 6 mois | F62: Proportion de nourrissons de 0-5 mois qui sont exclusivement nourris au lait maternel | G62: Individuel | H62: Pourcentage | I62: Nombre total de nourrissons âgés de 0-5 mois enquêtés | J62: Nourrissons de 0-5 mois qui ont reçu uniquement du lait maternel le jour précédent | K62: Zone géographique, sexe, âge : 0-1, 2-3, 4-5 mois si disponible | L62: Oui | M62: Base de référence, Résultat | N62: Oui | O62: Sécurité alimentaire et nutrition 4.2.1 | P62: Aucune norme : Une proportion <80 est généralement une priorité. Discuter des désignations élevées, moyennes et basses en groupe | Q62: Pour les phases III et IV, l'indicateur clé de l’OMS devra être mesuré. Dans les phases 1 et 11, il n’est pas possible d’évaluer précisément le taux d’allaitement exclusif dans la population. L'information de la base de référence et le N-40 (non allaité) seront l’information clé dans les phases I et II. | R62: Indicateur clé de l’ANJE de l’OMS. | S62: Pour la phase préparatoire, l’indicateur clé de l’OMS devra être mesuré | T62: Une attention particulière devrait être accordée à la différence potentielle entre l’allaitement des nourrissons de sexe masculin et de sexe féminin. Si des différences sont constatées, celles-ci devraient influencer les messages d’éducation nutritionnelle. | U62: Préparatoire, phase III et IV : enquête représentative de l’ANJE. Les phases I et II utilisent des enquêtes avec des informateurs clés et un échantillonnage opportuniste pour donner une indication d'ALERTE | V62: H2 Santé infantile, H4.2 Soins maternels et néonatals, (R) Reprise rapide
A63: Nutrition | B63: Clé - Facteur de contribution clé | C63: N-040 | D63: N2 Alimentation des nourrissons et des jeunes enfants | E63: Distribution de préparation pour nourrisson, de lait en poudre ou de liquide à la population affectée | F63: Distribution confirmée de préparation pour nourrisson, de lait en poudre ou de liquide à la population affectée | G63: Individuel | H63: Oui/Non | I63: N/C | J63: N/C | K63: Zone géographique | L63: Oui | M63: Base de référence, Résultat | N63: Oui | O63: Sécurité alimentaire et nutrition 4.2.1 | P63: tolérance zéro | Q63: Phases 1,11, 111 et IV. | R63: Il s’agit d'une alerte aux problèmes. Toute distribution générale de ces produits à la population touchée est préoccupante car il existe un risque de trop-plein chez les nourrissons et les jeunes enfants. | U63: Entretiens avec des informateurs clés (inclure la logistique et toutes les agences impliquées dans la distribution, ainsi que le personnel de santé et de nutrition et les soignants). Rapports de distribution. Observations. | V63: H2 Santé infantile, H4.2 Soins maternels et néonatals
A64: Nutrition | B64: Clé - Facteur de contribution clé | C64: N-041 | D64: N2 Alimentation des nourrissons et des jeunes enfants | E64: Distribution inappropriée de préparation pour nourrisson, de lait en poudre ou de liquide pour les enfants de 0-< 2 ans | F64: Distribution confirmée de préparation pour nourrisson, de lait en poudre ou de liquide pour les enfants de 0-< 2 ans | G64: Communauté | H64: Oui/Non | I64: N/C | J64: N/C | K64: Zone géographique | L64: Oui | M64: Base de référence, Résultat | N64: Oui | O64: Sécurité alimentaire et nutrition 4.2.1 | P64: tolérance zéro | Q64: Phases 1,11, 111 et IV. | R64: Il s’agit d'une alerte aux problèmes. Une distribution est inappropriée lorsque la distribution n'est pas conforme aux directives opérationnelles de l'IFE en ce qui concerne le respect des critères d'évaluation des besoins, la disponibilité d'un soutien qualifié, la garantie de continuité des approvisionnements, le suivi individuel, la disponibilité des installations de stockage et de préparation, l'étiquetage approprié et la surveillance des trop-pleins sur les nourrissons allaités. | U64: Entretiens avec des informateurs clés (inclure la logistique et toutes les agences impliquées dans la distribution, ainsi que le personnel de santé et de nutrition et les soignants). Rapports de distribution. Observations. | V64: H2 Santé infantile, H4.2 Soins maternels et néonatals
A65: Nutrition | B65: Clé - Facteur de contribution clé | C65: N-035 | D65: N2 Alimentation des nourrissons et des jeunes enfants | E65: Diversification alimentaire minimale | F65: Proportion d’enfants de 6-23 mois qui reçoivent des aliments de 4 groupes d’aliments ou plus | G65: Individuel | H65: Pourcentage | I65: Nombre total d’enfant de 6-23 mois enquêtés | J65: Nombre d’enfants de 6-23 mois qui ont reçus des aliments des 4 groupes ou plus d’aliments | K65: Zone géographique, sexe | L65: Non | M65: Base de référence, Résultat | N65: Oui | O65: Sécurité alimentaire et nutrition 4.2.2 | P65: Aucune norme : Une proportion <80 est généralement une priorité. Discuter des désignations élevées, moyennes et basses en groupe | Q65: préparatoire ; Phase III et IV | R65: Cet indicateur est adapté de l’indicateur clé de l’ANJE de l’OMS pour les enfants de 6-23 mois. | T65: Les données doivent être comparées par sexe afin d’identifier toute limitation spécifique à laquelle les filles ou les garçons pourraient être confrontés dans l'accès à la diversité alimentaire. Dans le cas où il y aurait une différence importante, le programme devra s'attaquer à ces écarts en procédant à une analyse sexospécifique des défis spécifiques auxquels le groupe défavorisé est confronté, y compris une analyse des habitudes et croyances socioculturelles (c-à-d. les tabous alimentaires) qui pourraient avoir un impact différent sur la diversité alimentaire des filles et des garçons. | U65: Enquête représentative de l’ANJE | V65: F3 Accès à l’alimentation, F4 Accès aux revenus, F5 Accès au marché, F6 Disponibilité, F7 Utilisation, H2 Santé infantile
A66: Nutrition | B66: Clé - Facteur de contribution clé | C66: N-037 | D66: N2 Alimentation des nourrissons et des jeunes enfants | E66: Régime minimum acceptable | F66: Proportion d’enfants de 6-23 mois qui reçoivent un régime alimentaire minimum acceptable (à l’exception du lait maternel) | G66: Individuel | H66: Pourcentage | I66: Nombre total d’enfant de 6-23 mois enquêtés | J66: Nombre d’enfant de 6-23 mois qui ont reçu un régime alimentaire minimum acceptable | K66: Zone géographique, sexe | L66: Oui | M66: Base de référence, Résultat | N66: Oui | O66: Sécurité alimentaire et nutrition 4.2.2 | P66: Aucune norme : Une proportion <80 est généralement une priorité. Discuter des désignations élevées, moyennes et basses en groupe | Q66: préparatoire ; Phase III et IV | R66: Indicateur clé de l’ANJE de l’OMS | U66: Enquête représentative de l’ANJE | V66: F3 Accès à l’alimentation, F4 Accès aux revenus, F5 Accès au marché, F6 Disponibilité, F7 Utilisation, H2 Santé infantile
A67: Nutrition | B67: Clé - Facteur de contribution clé | C67: N-024 | D67: N3 Prévention et contrôle des carences en micronutriments | E67: Prévalence de l’anémie | F67: Proportion d'enfants de moins de 5 ans présentant une concentration d'Hb de < 11 g/dl | G67: Individuel | H67: Pourcentage | I67: Nombre total d’enfant âgés de moins de cinq ans enquêtés | J67: Nombre d'enfants de moins de 5 ans présentant une concentration d'Hb de < 11 g/dl | K67: Zone géographique | L67: Non | M67: Base de référence, Résultat | N67: Oui | O67: Sécurité alimentaire et nutrition 4.1.0 | P67: Importance pour la santé publique : <4.9 Proportion de Normal/Approprié ; 5-19.9 Proportion de Faible ; 20-39.9 Proportion de Moyen ; >40 Proportion de Élevé (réf : OMS 2001). | Q67: préparatoire | R67: Le test de prélèvement sanguin par piqûre au doigt est facile à administrer sur le terrain. Le test peut être facilement intégré au cours d'un examen de santé régulier ou prénatal pour prendre en compte toutes les femmes en âge de procréer. Le coût de l’équipement peut être prohibitif | T67: Directive de l’OMS : who.int/indicators/haemolobin.pdf ; | U67: Données primaires - Enquêtes nationales, études locales, EDS, MICS, données auxiliaires - VMNIS | V67: F1 Aide alimentaire, F3 Accès à l’alimentation, F4 Accès aux revenus, F5 Accès au marché, F6 Disponibilité, F7 Utilisation, H2 Santé infantile, H4.2 Soins maternels et néonatals, H5 Maladies non transmissibles et santé mentale
A68: Nutrition | B68: Clé - Facteur de contribution clé | C68: N-025 | D68: N3 Prévention et contrôle des carences en micronutriments | E68: Prévalence de l’anémie | F68: Proportions de femmes enceintes avec des concentrations en de <11 g/dl | G68: Individuel | H68: Pourcentage | I68: Nombre total de femmes enceinte enquêtées | J68: Nombre total de femmes enceintes anémiques (Hb>11 g/dl pour femmes enceintes) | K68: Zone géographique | L68: Non | M68: Base de référence, Résultat | N68: Oui | O68: Sécurité alimentaire et nutrition 4.1.1 | P68: Importance pour la santé publique : <4.9 Proportion de Normal/Approprié ; 5-19.9 Proportion de Faible ; 20-39.9 Proportion de Moyen ; >40 Proportion de Élevé (réf : OMS 2001). | Q68: préparatoire | R68: Le test de prélèvement sanguin par piqûre au doigt est facile à administrer sur le terrain. Le test peut être facilement intégré au cours d'un examen de santé régulier ou prénatal pour prendre en compte toutes les femmes en âge de procréer. Le coût de l’équipement peut être prohibitif | T68: Directive de l’OMS : who.int/indicators/haemolobin.pdf ; | U68: Données primaires - Enquêtes nationales, études locales, EDS, MICS, données auxiliaires - VMNIS | V68: F1 Aide alimentaire, F3 Accès à l’alimentation, F4 Accès aux revenus, F5 Accès au marché, F6 Disponibilité, F7 Utilisation, H2 Santé infantile, H4.2 Soins maternels et néonatals, H5 Maladies non transmissibles et santé mentale
A69: Nutrition | B69: Clé - Facteur contextuel | C69: N-001 | D69: N4 Prévention et gestion du double fardeau de la malnutrition | E69: Prévalence du surpoids | F69: prévalence (%) de surpoids chez les enfants de 6-59 mois basée sur un rapport poids/taille supérieur à 2 écarts types de la médiane de la population de référence (OMS, 2006) | G69: Individuel | H69: Pourcentage | I69: Nombre total d’enfant âgés de 6-59 mois enquêtés | J69: Nombre d’enfants âgés de 6-59 mois répondant aux critères concernant le surpoids | K69: Zone géographique, âge, sexe | L69: Oui | M69: Base de référence, Résultat | N69: Oui | P69: SEUIL DE L’OMS 854. Classification de la sévérité : 5,10, 15 % | R69: Doit être basé sur les résultats d'une enquête anthropométrique méthodologiquement solide sur la nutrition et doit inclure des intervalles de confiance | U69: Enquêtes démographiques avec méthodes d’échantillonnage représentatives (MICS, EDS, SMART)
A70: Nutrition | B70: Clé - Facteur contextuel | C70: N-015 | D70: N1 Prévention et gestion de la malnutrition aiguë | E70: Malnutrition aiguë pour les personnes âgées | F70: prévalence (%) pour les personnes âgées avec un PB inférieur à 210 mm ou ayant un œdème bilatéral aiguë | G70: Individuel | H70: Pourcentage | I70: Nombre total de personnes âgées enquêtées | J70: Nombre de personnes âgées répondant au critère concernant la malnutrition aiguë | K70: Zone géographique, sexe : en préparation, phase III et IV, ventiler par sévérité (< 185 mm et entre 185 et 209 mm) | L70: Oui | M70: Base de référence, Résultat | N70: Oui | P70: PB > 210 mm ; absence de malnutrition ; MAM : PB < 210 mm MAS : PB < 185 mm ou œdème (Directives Help Age 2013) | Q70: En phase préparatoire ainsi qu’en phase I et II : utiliser des méthodes d’évaluation rapides. En phases III et IV, organiser des enquêtes avec des échantillons plus importants ou utiliser des méthodes d’évaluation rapides, avec un questionnaire à indicateurs multiples | R70: Les méthodes d’évaluation rapides peuvent être utilisées à n’importe quelle phase. Le questionnaire devra inclure des questions sur le statut socio-économique, la santé, la sécurité alimentaire des ménages, l’eau et l’assainissement. | S70: En phase préparatoire : Collecter des données démographiques de base de référence à propos du pourcentage de personnes âgées de 50 et plus (ou 60 et plus) ventilées par sexe et groupes d’âge de 5 ans (50-59, 60-64, 65-69, 70-74, 75-80, 80 et plus). Évaluer la sécurité alimentaire domestique. Organiser des groupes de discussion avec des personnes âgées pour avoir une idée de leur accès à l’alimentation. | T70: La définition de l'ONU désigne les personnes de 60 ans et plus (≥ 60) comme âgées, mais dans certains contextes (par ex., en Somalie, en Éthiopie, au Soudan, etc.), elles peuvent être de 50 ans et plus (car les personnes sont considérées « âgées » à partir de cet âge) ; Remarque : L’œdème nutritionnel chez les personnes âgées peut être difficile à distinguer des autres types d’œdème. Séparer l’IMC et les cas d’œdème si nécessaire. Les données sur les taux de malnutrition aiguë doivent être comparées par sexe afin d’identifier toute discrimination spécifique à laquelle les femmes âgées ou les garçons âgés pourraient être confrontés dans l'accès à la nutrition. Dans ce cas, il est important de faire la différence entre le pourcentage de femmes âgées et le pourcentage d’hommes âgés souffrant de malnutrition aiguë, le programme devrait s'attaquer à ces écarts en procédant à une analyse sexospécifique des défis spécifiques auxquels le groupe défavorisé est confronté, y compris une analyse des habitudes et croyances socioculturelles ainsi que sur les réseaux de soutien social et familial qui leurs sont disponibles et qui pourraient différer, impactant ainsi différemment leur bien-être nutritionnel. | U70: enquêtes : évaluations rapides | V70: F1 Aide alimentaire, F3 Accès à l'alimentation, F4 Accès aux revenus, F5 Accès au marché, F6 Disponibilité, F7 Utilisation, H3 Maladies transmissibles, W1 Promotion de l’hygiène, W2 Approvisionnement en eau, W4 Lutte antivectorielle
A71: Nutrition | B71: Clé - Facteur contextuel | C71: N-014 | D71: N1 Prévention et gestion de la malnutrition aiguë | E71: Sous-nutrition pour les 5 à 19 ans | F71: prévalence (%) d’enfants et d’adolescents de 5-19 ans avec un score z défini comme indice IMC pour l’âge inférieur à -2 écarts-type de la médiane de l’IMC pour une population de référence d’enfants/d’adolescents du même âge et/ou présentant un œdème bilatéral aiguë | G71: Individuel | H71: Pourcentage | I71: Nombre total d’enfant et d’adolescents âgés de 5-19 mois enquêtés | J71: Nombre d’enfants et d’adolescents âgés de 5-19 mois répondant aux critères concernant la sous-nutrition | K71: Zone géographique, sexe | L71: Non | M71: Base de référence, Résultat | N71: Oui | P71: Référence de l’OMS 2007 www.who.int/growthref. | Q71: Préparatoire et phase iv et au-delà | R71: Doit être basé sur les résultats d'une enquête anthropométrique méthodologiquement solide sur la nutrition et doit inclure des intervalles de confiance | T71: Particulièrement important pour les adolescentes. Les données sur les taux de sous-nutrition doivent être comparées par sexe afin d’identifier toute discrimination spécifique à laquelle les filles, les garçons, les adolescentes et les adolescents pourraient être confrontés dans l'accès à la nutrition. Dans ce cas, il est important de faire la différence entre le pourcentage de filles et le pourcentage de garçons souffrant de sous-nutrition, le programme devrait s'attaquer à ces écarts en procédant à une analyse sexospécifique des défis spécifiques auxquels le groupe défavorisé est confronté, y compris une analyse des habitudes et croyances socioculturelles qui pourraient avoir un impact différent sur le bien-être nutritionnel des filles et des garçons. Remarque : l’indicateur comprend les âges de 5-19 ans. Basé sur la population de référence de 2007 de l’OMS | V71: F1 Aide alimentaire, F3 Accès à l'alimentation, F4 Accès aux revenus, F5 Accès au marché, F6 Disponibilité, F7 Utilisation, H3 Maladies transmissibles, H4.2 Soins maternels et néonatals, W1 Promotion de l’hygiène, W2 Approvisionnement en eau, W4 Lutte antivectorielle
A74: INDICATEURS SUPPLÉMENTAIRES À PRENDRE EN COMPTE EN RAISON DU CONTEXTE HUMANITAIRE
A75: Nutrition | B75: Non-clé | C75: N-031 | D75: N2 Alimentation des nourrissons et des jeunes enfants | E75: Poursuite de l’allaitement maternel à 1 an et à 2 ans | F75: Proportion d'enfants âgés de 12-15 mois et de 20-23 mois qui sont nourris au lait maternel | G75: Individuel | H75: Pourcentage | I75: Nombre total de nourrissons de 12-15 mois et nombre total de nourrissons de 20-23 mois enquêtés | J75: Nourrissons âgés de 12-15 mois et de 20-23 mois qui ont reçus du lait maternel | K75: Zone géographique | L75: Non | M75: Base de référence, Résultat | N75: Oui | Q75: préparatoire ; Phase III et IV | R75: L’indicateur clé ANJE de l’OMS indique la poursuite de l’allaitement maternel à 1 an. Dans les situations d'urgence, il est important de surveiller également le taux d'allaitement maternel continu à 2 ans (indicateur facultatif de l'ANJE de l'OMS), car les enfants de 1-2 ans sont également exposés à un risque important d'augmentation de la morbidité et de la mortalité s'ils ne sont pas allaités dans ce contexte. | T75: Une attention particulière devrait être accordée à la différence potentielle entre l’allaitement des nourrissons de sexe masculin et de sexe féminin. Si des différences sont constatées, celles-ci devraient influencer les messages d’éducation nutritionnelle. | U75: Enquête représentative de l’ANJE | V75: H2 Santé infantile, H4.2 Soins maternels et néonatals, (R) Reprise rapide
A76: Nutrition | B76: Non-clé | C76: N-032 | D76: N2 Alimentation des nourrissons et des jeunes enfants | E76: Enfants exclusivement allaités | F76: Proportion d’enfants nés au cours des 24 derniers mois exclusivement allaités | G76: Individuel | H76: Pourcentage | I76: Nombre total de nourrissons nés au cours des 23 mois derniers mois dans la zone enquêtée | J76: Nombre de nourrissons de 0-23 mois ayant uniquement reçu du lait maternel | K76: Zone géographique | L76: Oui | M76: Base de référence, Résultat | N76: Oui | P76: Aucune norme : Une proportion <80 est généralement une priorité. Discuter des désignations élevées, moyennes et basses en groupe | Q76: Un indicateur adapté doit être utilisé pour les mesures en phases 1-IV. Le dénominateur doit représenter les nourrissons nés depuis le début de l’urgence. Au cours des phases 1 et 2, un échantillonnage opportuniste sera nécessaire, par exemple en s'appuyant sur un échantillonnage de la santé génésique, un dépistage anthropométrique ou une évaluation de la sécurité alimentaire. | R76: Indicateur clé de l’ANJE de l’OMS. | S76: Pour la phase préparatoire, l’indicateur clé de l’OMS devra être utilisé comme base de référence où le dénominateur représente les nourrissons nés au cours des 24 derniers mois. | U76: Préparatoire, phase III et IV : enquête représentative de l’ANJE. Les phases I et II utilisent des enquêtes avec des informateurs clés et un échantillonnage opportuniste pour donner une indication d'ALERTE | V76: H2 Santé infantile, H4.2 Soins maternels et néonatals, (R) Reprise rapide
A77: Nutrition | B77: Non-clé | C77: N-033 | D77: N2 Alimentation des nourrissons et des jeunes enfants | E77: Allaitement prédominant jusqu'à 6 mois | F77: Proportion de nourrissons de 0-5 mois qui sont principalement allaités | G77: Individuel | H77: Pourcentage | I77: Nombre total de nourrissons âgés de 0-5 mois enquêtés | J77: Nombre de nourrissons de 0-5 mois qui sont principalement allaités | K77: Zone géographique, sexe | L77: Non | M77: Base de référence | N77: Non | P77: Aucune norme : Une proportion <80 est généralement une priorité. Discuter des désignations élevées, moyennes et basses en groupe | Q77: préparatoire ; Phase III et IV | R77: Indicateur en option ANJE de l’OMS | T77: Une attention particulière devrait être accordée à la différence potentielle entre l’allaitement des nourrissons de sexe masculin et de sexe féminin. Si des différences sont constatées, celles-ci devraient influencer les messages d’éducation nutritionnelle. | U77: Enquête représentative de l’ANJE | V77: H2 Santé infantile, H4.2 Soins maternels et néonatals, (R) Reprise rapide
A78: Nutrition | B78: Non-clé | C78: N-034 | D78: N2 Alimentation des nourrissons et des jeunes enfants | E78: Biberon | F78: Proportion de nourrissons de 0-23 mois qui sont exclusivement nourris au biberon | G78: Individuel | H78: Pourcentage | I78: Nombre total de nourrissons de 0-23 mois enquêtés | J78: Nombre de nourrissons de 0-23 mois qui sont nourris au biberon | K78: Zone géographique, sexe | L78: Oui | M78: Base de référence, Résultat | N78: Oui | O78: Sécurité alimentaire et nutrition 4.2.4 | Q78: préparatoire ; Phase I, II, III et IV | R78: Indicateur en option ANJE de l’OMS. Cet indicateur détermine l’utilisation de biberons présentant un risque ; il ne s'agit pas d'un indicateur de l'utilisation de préparation pour nourrissons ou de substituts du lait maternel, car il enregistre tout article alimenté à l'aide d'un biberon, y compris le lait maternel, eau, semi-solides, etc. | U78: Préparatoire, phase III et IV : enquête représentative de l’ANJE. Les phases I et II des enquêtes avec des informateurs clés et un échantillonnage opportuniste pour donner une indication d'ALERTE | V78: H2 Santé infantile, H4.2 Soins maternels et néonatals, W1 Promotion de l’hygiène, W2 Approvisionnement en eau
A79: Nutrition | B79: Non-clé | C79: N-026 | D79: N3 Prévention et contrôle des carences en micronutriments | E79: prévalence de carence en iode | F79: Concentration moyenne en iode urinaire (?g/L) chez les enfants de 6-12 ans | G79: Individuel | H79: Pourcentage | I79: Nombre total d’enfant âgés de 6-12 ans enquêtés | J79: Concentration moyenne en iode urinaire (?g/L) chez les enfants de 6-12 ans | K79: Zone géographique, âge | L79: Oui | M79: Base de référence | N79: Non | O79: Sécurité alimentaire et nutrition 4.1.1 | P79: Pour les enfants de moins de 5 ans, signification de la Santé Publique si <100µg/l mais inconnue pour les enfants de 6-12 ans (réf. : OMS, UNICEF, Conseil International de lutte des TCI 2007) | Q79: Préparatoire | R79: Une concentration moyenne en iode urinaire dans une population de < 100 ?g/l indique que l’apport en iode est insuffisant. Méthode de mesure non-invasive, le coût des tests d'échantillons de spoturine est abordable. Les enfants d'âge scolaire de 6-12 ans peuvent être facilement testés dans le cadre d'enquêtes de population. | T79: Directives de l’OMS : apps.who.int/iris/bitstream/10665/85972/1/WHO_NMH_NHD_EPG_13.1_eng.pdf ; Selon l'OMS, l'idéal serait d'évaluer également les femmes enceintes et allaitantes | U79: Données primaires - Enquêtes nationales, études locales, données auxiliaires - VMNIS | V79: F1 Aide alimentaire, F6 Disponibilité, H2 Santé infantile, H4.2 Soins maternels et néonatals, H5 Maladies non transmissibles et santé mentale
A80: Nutrition | B80: Non-clé | C80: N-027 | D80: N1 Prévention et gestion de la malnutrition aiguë | E80: Morbidité infantile | F80: Proportion d'enfants de 0-59 mois dont le soignant a déclaré une maladie au cours des deux semaines précédentes | G80: Individuel | H80: Pourcentage | I80: Nombre total d’enfant âgés de 0-59 mois enquêtés | J80: Nombre d'enfants de 0-59 mois dont le soignant a déclaré une maladie au cours des deux semaines précédentes | K80: Zone géographique | L80: Oui | M80: Base de référence | N80: Non | P80: Absence de seuil | Q80: préparatoire ; Phase I et phase II ; phase II et IV | R80: données d’enquête | T80: Cette information peut être disponible par le biais du Cluster Santé mais les enquêtes sur la nutrition peuvent fournir des informations représentatives actualisées. | U80: Enquêtes SMART, systèmes d’alerte précoce des maladies | V80: H1 Services cliniques généraux et soins de traumatologie essentiels, H2 Santé infantile, H3 Maladies transmissibles H4.2 Soins maternels et néonatals, W1 Promotion de l’hygiène, W2 Approvisionnement en eau, W3 Évacuation des excréments
A81: Nutrition | B81: Non-clé | C81: N-028 | D81: N1 Prévention et gestion de la malnutrition aiguë | E81: Mortalité des moins de cinq ans | F81: Taux de mortalité parmi les enfants de moins de 5 ans dans la population | G81: Individuel | H81: Décès pour 10 000 enfants de moins de 5 ans/jour | I81: Nombre total d'enfants de moins de 5 ans multiplié par le nombre de jours sur une tranche de plus de 10 000 personnes | J81: Nombre total de décès d’enfants de moins de 5 ans au cours de la période | K81: Zone géographique | L81: Oui | M81: Base de référence | N81: Non | O81: Action sanitaire 2.2.1 | P81: Consulter le Sphere (http://www.spherehandbook.org/en/essential-health-services-standard-1-prioritising-health-services/) pour les seuils d’urgences des différentes régions. Lorsque le taux de base de référence est inconnu ou d'une validité douteuse, les agences doivent s'efforcer de maintenir le taux de mortalité chez les enfants de moins de 5 ans en dessous de 2/10 000 par jour | Q81: préparatoire ; Phase I, II, III et IV. | R81: Le taux de mortalité des moins de cinq ans tel que défini ici n'est pas à proprement parler un taux (c-à-d. le nombre de décès divisé par le nombre de personnes à risque pendant une certaine période de temps) mais une probabilité de décès dérivée d'une table de survie et exprimée en taux pour 1 000 naissances vivantes | T81: Ces données doivent être tirées du Cluster Santé ou d'enquêtes spécifiques sur la mortalité et des enquêtes représentatives. Un indicateur peut être calculé grâce aux dossiers des établissements de santé et des communautés dans les premières phases de l'urgence. Le taux de mortalité des enfants de moins de 5 ans est utilisé pour évaluer la survie de l’enfant. Il reflète également les conditions sociales, économiques et environnementales dans lesquelles les enfants (et les autres membres de la communauté) vivent, y compris leurs soins de santé. Comme les données sur l'incidence et la prévalence des maladies (données de morbidité) ne sont souvent pas disponibles, les taux de mortalité sont souvent utilisés pour identifier les populations vulnérables. Le taux de mortalité des moins de cinq ans est un indicateur de l’OMD | U81: Enquête représentative et/ou à partir des dossiers des établissements de santé/de la communauté | V81: H1 Services cliniques généraux et soins de traumatologie essentiels, H2 Santé infantile, W1 Promotion de l’hygiène, W2 Approvisionnement en eau, W3 Évacuation des excréments
A82: Nutrition | B82: Non-clé | C82: N-002 | D82: N1 Prévention et gestion de la malnutrition aiguë | E82: Malnutrition aiguë chez les nourrissons de moins de 6 mois | F82: prévalence (%) de malnutrition aiguë globale chez les nourrissons de moins de 6 mois basée sur la présence d’un œdème bilatéral aiguë et/ou d'un rapport poids/taille inférieur à -2 écarts-type de la médiane de la population de référence (OMS, 2006) | G82: Individuel | H82: Pourcentage | I82: Nombre total d’enfant âgés de moins de 6 mois enquêtés | J82: Nombre de nourrissons âgés de 0-5 mois répondant aux critères concernant la malnutrition aiguë globale | K82: Zone géographique, sexe | L82: Oui | M82: Base de référence, Résultat | N82: Oui | P82: SEUIL DE L’OMS 854. Classification de la sévérité : 5,10, 15 % | Q82: préparatoire ; Phase III et IV | R82: Doit être basé sur les résultats d'une enquête anthropométrique méthodologiquement solide sur la nutrition et doit inclure des intervalles de confiance | T82: Remarque : les taux P/T et PB ne mesurent pas les mêmes choses et ne sont pas comparables. Les données sur le taux de malnutrition aiguë doivent être comparées par sexe afin d’identifier toute discrimination spécifique à laquelle les nourrissons filles ou garçons pourraient être confrontés dans l'accès à la nutrition. Dans ce cas, il est important de faire la différence entre le pourcentage de nourrissons filles et le pourcentage de nourrissons garçons souffrant de malnutrition. Le programme devrait s'attaquer à ces écarts en procédant à une analyse sexospécifique des défis spécifiques auxquels le groupe défavorisé est confronté, y compris une analyse des habitudes et croyances socioculturelles sur l’allaitement qui pourraient avoir un impact différent sur le bien-être nutritionnel des bébés filles et garçons. | U82: Enquêtes démographiques avec méthodes d’échantillonnage représentatives (MICS, EDS, SMART) | V82: F1 Aide alimentaire, H2 Santé infantile, H4.2 Soins maternels et néonatals, W1 Promotion de l’hygiène, W2 Approvisionnement en eau, W3 Évacuation des excréments
A83: Nutrition | B83: Non-clé | C83: N-006 | D83: N1 Prévention et gestion de la malnutrition aiguë | E83: Malnutrition aiguë modérée (MAM) chez les nourrissons 0-5 mois | F83: prévalence (%) de malnutrition aiguë modérée chez les nourrissons de moins de 6 mois en fonction d’un rapport poids/taille inférieur à -2 et supérieur ou égal à -3 écarts-type de la médiane de la population de référence (OMS, 2006) | G83: Individuel | H83: Pourcentage | I83: Nombre total d’enfant âgés de moins de 6 mois enquêtés | J83: Nombre d’enfants âgés de 6 mois répondant aux critères concernant la malnutrition aiguë modérée | K83: Zone géographique, sexe | L83: Oui | M83: Base de référence, Résultat | N83: Oui | P83: Pas de seuil standard de l'OMS ; ce seuil doit être interprété en tenant compte d'autres indicateurs, notamment la morbidité, la mortalité et la proportion de la MAG. | Q83: préparatoire ; Phase III et IV | R83: Doit être basé sur les résultats d'une enquête anthropométrique méthodologiquement solide sur la nutrition et doit inclure des intervalles de confiance | S83: Prévalence facile à obtenir en soustrayant la proportion de la MAS de la proportion de la MAG | T83: Remarque : les taux P/T et PB ne mesurent pas les mêmes choses et ne sont pas comparables. Les données sur le taux de malnutrition aiguë modérée doivent être comparées par sexe afin d’identifier toute discrimination spécifique à laquelle les filles ou les garçons pourraient être confrontés dans l'accès à la nutrition. Dans ce cas, il est important de faire la différence entre le pourcentage de nourrissons filles et le pourcentage de nourrissons garçons souffrant de malnutrition. Le programme devrait s'attaquer à ces écarts en procédant à une analyse sexospécifique des défis spécifiques auxquels le groupe défavorisé est confronté, y compris une analyse des habitudes et croyances socioculturelles sur l’allaitement qui pourraient avoir un impact différent sur le bien-être nutritionnel des bébés filles et garçons. | U83: Enquêtes démographiques avec méthodes d’échantillonnage représentatives (MICS, EDS, SMART) | V83: F1 Aide alimentaire, H2 Santé infantile, H4.2 Soins maternels et néonatals, W1 Promotion de l’hygiène, W2 Approvisionnement en eau, W3 Évacuation des excréments
A84: Nutrition | B84: Non-clé | C84: N-004 | D84: N1 Prévention et gestion de la malnutrition aiguë | E84: Malnutrition aiguë sévère (MAS) chez les nourrissons 0-5 mois | F84: prévalence (%) de malnutrition aiguë globale chez les nourrissons de moins de 6 mois basée sur la présence d’un œdème bilatéral aiguë et d'un rapport poids/taille inférieur à -3 écarts-type de la médiane de la population de référence (OMS, 2006) | G84: Individuel | H84: Pourcentage | I84: Nombre total d’enfant de 0-5 mois enquêtés | J84: Nombre de nourrissons âgés de 0-5 mois répondant aux critères concernant la malnutrition aiguë sévère | K84: Zone géographique, sexe | L84: Oui | M84: Base de référence, Résultat | N84: Oui | P84: Pas de seuil standard de l'OMS ; ce seuil doit être interprété en tenant compte d'autres indicateurs, notamment la morbidité, la mortalité et la proportion de la MAG ; Référence : Normes OMS de croissance de l’enfant et identification de la malnutrition aiguë sévère chez les nourrissons et les enfants. Une déclaration conjointe par l’Organisation Mondiale de la Santé et le Fonds des Nations Unies pour l’enfance, 2009 | Q84: préparatoire ; Phase III et IV | R84: Doit être basé sur les résultats d'une enquête anthropométrique méthodologiquement solide sur la nutrition et doit inclure des intervalles de confiance | T84: Remarque : les taux P/T et PB ne mesurent pas les mêmes choses et ne sont pas comparables. Les données sur le taux de malnutrition aiguë sévère doivent être comparées par sexe afin d’identifier toute discrimination spécifique à laquelle les filles ou les garçons pourraient être confrontés dans l'accès à la nutrition. Dans ce cas, il est important de faire la différence entre le pourcentage de nourrissons filles et le pourcentage de nourrissons garçons souffrant de malnutrition. Le programme devrait s'attaquer à ces écarts en procédant à une analyse sexospécifique des défis spécifiques auxquels le groupe défavorisé est confronté, y compris une analyse des habitudes et croyances socioculturelles sur l’allaitement qui pourraient avoir un impact différent sur le bien-être nutritionnel des bébés filles et garçons. | U84: Enquêtes démographiques avec méthodes d’échantillonnage représentatives (MICS, EDS, SMART) | V84: F1 Aide alimentaire, H1 Services cliniques généraux et soins de traumatologie, H2 Santé infantile, H4.2 Soins maternels et néonatals, W1 Promotion de l’hygiène, W2 Approvisionnement en eau, W3 Évacuation des excréments
A85: Nutrition | B85: Non-clé | C85: N-012 | D85: N1 Prévention et gestion de la malnutrition aiguë | E85: Retard de croissance chez les femmes en âge de procréer | F85: prévalence (%) de femmes 15-49 ans qui ont une taille inférieure à 145 cm | G85: Individuel | H85: Pourcentage | I85: Nombre total de femmes de 15-49 ans étudiées | J85: Nombre de femmes âgées de 15-49 ans répondant aux critères concernant le retard de croissance | K85: Zone géographique | L85: Non | M85: Base de référence, Résultat | N85: Oui | Q85: préparatoire ; Phase III et IV | R85: Doit être basé sur les résultats d'une enquête anthropométrique méthodologiquement solide sur la nutrition et doit inclure des intervalles de confiance | U85: Enquêtes démographiques avec méthodes d’échantillonnage représentatives (MICS, EDS, SMART) | V85: F1 Aide alimentaire, F3 Accès à l’alimentation, F4 Accès aux revenus, F5 Accès au marché, F6 Disponibilité, F7 Utilisation, H1 Services cliniques généraux et soins de traumatologie essentiels, H2 Santé infantile, H4.2 Soins maternels et néonatals, W1 Promotion de l’hygiène, W2 Approvisionnement en eau, W4 Évacuation des excréments
A86: Nutrition | B86: Non-clé | C86: N-013 | D86: N1 Prévention et gestion de la malnutrition aiguë | E86: Sous-nutrition chez les adultes | F86: prévalence (%) d’adultes âgés de 19,1-59,9 ans avec un IMC inférieur à 17 kg/m2 et/ou ayant un œdème bilatéral aiguë | G86: Individuel | H86: Pourcentage | I86: Nombre total d’adultes âgés de 19,1-59,9 ans étudiés | J86: Nombre d’adultes âgés de 19,1-59,9 ans répondant aux critères concernant la sous-nutrition | K86: Zone géographique, âge, sexe | L86: Non | M86: Base de référence, Résultat | N86: Oui | P86: Classification du seuil de l’OMS 854 : maigreur légère (IMC = 17 - 18,49 kg/m2), maigreur modérée (IMC = 16 - 16,99 kg/m2) et maigreur sévère (IMC < 16 kg/m2). | Q86: Préparatoire et phase IV et au-delà | R86: Doit être basé sur les résultats d'une enquête anthropométrique méthodologiquement solide sur la nutrition et doit inclure des intervalles de confiance | T86: Les données anthropométriques doivent être interprétées avec une analyse contextuelle des risques nutritionnels associés pour la population en utilisant les causes sous-jacentes. Plus particulièrement, les données sur les taux de sous-malnutrition doivent être comparées par sexe afin d’identifier toute discrimination spécifique à laquelle les femmes adultes ou les hommes adultes pourraient être confrontés dans l'accès à la nutrition. Dans ce cas, il est important de faire la différence entre le pourcentage de femmes et le pourcentage d’hommes souffrant de sous-nutrition. Le programme devrait s'attaquer à ces écarts en procédant à une analyse sexospécifique des défis spécifiques auxquels le groupe défavorisé est confronté, y compris une analyse des habitudes et croyances socioculturelles qui pourraient avoir un impact différent sur le bien-être nutritionnel des femmes et des hommes. | U86: Enquêtes démographiques avec méthodes d’échantillonnage représentatives (MICS, EDS, SMART) | V86: F1 Aide alimentaire, F3 Accès à l'alimentation, F4 Accès aux revenus, F5 Accès au marché, F6 Disponibilité, F7 Utilisation, H3 Maladies transmissibles, H4.2 Soins maternels et néonatals, W1 Promotion de l’hygiène, W2 Approvisionnement en eau, W4 Lutte antivectorielle
A87: Nutrition | B87: Non-clé | C87: N-016 | D87: N1 Prévention et gestion de la malnutrition aiguë | E87: Fréquence minimale des repas pour les enfants 24-59 mois | F87: Proportion d’enfants 24-59 mois qui mangent 3 repas dans une journée ou plus | G87: Individuel | H87: Pourcentage | I87: Nombre total d’enfant de 24-59 mois enquêtés | J87: Nombre d’enfants de 24-59 mois qui mangent 3 repas dans une journée ou plus | K87: Zone géographique, âge, sexe | L87: Non | M87: Base de référence | N87: Non | Q87: préparatoire ; Phase I et phase II ; phase II et IV | R87: Utiliser l'indicateur de la tranche d'âge de 6-23 mois comme indicateur pour la tranche d'âge de 24-59 mois, et supposer que la tranche d'âge supérieure est plus défavorable. Il PEUT être un indicateur d'alerte important dans les premières phases d'une urgence | T87: L’indicateur utilisée pour l’ANJE pour la tranche d’âge de 6-23 mois en fonction de l’indicateur OMS. | U87: enquêtes : évaluations rapides ; | V87: F1 Aide alimentaire, F3 Accès à l’alimentation, F4 Accès aux revenus, F5 Accès au marché, F6 Disponibilité, F7 Utilisation, H2 Santé infantile, H4.2 Soins maternels et néonatals
A88: Nutrition | B88: Non-clé | C88: N-019 | D88: N3 Prévention et contrôle des carences en micronutriments | E88: niveau de risque des carences en micronutriments (élevé, moyen, faible) | F88: Évaluation qualitative du risque nutritionnel de carences courantes en micronutriments (anémie, carence en iode, carence en vitamine A (cécité nocturne), scorbut, béribéri, carence en vitamine D) sur la base d'une analyse des indicateurs composites sur les prévalences, l'analyse du régime alimentaire, la qualité de l'eau et les maladies diarrhéiques, la recherche de cas | G88: Communauté | H88: élevé, moyen, faible | I88: N/C | J88: N/C | K88: Par carence ; zone géographique, sexe, groupes potentiellement vulnérables : femmes enceintes et allaitantes, enfants de 6-59 mois, autres groupes potentiellement vulnérables | L88: Oui | M88: Base de référence | N88: Non | P88: SPHERE 2011, annexe 5 - seuils (http://www.spherehandbook.org/en/appendix-15/) | Q88: Préparatoire ; Phase II, III et IV | R88: Dresser la liste des prévalences du statut des micronutriments connus pour toutes les vitamines et minéraux et recueillir des informations supplémentaires sur le régime alimentaire, la qualité de l'eau et les maladies, afin d'évaluer la gravité du risque pour des groupes de population spécifiques | U88: Utiliser les données d’enquête ; estimation à partir du nombre de population affectées par type de groupes vulnérables | V88: F1 Aide alimentaire, F2 Aide aux moyens de subsistance, F3 Accès à l’alimentation, F4 Accès aux revenus, F5 Accès au marché, F6 Disponibilité, F7 Utilisation, H1 Services cliniques généraux et soins de traumatologie essentiels, H2 Santé infantile, H5 Maladies non transmissibles et santé mentale, (R) Reprise rapide, W1 Promotion de l’hygiène, W2 Approvisionnement en eau, W3 Évacuation des excréments
A89: Nutrition | B89: Non-clé | C89: N-020 | D89: N3 Prévention et contrôle des carences en micronutriments | E89: Couverture en vitamine A chez les enfants de 6 - 59 mois | F89: Proportion d’enfants de 6-59 mois ayant reçus de la vitamine A au cours des 6 derniers mois | G89: Individuel | H89: Pourcentage | I89: Nombre total d’enfant de 6-59 mois enquêtés | J89: Nombre d’enfants de 6-59 mois ayant reçu de la vitamine A au cours des 6 derniers mois (rappel de la mère ou vérification de la carte) | K89: Zone géographique, âge (6-11, 12-23 mois), sexe | L89: Oui | M89: Base de référence, Résultat | N89: Oui | O89: Action sanitaire 2.2.1 | P89: Objectif : 95 %. À l'issue de la campagne de vaccination contre la rougeole, au moins 95 % des enfants âgés de 6-59 mois ont reçu une dose appropriée de vitamine A | Q89: préparatoire ; Phase III et IV | T89: L'indicateur s'applique aux enfants vivant dans des milieux où la CVA est un problème de santé publique. L'OMS suit la recommandation de la GAVA et préconise l'administration de deux doses au cours de la dernière année. Dans le cas où il y aurait une différence importante, le programme devra s'attaquer à ces écarts en procédant à une analyse sexospécifique des défis spécifiques auxquels le groupe défavorisé est confronté, y compris une analyse des habitudes et croyances socioculturelles qui pourraient avoir un impact différent sur le bien-être nutritionnel des filles et des garçons. Il est important de prendre en compte des dates de la supplémentation effective en vitamine A pour avoir une indication du nombre d'enfants non couverts (de 0-5 mois) et qui devraient être inclus dans le nouveau programme de supplémentation. | U89: Enquêtes démographiques avec méthodes d’échantillonnage représentatives (MICS, EDS, SMART) | V89: F1 Aide alimentaire, F3 Accès à l’alimentation, F4 Accès aux revenus, F5 Accès au marché, F6 Disponibilité, F7 Utilisation, H1 Services cliniques généraux et soins de traumatologie essentiels, H2 Santé infantile, H5 Maladies non transmissibles et santé mentale
A90: Nutrition | B90: Non-clé | C90: N-021 | D90: N3 Prévention et contrôle des carences en micronutriments | E90: Taux de couverture de supplémentation en fer chez les enfants | F90: Proportion d'enfants âgés de 6-59 mois recevant des suppléments de micronutriments contenant du fer en quantité suffisante | G90: Individuel | H90: Pourcentage | I90: Nombre total d’enfant de 6-59 mois enquêtés | J90: Nombre d'enfants de 6-59 mois qui ont reçu des suppléments en micronutriments contenant du fer en quantité suffisante lors d'un de leurs repas de la veille | K90: Zone géographique, âge (6-24, 24-59 mois), sexe | L90: Non | M90: Base de référence, Résultat | N90: Oui | O90: Sécurité alimentaire et nutrition 4.1.1 | Q90: préparatoire ; Phase III et IV | U90: Enquêtes démographiques avec méthodes d’échantillonnage représentatives (MICS, EDS, SMART) | V90: F1 Aide alimentaire, F3 Accès à l’alimentation, F4 Accès aux revenus, F5 Accès au marché, F6 Disponibilité, F7 Utilisation, H1 Services cliniques généraux et soins de traumatologie essentiels, H2 Santé infantile, H5 Maladies non transmissibles et santé mentale
A91: Nutrition | B91: Non-clé | C91: N-022 | D91: N3 Prévention et contrôle des carences en micronutriments | E91: Supplémentation en fer et en acide folique chez femmes enceintes | F91: Proportion de femmes enceintes ayant reçues quotidiennement une supplémentation en fer et en acide folique dans les 6 mois précédent/pendant la grossesse | G91: Individuel | H91: Pourcentage | I91: Nombre total de femmes enceinte enquêtées | J91: Nombre de femmes enceintes qui ont acheté ou reçu quotidiennement une supplémentation en fer et en acide folique dans les 6 mois précédent/pendant la grossesse | K91: Zone géographique | L91: Oui | M91: Base de référence, Résultat | N91: Oui | O91: Sécurité alimentaire et nutrition 4.1.1 | Q91: préparatoire ; Phase III et IV | R91: Dans certains pays, la supplémentation en fer et acide folique est remplacée par des micronutriments multiples, c'est pourquoi, selon la situation, l'indicateur doit être remplacé par « a reçu une supplémentation en fer et en acide folique » ou « a reçu des suppléments de micronutriments multiples » | U91: Enquête démographique avec méthodes d’échantillonnage représentatives (MICS, DAH, SMART) | V91: F1 Aide alimentaire, F3 Accès à l’alimentation, F6 Disponibilité, H1 Services cliniques généraux et soins de traumatologie essentiels, H2 Santé infantile, H4.2 Soins maternels et néonatals
A92: Nutrition | B92: Non-clé | C92: N-023 | D92: N3 Prévention et contrôle des carences en micronutriments | E92: Consommation de sel iodé | F92: Proportion de ménages utilisant du sel correctement iodé dans les 6 mois précédent | G92: Ménages | H92: Pourcentage | I92: Nombre total de ménages enquêtés | J92: Nombre de ménages utilisant du sel correctement iodé (20-40 ppm) dans les 6 mois précédents | K92: Zone géographique | L92: Non | M92: Base de référence, Résultat | N92: Non | O92: Sécurité alimentaire et nutrition 4.1.1 | P92: L’indicateur doit être égal ou supérieur à 90Proportion de (référence ?) - Nombre de ménages utilisant du sel correctement iodé (20-40 ppm) dans les 6 mois précédent | Q92: préparatoire ; Phase III et IV | R92: Le sel correctement iodé est du sel contenant 15-40 ppm d’iode au niveau du ménage. Référence : Évaluation des troubles liés à la carence en iode et suivi de leur élimination : un guide pour les responsables de programmes. 3ème édition, OMS, 2008 | T92: L’utilisation de l'expression « utiliser » plutôt que « avoir consommé régulièrement dans les 6 mois précédents » sur la base des méthodes d'évaluation recommandées, qui consiste à mesurer la teneur en iode du sel dans les ménages au moment de l'évaluation et non à recueillir des données rétrospectives (car la teneur en iode du sel consommé ne peut être évaluée et de nombreuses personnes ne peuvent savoir si le sel est/a été iodé). Formulation alternative : « Proportion de ménages utilisant du sel correctement iodé » - voir les références. Apparemment, ce n'est pas un indicateur de sécurité alimentaire ; | V92: F1 Aide alimentaire, F6 Disponibilité, H2 Santé infantile, H5 Maladies non transmissibles et santé mentale
A93: Nutrition | B93: Non-clé | C93: N-024 | D93: N3 Prévention et contrôle des carences en micronutriments | E93: Prévalence de carence en vitamine A | F93: (1) Proportion d'enfants de moins de 5 ans présentant une carence subclinique en vitamine A (2) Proportion de femmes en âge de procréer présentant une carence clinique en vitamine A | G93: Individuel | H93: Pourcentage | I93: Nombre total d’enfant âgés de moins de cinq ans enquêtés ou nombre total de femmes en âge de procréer enquêtées | J93: Nombre d’enfants de moins de 5 ans avec une carence en vitamine A (valeurs en rétinol sérique <0.70µmol/l) ou proportion de femmes en âge de procréer ou de 15-49 ans) avec une carence en vitamine A (valeurs en rétinol sérique <0.70µmol/l) | K93: Zone géographique, garçons et filles de 0-59 mois, femmes en âge de procréer | L93: Oui | M93: Base de référence | N93: Non | O93: Sécurité alimentaire et nutrition 4.1.1 | P93: Importance pour la santé publique : <2 Proportion de Normal ; 2-9.9 Proportion de Faible ; 10-19.9 Proportion de Moyen ; >20 Proportion Élevé (réf : OMS 1996) | Q93: Préparatoire | R93: POUR LES ENFANTS - Le taux de rétinol sérique ou plasmatique mesuré dans des échantillons capillaires ou veineux est un test invasif qui coûte cher s’il est mesuré par HPLC. De nouvelles méthodes pour les tâches de sang séché avec la méthode capillaire sont en train d'émerger. POUR LES FEMMES - Les informations peuvent être vérifiées verbalement. Étant donné que la question vise un sous-ensemble spécifique de femmes, l'indicateur ne parvient pas à saisir toute la gamme des femmes en âge de procréer. Il est nécessaire d'uniformiser la formulation de la question. | T93: Directive de l’OMS : who.int/vmnis/retinol.pdf | U93: Données primaires - Enquêtes nationales, études locales, EDS, MICS, données auxiliaires - VMNIS | V93: F1 Aide alimentaire, F3 Accès à l’alimentation, F4 Accès aux revenus, F5 Accès au marché, F6 Disponibilité, F7 Utilisation, H2 Santé infantile, H4.2 Soins maternels et néonatals, H5 Maladies non transmissibles et santé mentale
A94: Nutrition | B94: Non-clé | C94: N-018 | D94: N3 Prévention et contrôle des carences en micronutriments | E94: Diversité minimum alimentaire pour les enfants de 24-59 mois | F94: Proportion d’enfants de 24-59 mois qui ont reçus des aliments de 4 groupes ou plus d’aliments | G94: Individuel | H94: Pourcentage | I94: Nombre total d’enfant de 24-59 mois enquêtés | J94: Nombre d’enfants de 24-59 mois qui ont reçus des aliments des 4 groupes ou plus d’aliments suivants. | K94: Zone géographique, âge, sexe | L94: Non | M94: Base de référence | N94: Non | O94: Sécurité alimentaire et nutrition 4.1.1 | P94: Aucune norme identifiée, seul indicateur source de l’OMS | Q94: préparatoire ; Phase I et phase II ; phase II et IV | R94: Utiliser l'indicateur de la tranche d'âge de 6-23 mois comme indicateur pour la tranche d'âge de 24-59 mois, et supposer que la tranche d'âge supérieure est plus défavorable. Il PEUT être un indicateur d'alerte important dans les premières phases d'une urgence (l’OMS utilise un paramètre des dernières 24 heures) Les groupes d’aliments sont définis comme suit : (1) céréales, racines et tubercules (2) légumes et noix (3) produits laitiers (lait, yaourt, fromage) (4) aliments à base de chair (viande, poisson, volaille et foie/viandes fraîches) (5) œufs (6) fruits et légumes riches en vitamine A (7) autres fruits et légumes | T94: Indicateur utilisée pour l’ANJE pour la tranche d’âge de 6-23 mois en fonction de l’indicateur OMS | U94: enquêtes : évaluations rapides ; | V94: F1 Aide alimentaire, F3 Accès à l’alimentation, F4 Accès aux revenus, F5 Accès au marché, F6 Disponibilité, F7 Utilisation, H2 Santé infantile, H4.2 Soins maternels et néonatals
A95: Nutrition | B95: Non-clé | C95: N-029 | D95: N2 Alimentation des nourrissons et des jeunes enfants | E95: Initiation précoce de l’allaitement | F95: Proportion d’enfants de 0-23 mois qui ont été allaités dans la première heure après leur naissance. | G95: Individuel | H95: Pourcentage | I95: Nombre total de femmes qui ont eu une naissance vivante dans les X ans précédant l’enquête | J95: Nombre de femmes qui ont eu une naissance vivante dans les X ans précédant l’enquête qui ont allaité leur dernier nouveau-né dans la première heure après la naissance | K95: Zone géographique, sexe | L95: Non | M95: Base de référence | N95: Non | O95: Sécurité alimentaire et nutrition 4.2.1 | P95: Aucune norme : Une proportion <80 est généralement une priorité. Discuter des désignations élevées, moyennes et basses en groupe | Q95: Pour les phases III-IV, un indicateur adapté doit être utilisé lorsque la même méthodologie est utilisée. Le dénominateur doit représenter les nourrissons nés depuis le début de l'urgence. (Proportion d’enfants nés depuis le début de l’urgence qui ont été allaités dans la première heure après leur naissance). Au cours des phases 1 et 11, le dénominateur utilisé doit représenter les nourrissons nés depuis le début de l’urgence. Dans ces phases, un échantillonnage opportuniste sera nécessaire, par exemple dans les établissements fournissant des services obstétriques/support aux nouveau-nés. | R95: Indicateur clé de l’ANJE de l’OMS. | S95: Pour la phase préparatoire, l’indicateur clé de l’OMS sera utilisé comme base de référence où le dénominateur représente les enfants nés au cours 24 mois précédents (proportion d’enfants nés dans les 24 derniers mois qui ont été allaités dans la première heure après leur naissance). | T95: Note : Les données de l’EDS sont basées sur les trois ou cinq dernières années précédant l’enquête et les données du MICS sont basées sur les deux années précédant l’enquête | U95: Préparatoire, phase III et IV : enquête représentative de l’ANJE. Les phases I et II utilisent des enquêtes avec des informateurs clés et un échantillonnage opportuniste pour donner une indication d'ALERTE | V95: H2 Santé infantile, H4.2 Soins maternels et néonatals, (R) Reprise rapide
A96: Nutrition | B96: Non-clé | C96: N-036 | D96: N2 Alimentation des nourrissons et des jeunes enfants | E96: Fréquence minimale des repas | F96: Proportion d’enfants de 6-23 mois qui ont reçu des aliments solides, semi-solides ou mous le nombre minimum de fois ou plus | G96: Individuel | H96: Pourcentage | I96: Nombre total d’enfant de 6-23 mois enquêtés | J96: Nombre d’enfants de 6-23 mois qui ont reçu des aliments solides, semi-solides ou mous le nombre minimum de fois ou plus | K96: Zone géographique, sexe | L96: Non | M96: Base de référence, Résultat | N96: Oui | O96: Sécurité alimentaire et nutrition 4.2.2 | P96: Aucune norme : Une proportion <80 est généralement une priorité. Discuter des désignations élevées, moyennes et basses en groupe | Q96: préparatoire ; Phase III et IV | R96: Indicateur clé de l’ANJE de l’OMS | U96: Enquête représentative de l’ANJE | V96: F3 Accès à l’alimentation, F4 Accès aux revenus, F5 Accès au marché, F6 Disponibilité, F7 Utilisation, H2 Santé infantile
A97: Nutrition | B97: Non-clé | C97: N-038 | D97: N2 Alimentation des nourrissons et des jeunes enfants | E97: Introduction d’aliments solides, semi-solides ou mous | F97: Proportion d’enfants de 6-8 mois qui ont reçu des aliments solides, semi-solides ou mous durant le jour précédent | G97: Individuel | H97: Pourcentage | I97: Nombre total de nourrissons de 5-8 mois enquêtés | J97: Nombre de nourrissons de 5-8 mois qui ont reçu des aliments solides, semi-solides ou mous durant le jour précédent | K97: Zone géographique, sexe | L97: Non | M97: Base de référence, Résultat | N97: Oui | P97: Aucune norme : Une proportion <80 est généralement une priorité. Discuter des désignations élevées, moyennes et basses en groupe | Q97: préparatoire ; Phase III et IV | R97: Indicateur clé de l’ANJE de l’OMS. Besoin d'orientation sur la taille de l’échantillon | U97: Enquête représentative de l’ANJE | V97: F3 Accès à l’alimentation, F4 Accès aux revenus, F5 Accès au marché, F6 Disponibilité, F7 Utilisation, H2 Santé infantile
A98: Nutrition | B98: Non-clé | C98: N-039 | D98: N2 Alimentation des nourrissons et des jeunes enfants | E98: Non allaité | F98: Proportion d’enfants de 0<12 mois et de 12<24 mois qui n’ont pas été allaité | G98: Individuel | H98: Pourcentage | I98: Nombre total d’enfant de 0<12 mois et de 12<24 mois enquêtés | J98: Nombre d’enfants de 0-12 mois et de 12-24 mois qui n’ont pas été allaité | K98: Zone géographique ; 0-<12 mois, 12-<24 mois, sexe | L98: Oui | M98: Base de référence, Résultat | N98: Oui | Q98: Calculer cet indicateur en fonction des données normalisées collectées. Dans les phases 1 et 11, une indication de la proportion de nourrissons non allaités au sein devrait être estimée sur la base d'enquêtes avec des informateurs clés et d'un échantillonnage opportuniste. | R98: Ce n’est pas un indicateur standard. Toutefois, il est possible de calculer cet indicateur en utilisant les données normalisées collectées pour produire les indicateurs clé de l’ANJE de l’OMS. | S98: Préparatoire : calculer cet indicateur en fonction des données normalisées collectées. Dans les phases 1 et 11, une indication de la proportion de nourrissons non allaités au sein devrait être estimée sur la base d'enquêtes avec des informateurs clés et d'un échantillonnage opportuniste. | T98: Il est nécessaire d'aborder cette question avec l'OMS pour voir comment nous pourrions en faire un indicateur de référence à utiliser dans les situations d'urgence. | U98: Préparatoire ; Phase 111 et IV ; Indicateur produit à partir des données collectées auprès des MICS/de l’EDS Les phases I et II utiliseront des enquêtes avec des informateurs clés et un échantillonnage opportuniste pour donner une indication d'ALERTE | V98: H2 Santé infantile, H4.2 Soins maternels et néonatals, W1 Promotion de l’hygiène, W2 Approvisionnement en eau
A101: Registro de indicadores (destacados los que se utilizan para la planificación de respuestas para el PNH y el PRH)
A102: Clústeres globales | B102: PNH y PRH | C102: Código | D102: Subdominio | E102: Título | F102: Descripción | G102: Unidad de medida | H102: Descripción de la unidad | I102: Denominador | J102: Numerador | K102: Desglose | L102: Indicador esencial | M102: Tipos | N102: Supervisión de la respuesta | O102: Niveles | P102: Umbrales | Q102: Orientaciones para las fases | R102: Orientaciones generales | S102: Orientaciones para situaciones previas a una crisis / val. de referencia | T102: Comentarios | U102: Fuentes de los datos | V102: Cruce de etiquetas entre sectores
A103: Nutrición | B103: Resultado - principal | C103: N-001 | D103: N1 Prevención y manejo de la desnutrición aguda | E103: Desnutrición aguda global (DAG) | F103: prevalencia (%) de desnutrición aguda global en niños/as de entre 6 y 59 meses en función de la presencia de edema con fóvea bilateral o PTZ inferior a -2 desviaciones estándar con respeto a la mediana de la población estándar (OMS, 2006) | G103: Individual | H103: Porcentaje | I103: Número total de niños/as de entre 6 y 59 meses encuestados | J103: Número de niños/as de entre 6 y 59 meses que cumplen los criterios de desnutrición aguda global | K103: Zona geográfica, edad, sexo | L103: Sí | M103: Referencia, Resultado | N103: Sí | P103: OMS, serie de informes técnicos 854. Clasificación de la gravedad: 5, 10, 15 % | Q103: preparatoria; Fases III y IV | R103: Debe basarse en una encuesta sobre nutrición antropométrica que siga una metodología sólida en la que se encuentren e incluyan intervalos de confianza | T103: Recuerde que el PTZ y el MUAC no miden las mismas cosas, por lo que no se pueden comparar. Los datos sobre la tasa de desnutrición global deben compararse por sexo para poder detectar discriminaciones concretas a las que puedan enfrentarse las niñas o los niños a la hora de alimentarse. En caso de haber una diferencia significativa entre el porcentaje de niñas y el porcentaje de niños con desnutrición, el programa debe actuar contra estas brechas realizando un análisis de género de los retos específicos para el grupo en desventaja que esté experimentado desigualdad a la hora de acceder a los servicios de nutrición, incluido el análisis de las costumbres y creencias socioculturales que puedan afectar de forma distinta al bienestar nutricional de las niñas y de los niños. | U103: Encuestas sobre población con métodos de muestreo representativo (MICS, DHS, SMART) | V103: F1 Asistencia alimenticia, H2 Salud infantil, H4.2 Cuidados maternos y del recién nacido, W1 Fomento de la higiene, W2 Suministro de agua, W3 Evacuación de excrementos
A104: Nutrición | B104: Resultado - principal | C104: N-005 | D104: N1 Prevención y manejo de la desnutrición aguda | E104: Desnutrición aguda moderada (DAM) | F104: prevalencia (%) de desnutrición aguda moderada en niños/as de entre 6 y 59 meses en función de la presencia de PTZ inferiores a -2 o iguales o superiores a -3 desviaciones estándar con respecto a la mediana de la población estándar (OMS, 2006) | G104: Individual | H104: Porcentaje | I104: Número total de niños/as de entre 6 y 59 meses encuestados | J104: Número de niños/as de entre 6 y 59 meses que cumplen los criterios de desnutrición aguda moderada | K104: Zona geográfica, edad, sexo | L104: Sí | M104: Referencia, Resultado | N104: Sí | P104: Sin umbrales estándares de la OMS; este valor de ref. de indicador debe interpretarse en relación de otros indicadores, entre los que se incluyen la morbilidad, la mortalidad y la proporción de DAG | Q104: preparatoria; Fases III y IV | R104: Debe basarse en una encuesta sobre nutrición antropométrica que siga una metodología sólida en la que se encuentren e incluyan intervalos de confianza | S104: Prevalencia fácil de derivar restando la DAS de la DAG | T104: Recuerde que el PTZ y el MUAC no miden las mismas cosas, por lo que no se pueden comparar. Los datos sobre la prevalencia de desnutrición aguda moderada deben compararse por sexo para poder detectar discriminaciones concretas a las que puedan enfrentarse las niñas o los niños a la hora de alimentarse. En caso de haber una diferencia significativa entre el porcentaje de niñas y el porcentaje de niños con desnutrición, el programa debe actuar contra estas brechas realizando un análisis de género de los retos específicos para el grupo en desventaja que esté experimentado desigualdad a la hora de acceder a los servicios de nutrición, incluido el análisis de las costumbres y creencias socioculturales que puedan afectar de forma distinta al bienestar nutricional de las niñas y de los niños. | U104: Encuestas sobre población con métodos de muestreo representativo (MICS, DHS, SMART) | V104: F1 Asistencia alimenticia, H2 Salud infantil, H4.2 Cuidados maternos y del recién nacido, W1 Fomento de la higiene, W2 Suministro de agua, W3 Evacuación de excrementos
A105: Nutrición | B105: Resultado - principal | C105: N-003 | D105: N1 Prevención y manejo de la desnutrición aguda | E105: Desnutrición aguda severa (SAM) | F105: prevalencia (%) de desnutrición aguda severa en niños/as de entre 6 y 59 meses en función de la presencia de edema con fóvea bilateral o PTZ inferiores a -3 desviaciones estándar con respecto a la mediana de la población estándar (OMS, 2006) | G105: Individual | H105: Porcentaje | I105: Número total de niños/as de entre 6 y 59 meses encuestados | J105: Número de niños/as de entre 6 y 59 meses que cumplen los criterios de desnutrición aguda severa | K105: Zona geográfica, edad, sexo | L105: Sí | M105: Referencia, Resultado | N105: Sí | P105: Sin umbrales estándares de la OMS; este valor de ref. de indicador debe interpretarse en relación de otros indicadores, entre los que se incluyen la morbilidad, la mortalidad y la proporción de DAG; Referencia: Estándares de crecimiento infantil de la OMS y la identificación de desnutrición aguda severa en lactantes y niños/as. Una declaración conjunta de la Organización Mundial de la Salud y el Fondo de las Naciones Unidas para la Infancia, 2009. | Q105: preparatoria; Fases III y IV | R105: Debe basarse en una encuesta sobre nutrición antropométrica que siga una metodología sólida en la que se encuentren e incluyan intervalos de confianza | T105: Recuerde que el PTZ y el MUAC no miden las mismas cosas, por lo que no se pueden comparar. Los datos sobre la prevalencia de desnutrición aguda severa deben compararse por sexo para poder detectar discriminaciones concretas a las que puedan enfrentarse las niñas o los niños a la hora de alimentarse. En caso de haber una diferencia significativa entre el porcentaje de niñas y el porcentaje de niños con desnutrición, el programa debe actuar contra estas brechas realizando un análisis de género de los retos específicos para el grupo en desventaja que esté experimentado desigualdad a la hora de acceder a los servicios de nutrición, incluido el análisis de las costumbres y creencias socioculturales que puedan afectar de forma distinta al bienestar nutricional de las niñas y de los niños. | U105: Encuestas sobre población con métodos de muestreo representativo (MICS, DHS, SMART) | V105: F1 Asistencia alimenticia, H1 Servicios clínicos generales y cuidados esenciales en casos de traumatismo, H2 Salud infantil, H4.2 Cuidados maternos y del recién nacido, W1 Fomento de la higiene, W2 Suministro de agua, W3 Evacuación de excrementos
A106: Nutrición | B106: Resultado - principal | C106: N-008 | D106: N1 Prevención y manejo de la desnutrición aguda | E106: Desnutrición aguda según el MUAC y el edema | F106: prevalencia (%) de niños/as de entre 6 y 59 meses con un MUAC inferior a los 125 mm o con edema con fóvea bilateral | G106: Individual | H106: Porcentaje | I106: Número total de niños/as de entre 6 y 59 meses encuestados | J106: Número de niños/as de entre 6 y 59 meses que cumplen los criterios de emaciación según el MUAC | K106: Zona geográfica, edad, sexo | L106: Sí | M106: Referencia, Resultado | N106: Sí | P106: Estándares de crecimiento infantil de la OMS y la identificación de desnutrición aguda severa en lactantes y niños/as. Una declaración conjunta de la Organización Mundial de la Salud y el Fondo de las Naciones Unidas para la Infancia, 2009. | Q106: Fases I,II; añadida a la Fases III, IV de la encuesta | R106: Como alternativa, cuando exista la posibilidad de utilizar encuestas representativas, una evaluación rápida sobre nutrición con un número menor de niños/as puede dar una idea de la situación, pero estos resultados de la evaluación rápida sobre nutrición con un menor número de niños/as deben tratarse con cuidado, y NO deben presentarse como prevalencia, sino como número de niños/as | T106: Una buena práctica consiste en desglosar los casos de edema; sin embargo, existe cierta preocupación la exactitud y la precisión | U106: Encuestas sobre población con métodos de muestreo representativo (MICS, DHS, SMART) y evaluación rápida sobre nutrición | V106: F1 Asistencia alimenticia, F3 Acceso a los alimentos, F5 Acceso al mercado, F7 Utilización, H2 Salud infantil, H4.2 Cuidados maternos y del recién nacido, W1 Fomento de la higiene, W2 Suministro de agua, W3 Evacuación de excrementos, W4 Control de vectores
A107: Nutrición | B107: Resultado - principal | C107: N-010 | D107: N1 Prevención y manejo de la desnutrición aguda | E107: Desnutrición aguda moderada según el MUAC | F107: prevalencia (%) niños/as de entre 6 y 59 meses con un MUAC inferior a los 125 mm, pero igual o superior a los 115 mm | G107: Individual | H107: Porcentaje | I107: Número total de niños/as de entre 6 y 59 meses encuestados | J107: Número de niños/as de entre 6 y 59 meses que cumplen los criterios de emaciación moderada según el MUAC | K107: Zona geográfica, edad, sexo | L107: Sí | M107: Referencia, Resultado | N107: Sí | Q107: Fases I,II; añadida a la Fases III, IV de la encuesta | R107: Como alternativa, cuando exista la posibilidad de utilizar encuestas representativas, una evaluación rápida sobre nutrición con un número menor de niños/as puede dar una idea de la situación, pero estos resultados de la evaluación rápida sobre nutrición con un menor número de niños/as deben tratarse con cuidado, y NO deben presentarse como prevalencia, sino como número de niños/as | S107: La prevalencia se deriva fácilmente restando la proporción de emaciación severa según un MUAC bajo de la emaciación según un MUAC bajo | U107: Encuestas sobre población con métodos de muestreo representativo (MICS, DHS, SMART) | V107: F1 Asistencia alimenticia, F3 Acceso a los alimentos, F5 Acceso al mercado, F7 Utilización, H2 Salud infantil, H4.2 Cuidados maternos y del recién nacido, W1 Fomento de la higiene, W2 Suministro de agua, W3 Evacuación de excrementos, W4 Control de vectores
A108: Nutrición | B108: Resultado - principal | C108: N-009 | D108: N1 Prevención y manejo de la desnutrición aguda | E108: Desnutrición aguda severa según el MUAC y el edema | F108: prevalencia (%) niños/as de entre 6 y 59 meses con un MUAC inferior a los 115 mm o con edema con fóvea bilateral | G108: Individual | H108: Porcentaje | I108: Número total de niños/as de entre 6 y 59 meses encuestados | J108: Número de niños/as de entre 6 y 59 meses que cumplen los criterios de emaciación severa según el MUAC | K108: Zona geográfica, edad, sexo | L108: Sí | M108: Referencia, Resultado | N108: Sí | P108: Estándares de crecimiento infantil de la OMS y la identificación de desnutrición aguda severa en lactantes y niños/as. Una declaración conjunta de la Organización Mundial de la Salud y el Fondo de las Naciones Unidas para la Infancia, 2009. | Q108: Fases I,II; añadida a la Fases III, IV de la encuesta | R108: Como alternativa, cuando exista la posibilidad de utilizar encuestas representativas, una evaluación rápida sobre nutrición con un número menor de niños/as puede dar una idea de la situación, pero estos resultados de la evaluación rápida sobre nutrición con un menor número de niños/as deben tratarse con cuidado, y NO deben presentarse como prevalencia, sino como número de niños/as | T108: Una buena práctica consiste en desglosar los casos de edema; sin embargo, existe cierta preocupación la exactitud y la precisión. | U108: Encuestas sobre población con métodos de muestreo representativo (MICS, DHS, SMART) y evaluación rápida sobre nutrición | V108: F1 Asistencia alimenticia, F3 Acceso a los alimentos, F5 Acceso al mercado, F7 Utilización, H1 Servicios clínicos generales y asistencia básica por traumatismo, H2 Salud infantil, H4.2 Cuidados para la madre y el recién nacido, W1 Fomento de la higiene, W2 Suministro de agua, W3 Evacuación de excrementos, W4 Control de vectores
A109: Nutrición | B109: Resultado - principal | C109: N-011 | D109: N1 Prevención y manejo de la desnutrición aguda | E109: Desnutrición aguda en mujeres embarazadas y lactantes | F109: prevalencia (%) MEL con un MUAC inferior a los 210-230 mm (Nota: según las fuentes, los países emplean distintos limites) | G109: Individual | H109: Porcentaje | I109: Número total de mujeres embarazadas y lactantes con lactantes de entre 0 y 5 meses encuestadas | J109: Número de mujeres embarazadas y lactantes con lactantes de entre 0 y 5 meses que cumplen los criterios de desnutrición aguda según el MUAC | K109: Zona geográfica | L109: Sí | M109: Referencia, Resultado | N109: Sí | Q109: Todas las fases | R109: NO se han acordado puntos de referencia internacionales para el MUAC de MEL. Por ello, los puntos de referencia de MUAC pueden variar de un país a otro. Si es posible y está disponible, utilizar la encuesta representativa; en caso contrario, realizar una evaluación rápida sobre nutrición con un número menor de MEL puede darle una idea general de la situación | T109: Definir e identificar a las MEL puede ser un asunto problemáticos; las encuestas SMART proporcionan datos para mujeres y niños/as, por lo que la definición de "lactante" debe aplicar a madres con lactantes de entre 0 y 5 meses; atención a la exclusión de mujeres en su primer embarazo | U109: Encuestas basadas en población con métodos de muestreo representativo (MICS, DHS, SMART) o evaluación rápida sobre nutrición | V109: F1 Asistencia alimenticia, F3 Acceso a los alimentos, F4 Acceso a ingresos, F5 Acceso al mercado, F6 Disponibilidad F7 Utilización, H1 Servicios clínicos generales y cuidados esenciales en casos de traumatismo, H2 Salud infantil, H4.2 Cuidados para la madre y el recién nacido, W1 Fomento de la higiene, W2 Suministro de agua, W4 Control de vectores
A110: Nutrición | B110: Resultado - principal / Factor contribuyente clave | C110: N-007 | D110: N1 Prevención y manejo de la desnutrición aguda | E110: Retraso del crecimiento infantil | F110: prevalencia (%) de desnutrición aguda global en niños/as de entre 0 y 59 meses en función de la TEZ inferior a -2 desviaciones estándar con respeto a la mediana de la población estándar (OMS, 2006) | G110: Individual | H110: Porcentaje | I110: Número total de niños/as de entre 0 y 59 meses encuestados | J110: Número de niños/as de entre 0 y 59 meses que cumplen los criterios de retraso del crecimiento | K110: Zona geográfica, edad, sexo | L110: Sí | M110: Referencia, Resultado | N110: Sí | P110: OMS, serie de informes técnicos 854. Clasificación de la gravedad: 20, 30, 40 % | Q110: preparatoria; Fases III y IV | R110: Debe basarse en una encuesta sobre nutrición antropométrica que siga una metodología sólida en la que se encuentren e incluyan intervalos de confianza | S110: El objetivo debe ser evaluar el retraso del crecimiento en todo el grupo etario de 0 a 59 meses | T110: Debe hacerse un desglose por sexo y grupo etario, y los resultados deben analizarse. Nota: si las encuestas realizadas incluyen el grupo de entre 0 y 59, utilice este grupo etario; en caso contrario, si la encuesta incluye el grupo de entre 6 y 59, se puede usar este otro grupo de entre 6 y 59. Idealmente, la proporción de debe ajustarse para el grupo de entre 0 y 59 meses) | U110: Encuestas sobre población con métodos de muestreo representativo (MICS, DHS, SMART) | V110: F1 Asistencia alimenticia, F2 Asistencia a medios de vida, F3 Acceso a los alimentos, F4 Acceso a los ingresos, H2 Salud infantil, H4.2 Cuidados para la madre y l recién nacido, W1 Fomento de la higiene, W2 Suministro de agua, W3 Evacuación de excrementos, W4 Control de vectores
A111: Nutrición | B111: Principal - Factor contribuyente clave | C111: N-030 | D111: N2 Alimentación de lactantes y niños/as pequeños/as | E111: Lactancia materna exclusiva en menores de 6 meses | F111: Proporción de lactantes de entre 0 y 5 meses que han sido amamantados exclusivamente | G111: Individual | H111: Porcentaje | I111: Número total de lactantes de entre 0 y 5 meses encuestados | J111: Lactantes de entre 0 y 5 meses que fueron amamantados exclusivamente el día anterior | K111: Zona geográfica, sexo, edad: 0-1, 2-3, 4-5 meses, si está disponible | L111: Sí | M111: Referencia, Resultado | N111: Sí | O111: Seguridad alimenticia y nutrición 4.2.1 | P111: Sin estándar; Proporción de <80 es generalmente una prioridad. Comentar en grupo las denominaciones de umbral alto, medio y bajo | Q111: Para las Fases III y IV, debe medirse el indicador principal de la OMS. En las Fases 1 y 11, no es posible evaluar con exactitud la tasa de lactancia materna exclusiva en la población. La información de referencia y N-40 (no amamantados) serán información esencial en las Fases I y II. | R111: Indicador principal de ALNP de la OMS. | S111: Para la fase preparatoria, debe medirse el indicador principal de la OMS | T111: Debe prestarse atención a la posible diferencia en el amamantamiento de niños y niñas lactantes. En caso de haber diferencias, esto debe servir de base para los mensajes sobre educación en materia de nutrición. | U111: Preparatoria, Fases III y IV: ensayo de ALNP representativo. Fases I y II: utilizar las entrevistas con los informadores principales y el muestreo por conveniencia para dar una indicación de ALERTA | V111: H2 Salud infantil, H4.2 Cuidados para la madre y el recién nacido, (R) Recuperación temprana
A112: Nutrición | B112: Principal - Factor contribuyente clave | C112: N-040 | D112: N2 Alimentación de lactantes y niños/as pequeños/as | E112: Distribución de fórmula de lactantes, leche en polvo o líquida a la población afectada | F112: Distribución confirmada de fórmula de lactantes, leche en polvo o líquida a la población afectada | G112: Individual | H112: Sí/No | I112: ND | J112: ND | K112: Zona geográfica | L112: Sí | M112: Referencia, Resultado | N112: Sí | O112: Seguridad alimenticia y nutrición 4.2.1 | P112: tolerancia cero | Q112: Fases 1,11, 111 y IV. | R112: Se trata de una alerta de problemas. Todo tipo de distribución general de estos productos a la población afectada conlleva cierta preocupación, ya que existe el riesgo de efectos secundarios en lactantes y niños/as pequeños/as. | U112: Entrevistas con los informantes principales (incluyen logística y cualquier agencia que participe en la distribución, así como el personal experto en materia de salud y nutrición y las/los cuidadoras/es). Informes de distribución. Observaciones. | V112: H2 Salud infantil, H4.2 Cuidados para la madre y el recién nacido
A113: Nutrición | B113: Principal - Factor contribuyente clave | C113: N-041 | D113: N2 Alimentación de lactantes y niños/as pequeños/as | E113: Distribución inapropiada de fórmula de lactantes, leche en polvo o líquida a niños/as de entre 0 y 2 años | F113: Distribución confirmada de fórmula de lactantes, leche en polvo o líquida a niños/as de entre 0 y 2 años | G113: Comunidad | H113: Sí/No | I113: ND | J113: ND | K113: Zona geográfica | L113: Sí | M113: Referencia, Resultado | N113: Sí | O113: Seguridad alimenticia y nutrición 4.2.1 | P113: tolerancia cero | Q113: Fases 1,11, 111 y IV. | R113: Se trata de una alerta de problemas. La distribución inapropiada se da cuando la distribución no sigue las Orientaciones operativas sobre IFE a la hora de cumplir los criterios para la evaluación de la necesidad, del apoyo experto disponible, de la continuidad de suministros garantizada, del seguimiento individual, de la disponibilidad de almacenamiento y la preparación de instalaciones, de un etiquetado apropiado y de la supervisión de efectos secundarios en lactantes amamantados. | U113: Entrevistas con los informantes principales (incluyen logística y cualquier agencia que participe en la distribución, así como el personal experto en materia de salud y nutrición y las/los cuidadoras/es). Informes de distribución. Observaciones. | V113: H2 Salud infantil, H4.2 Cuidados para la madre y el recién nacido
A114: Nutrición | B114: Principal - Factor contribuyente clave | C114: N-035 | D114: N2 Alimentación de lactantes y niños/as pequeños/as | E114: Diversidad mínima de la dieta | F114: Proporción de niños/as de entre 6 y 23 meses que reciben alimentos de 4 o más grupos de alimentos | G114: Individual | H114: Porcentaje | I114: Número total de niños/as de entre 6 y 23 meses encuestados | J114: Número de niños/as de entre 6 y 23 meses que reciben alimentos de 4 o más grupos de alimentos | K114: Zona geográfica, sexo | L114: No | M114: Referencia, Resultado | N114: Sí | O114: Seguridad alimenticia y nutrición 4.2.2 | P114: Sin estándar; Proporción de <80 es generalmente una prioridad. Comentar en grupo las denominaciones de umbral alto, medio y bajo | Q114: preparatoria; Fases III y IV | R114: Este indicador está adaptado a partir del indicador principal de ALNP de la OMS para niños/as de entre 6 y 23 meses. | T114: Los datos deben compararse por sexo para poder detectar limitaciones concretas a las que puedan enfrentarse las niñas o los niños a la hora de acceder a una diversidad de la dieta. En caso de haber una diferencia significativa, el programa debe actuar contra estas brechas realizando un análisis de género de los retos específicos que esté experimentando el grupo en desventaja, incluido el análisis de las costumbres y creencias socioculturales (es decir, tabúes sobre la comida) que puedan afectar de forma distinta a la diversidad de la dieta entre las niñas y los niños. | U114: encuesta de ALNP representativa | V114: F3 Acceso a los alimentos, F4 Acceso a los ingresos, F5 Acceso al mercado, F6 Disponibilidad, F7 Utilización, H2 Salud infantil
A115: Nutrición | B115: Principal - Factor contribuyente clave | C115: N-037 | D115: N2 Alimentación de lactantes y niños/as pequeños/as | E115: Dieta mínima aceptable | F115: Proporción de niños/as de entre 6 y 23 meses que reciben una dieta mínima aceptable (aparte del amamantamiento) | G115: Individual | H115: Porcentaje | I115: Número total de niños/as de entre 6 y 23 meses encuestados | J115: Número de niños/as de entre 6 y 23 meses que reciben una dieta mínima aceptable | K115: Zona geográfica, sexo | L115: Sí | M115: Referencia, Resultado | N115: Sí | O115: Seguridad alimenticia y nutrición 4.2.2 | P115: Sin estándar; Proporción de <80 es generalmente una prioridad. Comentar en grupo las denominaciones de umbral alto, medio y bajo | Q115: preparatoria; Fases III y IV | R115: Indicador principal de ALNP de la OMS | U115: encuesta de ALNP representativa | V115: F3 Acceso a los alimentos, F4 Acceso a los ingresos, F5 Acceso al mercado, F6 Disponibilidad, F7 Utilización, H2 Salud infantil
A116: Nutrición | B116: Principal - Factor contribuyente clave | C116: N-024 | D116: N3 Prevención y control de las deficiencias de micronutrientes | E116: Prevalencia de anemia | F116: Proporción de M5 con una concentración de Hb de <11 g/dl | G116: Individual | H116: Porcentaje | I116: Número total de M5 encuestados | J116: Número de M5 con una concentración de Hb de <11 g/dl | K116: Zona geográfica | L116: No | M116: Referencia, Resultado | N116: Sí | O116: Seguridad alimenticia y nutrición 4.1.0 | P116: Importancia de la salud pública: <4,9 Proporción normal/adecuada; 5-19,9 Proporción baja; 20-39,9 Proporción media; >40 Proporción alta (ref: OMS 2001). | Q116: Preparatoria | R116: La prueba intraepidérmica para obtención de muestras en el dedo es fácil de realizar en el terreno. La prueba podría integrarse fácilmente en la visita habitual al centro sanitario o en las visitas prenatales para recopilar las de todas las mujeres en edad reproductiva. El coste de los equipos puede ser prohibitivo | T116: Orientaciones de la OMS: who.int/indicators/haemolobin.pdf; | U116: datos primarios: Encuestas nacionales, Estudios locales, DHS, MICS; datos secundarios: VMNIS | V116: F1 Asistencia alimenticia, F3 Acceso a los alimentos, F4 Acceso a ingresos, F5 Acceso al mercado, F6 Disponibilidad F7 Utilización, H2 Salud infantil, H4.2 Cuidados para la madre y el recién nacido, H5 Enfermedades no transmisibles y salud mental
A117: Nutrición | B117: Principal - Factor contribuyente clave | C117: N-025 | D117: N3 Prevención y control de las deficiencias de micronutrientes | E117: Prevalencia de anemia | F117: Proporción de ME con una concentración de Hb de <11 g/dl | G117: Individual | H117: Porcentaje | I117: Número total de mujeres embarazadas encuestadas | J117: Número de mujeres embarazadas con anemia (Hb <11 g/dl en mujeres embarazadas) | K117: Zona geográfica | L117: No | M117: Referencia, Resultado | N117: Sí | O117: Seguridad alimenticia y nutrición 4.1.1 | P117: Importancia de la salud pública: <4,9 Proporción normal/adecuada; 5-19,9 Proporción baja; 20-39,9 Proporción media; >40 Proporción alta (ref: OMS 2001). | Q117: Preparatoria | R117: La prueba intraepidérmica para obtención de muestras en el dedo es fácil de realizar en el terreno. La prueba podría integrarse fácilmente en la visita habitual al centro sanitario o en las visitas prenatales para recopilar las de todas las mujeres en edad reproductiva. El coste de los equipos puede ser prohibitivo | T117: Orientaciones de la OMS: who.int/indicators/haemolobin.pdf; | U117: datos primarios: Encuestas nacionales, Estudios locales, DHS, MICS; datos secundarios: VMNIS | V117: F1 Asistencia alimenticia, F3 Acceso a los alimentos, F4 Acceso a ingresos, F5 Acceso al mercado, F6 Disponibilidad F7 Utilización, H2 Salud infantil, H4.2 Cuidados para la madre y el recién nacido, H5 Enfermedades no transmisibles y salud mental
A118: Nutrición | B118: Principal - Factor contextual | C118: N-001 | D118: N4 Prevención y manejo de la doble carga de la desnutrición | E118: Prevalencia de sobrepeso | F118: prevalencia (%) de sobrepeso en niños/as de entre 6 y 59 meses en función de la TEZ superior a 2 desviaciones estándar con respecto a la mediana de la población estándar (OMS, 2006) | G118: Individual | H118: Porcentaje | I118: Número total de niños/as de entre 6 y 59 meses encuestados | J118: Número de niños/as de entre 6 y 59 meses que cumplen los criterios de sobrepeso | K118: Zona geográfica, edad, sexo | L118: Sí | M118: Referencia, Resultado | N118: Sí | P118: OMS, serie de informes técnicos 854. Clasificación de la gravedad: 5, 10, 15 % | R118: Debe basarse en una encuesta sobre nutrición antropométrica que siga una metodología sólida en la que se encuentren e incluyan intervalos de confianza | U118: Encuestas sobre población con métodos de muestreo representativo (MICS, DHS, SMART)
A119: Nutrición | B119: Principal - Factor contextual | C119: N-015 | D119: N1 Prevención y manejo de la desnutrición aguda | E119: Desnutrición aguda en personas mayores | F119: prevalencia (%) de personas mayores con un MUAC inferior a los 210 mm o que presenten un edema con fóvea bilateral | G119: Individual | H119: Porcentaje | I119: Número total de personas mayores encuestadas | J119: Número de personas mayores que cumplen los criterios de desnutrición aguda | K119: Zona geográfica, sexo: en preparatoria, Fases III y IV, desglosar por gravedad (<185 mm y entre 185 y 209 mm) | L119: Sí | M119: Referencia, Resultado | N119: Sí | P119: MUAC >210 mm: sin desnutrición; DAG: MUAC <210 mm DAS: MUAC <185 mm o edema (orientaciones de HelpAge 2013) | Q119: Tanto en la fase preparatoria como en las Fases I y II: utilizar métodos de evaluación rápida. En las Fases III y IV, organizar las encuestas con muestras mayores o usar el método de evaluación rápida, con un cuestionario de indicadores múltiples | R119: Los métodos de evaluación rápida se pueden usar en cualquier fase. En este cuestionario se deben incluir preguntas sobre el nivel socioeconómico, la salud, la seguridad alimenticia en el hogar, el agua y el saneamiento. | S119: En fase preparatoria: Recopilar datos demográficos de referencia sobre el porcentaje de personas de 50 años o más (o de 60 años o más) desglosado por sexo y grupos etarios de 5 años (50-59, 60-64, 65-69, 70-74, 75-80, 80 o más). Evaluar la seguridad alimenticia en el hogar. Organizar debates en grupos sobre temas específicos con personas mayores para hacerse una idea de cuál es su nivel de acceso a los alimentos. | T119: por personas mayores se entiende "personas de 60 años o más" (definición de la ONU), pero en algunos contextos (p. ej., Somalia, Etiopía, Sudán, etc.), pueden ser "de 50 años o más" (ya que es a esta edad cuando consideran que tienen una "edad avanzada"); Nota: el edema nutricional en personas mayores puede ser difícil de distinguir de otros tipos de edema, por lo que, si procede, se puede proponer separar el IMC y el edema. Los datos sobre la tasa de desnutrición aguda deben compararse por sexo para poder detectar discriminaciones concretas a las que puedan enfrentarse las mujeres y los hombres mayores a la hora de acceder a los servicios de nutrición. En caso de existir una diferencia significativa entre el porcentaje de mujeres mayores y el porcentaje de hombres mayores con desnutrición aguda, el programa debe actuar contra estas brechas realizando un análisis de género de los retos específicos que esté experimentando este grupo en desventaja, incluido el análisis de las costumbres y creencias socioculturales, así como de las redes de apoyo sociales y familiares de las que disponen y las cuales pueden diferir, con la consiguiente diferencia en el impacto que pueden tener en su bienestar nutricional. | U119: encuestas: evaluaciones rápidas | V119: F1 Asistencia alimenticia, F3 Acceso a los alimentos, F4 Acceso a ingresos, F5 Acceso al mercado, F6 Disponibilidad F7 Utilización, H3 Enfermedades transmisibles, W1 Fomento de la higiene, W2 Suministro de agua, W4 Control de vectores
A120: Nutrición | B120: Principal - Factor contextual | C120: N-014 | D120: N1 Prevención y manejo de la desnutrición aguda | E120: Desnutrición en personas de entre 5 y 19 años | F120: prevalencia (%) de niños/as y adolescentes de entre 5 y 19 años con puntuaciones zeta definidas como un IMC para la edad inferior a -2 desviaciones estándar con respecto a la mediana del IMC de una población de niños/as y adolescentes de referencia en las mismas franjas etarias o que muestren edema con fóvea bilateral | G120: Individual | H120: Porcentaje | I120: Número total de niños/as y adolescentes de entre 5 y 19 años encuestados | J120: Número de niños/as y adolescentes de entre 5 y 19 años que cumplen los criterios de desnutrición | K120: Zona geográfica, sexo | L120: No | M120: Referencia, Resultado | N120: Sí | P120: Referencia de la OMS, 2007 www.who.int/growthref. | Q120: Preparatoria y fase IV y más | R120: Debe basarse en una encuesta sobre nutrición antropométrica que siga una metodología sólida en la que se encuentren e incluyan intervalos de confianza | T120: De especial importancia para chicas adolescentes. Los datos sobre la tasa de desnutrición deben compararse por sexo para poder detectar discriminaciones concretas a las que puedan enfrentarse las niñas y los niños y las chicas y los chicos adolescentes a la hora de acceder a los servicios de nutrición. En caso de haber una diferencia significativa entre el porcentaje de niñas y el porcentaje de niños con desnutrición, el programa debe actuar contra estas brechas realizando un análisis de género de los retos específicos que esté experimentando el grupo en desventaja, incluido el análisis de las costumbres y creencias socioculturales que puedan afectar de forma distinta al bienestar nutricional de las niñas y de los niños. Nota: el indicador incluye de 5,0 a 19,0 años. Basado en la población de referencia de 2007 de la OMS | V120: F1 Asistencia alimenticia, F3 Acceso a los alimentos, F4 Acceso a ingresos, F5 Acceso al mercado, F6 Disponibilidad F7 Utilización, H3 Enfermedades transmisibles, H4.2 Cuidados para la madre y el recién nacido, W1 Fomento de la higiene, W2 Suministro de agua, W4 Control de vectores
A123: INDICADORES ADICIONALES A TENER EN CUENTA DADO EL CONTEXTO HUMANITARIO
A124: Nutrición | B124: No-principal | C124: N-031 | D124: N2 Alimentación de lactantes y niños/as pequeños/as | E124: Lactancia materna continuada al año y a los 2 años | F124: Proporción de niños/as de entre 12 y 15 meses y de entre 20 y 23 meses alimentados/as por amamantamiento | G124: Individual | H124: Porcentaje | I124: Número total de lactantes de entre 12 y 15 meses y número total de lactantes de entre 20 y 23 meses encuestados | J124: Lactantes de entre 12 y 15 meses y de entre 20 y 23 meses que están parcialmente amamantados | K124: Zona geográfica | L124: No | M124: Referencia, Resultado | N124: Sí | Q124: preparatoria; Fases III y IV | R124: El indicador principal de ALNP de la OMS notifica una lactancia materna continuada al año (1). En situaciones de emergencia, es importante supervisar también la tasa de lactancia materna continuada a los 2 años (indicador opcional de ALNP de la OMS), ya que los/as niños/as de entre 1 y 2 años también sufren un riesgo significativo de morbilidad y mortalidad incrementado si no han sido amamantados/as en este contexto. | T124: Debe prestarse atención a la posible diferencia en el amamantamiento de niños y niñas lactantes. En caso de haber diferencias, esto debe servir de base para los mensajes sobre educación en materia de nutrición. | U124: encuesta de ALNP representativa | V124: H2 Salud infantil, H4.2 Cuidados para la madre y el recién nacido, (R) Recuperación temprana
A125: Nutrición | B125: No-principal | C125: N-032 | D125: N2 Alimentación de lactantes y niños/as pequeños/as | E125: Niños/as amamantados alguna vez | F125: Proporción de niños/as nacidos/as en los últimos 24 meses que han sido amamantados/as alguna vez | G125: Individual | H125: Porcentaje | I125: Número total de lactantes nacidos en los últimos 23 meses en la zona de la encuesta | J125: Número de lactantes de entre 0 y 23 meses que han recibido amamantamiento alguna vez | K125: Zona geográfica | L125: Sí | M125: Referencia, Resultado | N125: Sí | P125: Sin estándar; Proporción de <80 es generalmente una prioridad. Comentar en grupo las denominaciones de umbral alto, medio y bajo | Q125: Para los cálculos en las Fases I-IV, debe utilizarse un indicador adaptado en el que el denominador debe ser lactantes nacidos desde el inicio de la situación de emergencia. En las Fases I y II serán necesarias las muestras por conveniencia, p. ej., superpuesto en el muestreo de salud reproductiva o cribado antropométrico o evaluación de la seguridad alimenticia. | R125: Indicador principal de ALNP de la OMS. | S125: Para la fase preparatoria, el indicador principal de la OMS debe utilizarse como referencia cuando el denominador sea lactantes nacidos en los últimos 24 meses. | U125: Preparatoria, Fases III y IV: ensayo de ALNP representativo. Fases I y II: utilizar las entrevistas con los informadores principales y el muestreo por conveniencia para dar una indicación de ALERTA | V125: H2 Salud infantil, H4.2 Cuidados para la madre y el recién nacido, (R) Recuperación temprana
A126: Nutrición | B126: No-principal | C126: N-033 | D126: N2 Alimentación de lactantes y niños/as pequeños/as | E126: Lactancia materna predominante en menores de 6 meses | F126: Proporción de lactantes de entre 0 y 5 meses amamantados de forma predominante | G126: Individual | H126: Porcentaje | I126: Número total de lactantes de entre 0 y 5 meses encuestados | J126: Número de lactantes de entre 0 y 5 meses amamantados de forma predominante | K126: Zona geográfica, sexo | L126: No | M126: Referencia | N126: No | P126: Sin estándar; Proporción de <80 es generalmente una prioridad. Comentar en grupo las denominaciones de umbral alto, medio y bajo | Q126: preparatoria; Fases III y IV | R126: Indicador opcional de ALNP de la OMS | T126: Debe prestarse atención a la posible diferencia en el amamantamiento de niños y niñas lactantes. En caso de haber diferencias, esto debe servir de base para los mensajes sobre educación en materia de nutrición. | U126: encuesta de ALNP representativa | V126: H2 Salud infantil, H4.2 Cuidados para la madre y el recién nacido, (R) Recuperación temprana
A127: Nutrición | B127: No-principal | C127: N-034 | D127: N2 Alimentación de lactantes y niños/as pequeños/as | E127: Lactancia artificial | F127: Proporción de niños/as de entre 0 y 23 meses que solo han recibido lactancia artificial | G127: Individual | H127: Porcentaje | I127: Número total de lactantes de entre 0 y 23 meses encuestados | J127: Número de lactantes de entre 0 y 23 meses alimentados por lactancia artificial | K127: Zona geográfica, sexo | L127: Sí | M127: Referencia, Resultado | N127: Sí | O127: Seguridad alimenticia y nutrición 4.2.4 | Q127: preparatoria; Fases I, II, III y IV | R127: Indicador opcional de ALNP de la OMS. Este indicador determina el uso de biberones que comportan un riesgo; no es un indicador de uso de fórmula de lactantes o de sustitutos de la leche materna, ya que registra sustancias suministradas a través de un biberón, las cuales incluyen leche materna, agua, semisólidos, etc.). | U127: Preparatoria, Fases III y IV: ensayo de ALNP representativo. Las Fases I y II utilizan las entrevistas con los informadores principales y el muestreo por conveniencia para dar una indicación de ALERTA | V127: H2 Salud infantil, H4.2 Cuidados para la madre y el recién nacido, W1 Fomento de la higiene, W2 Suministro de agua
A128: Nutrición | B128: No-principal | C128: N-026 | D128: N3 Prevención y control de las deficiencias de micronutrientes | E128: prevalencia de deficiencia de yodo | F128: Concentración mediana de yodo en la orina (µg/l) en niños/as de entre 6 y 12 años | G128: Individual | H128: Porcentaje | I128: Número total de niños/as de entre 6 y 12 años encuestados | J128: Concentración mediana de yodo en la orina (µg/l) en niños/as de entre 6 y 12 años | K128: Zona geográfica, edad | L128: Sí | M128: Referencia | N128: No | O128: Seguridad alimenticia y nutrición 4.1.1 | P128: En niños/as menores de 5, hay una importancia de la salud pública para <100 µg/l, pero no tengo constancia para los de entre 6 y 12 años (ref: OMS, UNICEF, ICCIDD 2007) | Q128: Preparatoria | R128: Una concentración mediana de yodo en orina en una población de < 100 µg/l indica que el aporte de yodo es insuficiente. Un método no invasivo de medición; el coste de las pruebas de muestras puntuales de orina es asequible. A los/as niños/as de entre 6 y 12 años en edad escolar se les puede hacer la prueba fácilmente en encuestas sobre población. | T128: Orientaciones de la OMS: apps.who.int/iris/bitstream/10665/85972/1/WHO_NMH_NHD_EPG_13.1_eng.pdf; Según la OMS, lo ideal es que también se evalúe a las MEL | U128: datos primarios: Encuestas nacionales, Estudios locales; datos secundarios: VMNIS | V128: F1 Asistencia alimenticia, F6 Disponibilidad, H2 Salud infantil, H4.2 Cuidados para la madre y el recién nacido, H5 Enfermedades no transmisibles y salud mental
A129: Nutrición | B129: No-principal | C129: N-027 | D129: N1 Prevención y manejo de la desnutrición aguda | E129: Morbilidad infantil | F129: Proporción de niños/as de entre 0 y 59 meses sobre los que la persona cuidadora ha informado de una enfermedad en las últimas 2 semanas | G129: Individual | H129: Porcentaje | I129: Número total de niños/as de entre 0 y 59 meses encuestados | J129: Número de niños/as de entre 0 y 59 meses sobre los que la persona cuidadora ha informado de una enfermedad en las últimas 2 semanas | K129: Zona geográfica | L129: Sí | M129: Referencia | N129: No | P129: Sin umbral | Q129: preparatoria; Fases I y II; Fases II y IV | R129: datos de la encuesta | T129: Esta información debe proporcionarla el Clúster de nutrición, pero las encuestas sobre nutrición pueden proporcionar información representativa actualizada | U129: Encuestas SMART, sistemas de aviso temprano de enfermedades | V129: H1 Servicios clínicos generales y cuidados esenciales en casos de traumatismo, H2 Salud infantil, H3 Enfermedades transmisibles, H4.2 Cuidados para la madre y el recién nacido, W1 Fomento de la higiene, W2 Suministro de agua, W3 Desecho de excremento
A130: Nutrición | B130: No-principal | C130: N-028 | D130: N1 Prevención y manejo de la desnutrición aguda | E130: Mortalidad en M5 | F130: La tasa de mortalidad en M5 de la población | G130: Individual | H130: muerte por cada 10 000 M5 al día | I130: Número total de M5 multiplicado por el número de días en un periodo de tiempo sobre 10 000 personas | J130: Número total de muertes en M5 durante un periodo de tiempo | K130: Zona geográfica | L130: Sí | M130: Referencia | N130: No | O130: Acción en materia de salud 2.2.1 | P130: Para consultar los umbrales de situaciones de emergencia en diferentes regiones, véase Sphere (http://www.spherehandbook.org/en/essential-health-services-standard-1-prioritising-health-services/). Cuando no se conoce la tasa de referencia o esta presenta una validez dudosa, las agencias deben procurar mantener la tasa de mortalidad en M5 al menos por debajo de 2,0/10 000/día | Q130: preparatoria; Fases I, II, III y IV | R130: En sentido estricto, la tasa de mortalidad en M5 que se define aquí no es una tasa como tal (es decir, el número de fallecimientos dividido por el número de población en riesgo durante un periodo de tiempo determinado), sino una probabilidad de fallecimiento derivada de una tabla de vida y expresada como tasa por 1 000 partos de bebés nacidos vivos | T130: Estos datos deben tomarse del Clúster de salud o de encuestas de mortalidad específicas, encuestas representativas. En las fases iniciales de una situación de emergencia, puede calcularse un indicador representativo a partir de los registros de los centros sanitarios o de la comunidad. La tasa de mortalidad en M5 mide la supervivencia infantil. También refleja las condiciones sociales, económicas y ambientales en las que viven los/as niños/as (y otros miembros de la sociedad), donde también se incluye la atención sanitaria. Como a menudo no se suele disponer de datos sobre las incidencias y la prevalencia de enfermedades (datos de morbilidad), los datos de mortalidad suelen utilizarse para identificar poblaciones vulnerables. La tasa de mortalidad en M5 es un indicador de los ODM | U130: Encuesta representativa o de los registros de las instalaciones sanitarias o la comunidad | V130: H1 Servicios clínicos generales y cuidados esenciales en casos de traumatismo, H2 Salud infantil, W1 Fomento de la higiene, W2 Suministro de agua, W3 Desecho de excremento
A131: Nutrición | B131: No-principal | C131: N-002 | D131: N1 Prevención y manejo de la desnutrición aguda | E131: Desnutrición aguda en lactantes menores de 6 meses | F131: prevalencia (%) de desnutrición aguda global en lactantes menores de 6 meses en función de la presencia de edema con fóvea bilateral o de PTZ inferiores a -2 desviaciones estándar con respecto a la mediana de la población estándar (OMS, 2006) | G131: Individual | H131: Porcentaje | I131: Número total de niños/as menores de 6 meses encuestados | J131: Número de lactantes de entre 0 y 5 meses que cumplen los criterios de desnutrición aguda global | K131: Zona geográfica, sexo | L131: Sí | M131: Referencia, Resultado | N131: Sí | P131: OMS, serie de informes técnicos 854. Clasificación de la gravedad: 5, 10, 15 % | Q131: preparatoria; Fases III y IV | R131: Debe basarse en una encuesta sobre nutrición antropométrica que siga una metodología sólida en la que se encuentren e incluyan intervalos de confianza | T131: Recuerde que el PTZ y el MUAC no miden las mismas cosas, por lo que no se pueden comparar. Los datos sobre la tasa de desnutrición aguda deben compararse por sexo para poder detectar discriminaciones concretas a las que puedan enfrentarse los bebés, tanto niñas como niños, a la hora de acceder a los servicios de nutrición. En caso de haber una diferencia significativa entre el porcentaje de lactantes niñas y el porcentaje de lactantes niños con desnutrición, el programa debe actuar contra estas brechas realizando un análisis de género de los retos específicos que esté experimentando el grupo en desventaja, incluido el análisis de las costumbres y creencias socioculturales sobre la lactancia materna que puedan afectar de forma distinta al bienestar nutricional de los bebés, tanto niñas como niños. | U131: Encuestas sobre población con métodos de muestreo representativo (MICS, DHS, SMART) | V131: F1 Asistencia alimenticia, H2 Salud infantil, H4.2 Cuidados maternos y del recién nacido, W1 Fomento de la higiene, W2 Suministro de agua, W3 Evacuación de excrementos
A132: Nutrición | B132: No-principal | C132: N-006 | D132: N1 Prevención y manejo de la desnutrición aguda | E132: Desnutrición aguda moderada (DAM) en lactantes de entre 0 y 5 meses | F132: prevalencia (%) de desnutrición aguda moderada en lactantes menores de 6 meses en función de un PTZ inferior a -2 desviaciones estándar e igual o superior a -3 desviaciones estándar con respecto a la mediana de la población estándar (OMS, 2006) | G132: Individual | H132: Porcentaje | I132: Número total de niños/as menores de 6 meses encuestados | J132: Número de lactantes menores de 6 meses que cumplen los criterios de desnutrición aguda moderada | K132: Zona geográfica, sexo | L132: Sí | M132: Referencia, Resultado | N132: Sí | P132: Sin umbrales estándares de la OMS; este valor de ref. de indicador debe interpretarse en relación de otros indicadores, entre los que se incluyen la morbilidad, la mortalidad y la proporción de DAG | Q132: preparatoria; Fases III y IV | R132: Debe basarse en una encuesta sobre nutrición antropométrica que siga una metodología sólida en la que se encuentren e incluyan intervalos de confianza | S132: Prevalencia fácil de derivar restando la proporción de DAS de la proporción de DAG | T132: Recuerde que el PTZ y el MUAC no miden las mismas cosas, por lo que no se pueden comparar. Los datos sobre la tasa de desnutrición aguda moderada deben compararse por sexo para poder detectar discriminaciones concretas a las que puedan enfrentarse los bebés, tanto niñas como niños, a la hora de acceder a los servicios de nutrición. En caso de haber una diferencia significativa entre el porcentaje de lactantes niñas y el porcentaje de lactantes niños con desnutrición, el programa debe actuar contra estas brechas realizando un análisis de género de los retos específicos que esté experimentando el grupo en desventaja, incluido el análisis de las costumbres y creencias socioculturales sobre la lactancia materna que puedan afectar de forma distinta al bienestar nutricional de los bebés, tanto niñas como niños. | U132: Encuestas sobre población con métodos de muestreo representativo (MICS, DHS, SMART) | V132: F1 Asistencia alimenticia, H2 Salud infantil, H4.2 Cuidados maternos y del recién nacido, W1 Fomento de la higiene, W2 Suministro de agua, W3 Evacuación de excrementos
A133: Nutrición | B133: No-principal | C133: N-004 | D133: N1 Prevención y manejo de la desnutrición aguda | E133: Desnutrición aguda severa (DAS) en lactantes de entre 0 y 5 meses | F133: prevalencia (%) de desnutrición aguda severa en lactantes menores de 6 meses en función de la presencia de edema con fóvea bilateral o de PTZ inferiores a -3 desviaciones estándar con respecto a la mediana de la población estándar (OMS, 2006) | G133: Individual | H133: Porcentaje | I133: Número total de niños/as de entre 0 y 5 meses encuestados | J133: Número de lactantes de entre 0 y 5 meses que cumplen los criterios de desnutrición aguda severa | K133: Zona geográfica, sexo | L133: Sí | M133: Referencia, Resultado | N133: Sí | P133: Sin umbrales estándares de la OMS; este valor de ref. de indicador debe interpretarse en relación de otros indicadores, entre los que se incluyen la morbilidad, la mortalidad y la proporción de DAG; Referencia: Estándares de crecimiento infantil de la OMS y la identificación de desnutrición aguda severa en lactantes y niños/as. Una declaración conjunta de la Organización Mundial de la Salud y el Fondo de las Naciones Unidas para la Infancia, 2009. | Q133: preparatoria; Fases III y IV | R133: Debe basarse en una encuesta sobre nutrición antropométrica que siga una metodología sólida en la que se encuentren e incluyan intervalos de confianza | T133: Recuerde que el PTZ y el MUAC no miden las mismas cosas, por lo que no se pueden comparar. Los datos sobre la tasa de desnutrición aguda severa deben compararse por sexo para poder detectar discriminaciones concretas a las que puedan enfrentarse los bebés, tanto niñas como niños, a la hora de acceder a los servicios de nutrición. En caso de haber una diferencia significativa entre el porcentaje de lactantes niñas y el porcentaje de lactantes niños con desnutrición, el programa debe actuar contra estas brechas realizando un análisis de género de los retos específicos que esté experimentando el grupo en desventaja, incluido el análisis de las costumbres y creencias socioculturales sobre la lactancia materna que puedan afectar de forma distinta al bienestar nutricional de los bebés, tanto niñas como niños. | U133: Encuestas sobre población con métodos de muestreo representativo (MICS, DHS, SMART) | V133: F1 Asistencia alimenticia, H1 Servicios clínicos generales y cuidados esenciales en casos de traumatismo, H2 Salud infantil, H4.2 Cuidados maternos y del recién nacido, W1 Fomento de la higiene, W2 Suministro de agua, W3 Evacuación de excrementos
A134: Nutrición | B134: No-principal | C134: N-012 | D134: N1 Prevención y manejo de la desnutrición aguda | E134: Retraso del crecimiento en mujeres en edad reproductiva | F134: prevalencia (%) de mujeres entre 15 y 49 años que miden menos de 145 cm | G134: Individual | H134: Porcentaje | I134: Número total de mujeres de entre 15 y 49 años encuestados | J134: Número de mujeres de entre 15 y 49 años que cumplen los criterios de retraso del crecimiento | K134: Zona geográfica | L134: No | M134: Referencia, Resultado | N134: Sí | Q134: preparatoria; Fases III y IV | R134: Debe basarse en una encuesta sobre nutrición antropométrica que siga una metodología sólida en la que se encuentren e incluyan intervalos de confianza | U134: Encuestas sobre población con métodos de muestreo representativo (MICS, DHS, SMART) | V134: F1 Asistencia alimenticia, F3 Acceso a los alimentos, F4 Acceso a ingresos, F5 Acceso al mercado, F6 Disponibilidad F7 Utilización, H1 Servicios clínicos generales y cuidados esenciales en casos de traumatismo, H2 Salud infantil, H4.2 Cuidados para la madre y el recién nacido, W1 Fomento de la higiene, W2 Suministro de agua, W4 Control de vectores
A135: Nutrición | B135: No-principal | C135: N-013 | D135: N1 Prevención y manejo de la desnutrición aguda | E135: Desnutrición en adultos | F135: prevalencia (%) de adultos de entre 19,1 y 59,9 años con un IMC inferior a 17,00 kg/m2 que presentan edema con fóvea bilateral | G135: Individual | H135: Porcentaje | I135: Número total de adultos de entre 19,1 y 59,9 años encuestados | J135: Número de adultos de entre 19,1 y 59,9 años que cumplen los criterios de desnutrición | K135: Zona geográfica, edad, sexo | L135: No | M135: Referencia, Resultado | N135: Sí | P135: Clasificación de la OMS, serie de informes técnicos, 854: delgadez leve (IMC = 17,00-18,49 kg/m2), delgadez moderada (IMC = 16,00-16,99 kg/m2) y delgadez severa (IMC < 16,00 kg/m2). | Q135: Preparatoria y fase IV y más | R135: Debe basarse en una encuesta sobre nutrición antropométrica que siga una metodología sólida en la que se encuentren e incluyan intervalos de confianza | T135: Los datos antropométricos deben interpretarse con un análisis contextual de los riesgos nutricionales asociados para las poblaciones usando causas subyacentes. En particular, los datos sobre la tasa de desnutrición deben compararse por sexo para poder detectar discriminaciones concretas a las que puedan enfrentarse las mujeres y los hombres en edad adulta a la hora de acceder a los servicios de nutrición. En caso de haber una diferencia significativa entre el porcentaje de mujeres y el porcentaje de hombres con desnutrición, el programa debe actuar contra estas brechas realizando un análisis de género de los retos específicos que esté experimentando el grupo en desventaja, incluido el análisis de las costumbres y creencias socioculturales que puedan afectar de forma distinta a su bienestar nutricional. | U135: Encuestas sobre población con métodos de muestreo representativo (MICS, DHS, SMART) | V135: F1 Asistencia alimenticia, F3 Acceso a los alimentos, F4 Acceso a ingresos, F5 Acceso al mercado, F6 Disponibilidad F7 Utilización, H3 Enfermedades transmisibles, H4.2 Cuidados para la madre y el recién nacido, W1 Fomento de la higiene, W2 Suministro de agua, W4 Control de vectores
A136: Nutrición | B136: No-principal | C136: N-016 | D136: N1 Prevención y manejo de la desnutrición aguda | E136: Frecuencia mínima de las comidas en niños/as de entre 24 y 59 meses | F136: Proporción de niños/as de entre 24 y 59 meses que toman 3 comidas al día o más | G136: Individual | H136: Porcentaje | I136: Número total de niños/as de entre 24 y 59 meses encuestados | J136: Número de niños/as de entre 24 y 59 meses que toman 3 comidas al día o más | K136: Zona geográfica, edad, sexo | L136: No | M136: Referencia | N136: No | Q136: preparatoria; Fases I y II; Fases II y IV | R136: Utilizar el indicador del grupo etario de 6 a 23 meses como indicador representativo para los de 24 a 59 meses y asumir que el grupo de personas mayores está en la peor situación PUEDE ser un indicador de ALERTA importante en las fases iniciales de una situación de emergencia | T136: Indicador utilizado para la ALNP en el grupo etario de 6 a 23 meses en función del indicador de la OMS. | U136: encuestas; evaluaciones rápidas; | V136: F1 Asistencia alimenticia, F3 Acceso a los alimentos, F4 Acceso a ingresos, F5 Acceso al mercado, F6 Disponibilidad, F7 Utilización, H2 Salud infantil, H4.2 Cuidados para la madre y el recién nacido
A137: Nutrición | B137: No-principal | C137: N-019 | D137: N3 Prevención y control de las deficiencias de micronutrientes | E137: nivel de riesgo de deficiencias de micronutrientes comunes (alto, medio, bajo) | F137: Evaluación cualitativa del riesgo nutricional de deficiencias de micronutrientes comunes (anemia, deficiencia de yodo, deficiencia de vitamina A (ceguera nocturna), escorbuto, beriberi, deficiencia de vitamina D) en función del análisis de indicadores compuesto sobre las prevalencias, el análisis de regímenes alimenticios, la calidad del agua y la diarrea, el hallazgo de casos, etc. | G137: Comunidad | H137: alto, medio, bajo | I137: ND | J137: ND | K137: Por deficiencia; zona geográfica, sexo, grupos potencialmente vulnerables: MEL, niños/as de entre 6 y 59 meses, otros grupos potencialmente vulnerables | L137: Sí | M137: Referencia | N137: No | P137: SPHERE 2011, apéndice 5, umbrales (http://www.spherehandbook.org/en/appendix-15/) | Q137: Preparatoria; Fases II, III y IV | R137: Hacer una lista de las prevalencias del nivel de micronutrientes conocido según las vitaminas y minerales y recopilar información adicional sobre regímenes alimenticios, calidad del agua y enfermedades para poder evaluar la gravedad del riesgo para grupos de población específicos | U137: utilizar datos de la encuesta; hacer estimaciones a partir de los números de población afectada por tipo de grupos vulnerables | V137: F1 Asistencia alimenticia, F2 Asistencia a medios de vida, F3 Acceso a los alimentos, F4 Acceso a ingresos, F5 Acceso al mercado, F6 Disponibilidad, F7 Utilización, H1 Servicios clínicos generales y cuidados esenciales en casos de traumatismo, H2 Salud infantil, H5 Enfermedades no transmisibles y salud mental, (R) Recuperación temprana, W1 Fomento de la higiene, W2 Suministro de agua, W3 Evacuación de excrementos
A138: Nutrición | B138: No-principal | C138: N-020 | D138: N3 Prevención y control de las deficiencias de micronutrientes | E138: Cobertura de vitamina A en niños/as de entre 6 y 59 meses | F138: Proporción de niños/as de entre 6 y 59 meses que han recibido vitamina A en los últimos 6 meses | G138: Individual | H138: Porcentaje | I138: Número total de niños/as de entre 6 y 59 meses encuestados | J138: Número de niños/as de entre 6 y 59 meses que han recibido vitamina A en los últimos 6 meses (según recuerde la madre o según conste en el carné de salud) | K138: Zona geográfica, edad (de 6 a 11, de 12 a 23 meses), sexo | L138: Sí | M138: Referencia, Resultado | N138: Sí | O138: Acción en materia de salud 2.2.1 | P138: Objetivo: 95 %. Tras finalizar la campaña de vacunación contra el sarampión, al menos el 95 por ciento de los niños/as de entre 6 y 59 meses han recibido una dosis adecuada de vitamina A | Q138: preparatoria; Fases III y IV | T138: El indicador se aplica a niños/as que viven en entornos en los que la DVA es un problema de salud pública, la OMS sigue la recomendación de la GAVA y recomienda dos dosis en el último año. En caso de haber una diferencia significativa, el programa debe actuar contra estas brechas realizando un análisis de género de los retos específicos que esté experimentando el grupo en desventaja, incluido el análisis de las costumbres y creencias socioculturales que puedan afectar de forma distinta al bienestar nutricional de las niñas y de los niños. Tenga en cuenta las fechas de la suplementación en vitamina A actual para obtener una indicación del número de niños/as no cubiertos/as (entre 0 y 5 meses) y de a quién debería incluir en el nuevo programa de suplementación. | U138: encuestas sobre población con métodos de muestreo representativo (MICS, DHS, SMART) | V138: F1 Asistencia alimenticia, F3 Acceso a los alimentos, F4 Acceso a ingresos, F5 Acceso al mercado, F6 Disponibilidad, F7 Utilización, H1 Servicios clínicos generales y cuidados esenciales en casos de traumatismo, H2 Salud infantil, H5 Enfermedades no transmisibles y salud mental
A139: Nutrición | B139: No-principal | C139: N-021 | D139: N3 Prevención y control de las deficiencias de micronutrientes | E139: Tasa de cobertura de suplementación en hierro en niños/as | F139: Proporción de niños/as de entre 6 y 59 meses que reciben suplementos de micronutrientes con un contenido adecuado de hierro | G139: Individual | H139: Porcentaje | I139: Número total de niños/as de entre 6 y 59 meses encuestados | J139: Número de niños/as de entre 6 y 59 meses que han recibido suplementos de micronutrientes con una cantidad adecuada de hierro en/con una de sus comidas el día anterior | K139: Zona geográfica, edad (de 6 a 24, de 24 a 59 meses), sexo | L139: No | M139: Referencia, Resultado | N139: Sí | O139: Seguridad alimenticia y nutrición 4.1.1 | Q139: preparatoria; Fases III y IV | U139: encuestas sobre población con métodos de muestreo representativo (MICS, DHS, SMART) | V139: F1 Asistencia alimenticia, F3 Acceso a los alimentos, F4 Acceso a ingresos, F5 Acceso al mercado, F6 Disponibilidad, F7 Utilización, H1 Servicios clínicos generales y cuidados esenciales en casos de traumatismo, H2 Salud infantil, H5 Enfermedades no transmisibles y salud mental
A140: Nutrición | B140: No-principal | C140: N-022 | D140: N3 Prevención y control de las deficiencias de micronutrientes | E140: Suplementación de hierro-ácido fólico para mujeres embarazadas | F140: Proporción de mujeres embarazadas que han recibido una suplementación con contenido en hierro/ácido fólico diariamente en los últimos 6 meses o durante el embarazo | G140: Individual | H140: Porcentaje | I140: Número total de mujeres embarazadas encuestadas | J140: Número de mujeres embarazadas que han comprado o recibido una suplementación con contenido en hierro-ácido fólico diariamente en los últimos 6 meses durante el embarazo | K140: Zona geográfica | L140: Sí | M140: Referencia, Resultado | N140: Sí | O140: Seguridad alimenticia y nutrición 4.1.1 | Q140: preparatoria; Fases III y IV | R140: En algunos países, los suplementos de hierro-ácido fólico se sustituyen por varios micronutrientes. Por lo tanto, según la situación, el indicador debe cambiarse a "ha recibido suplementos de hierro-ácido fólico" o "ha recibido suplementos de varios micronutrientes" | U140: Encuesta sobre población con métodos de muestreo representativo (`MICS, DHS, SMART) | V140: F1 Asistencia alimenticia, F3 Acceso a los alimentos, F6 Disponibilidad, H1 Servicios clínicos generales y cuidados esenciales en casos de traumatismo, H2 Salud infantil, H4.2 Cuidados para la madre y el recién nacido
A141: Nutrición | B141: No-principal | C141: N-023 | D141: N3 Prevención y control de las deficiencias de micronutrientes | E141: Consumo de sal yodada | F141: Proporción de hogares en los que se utiliza sal yodada adecuadamente en los últimos 6 meses | G141: Hogares | H141: Porcentaje | I141: Número total de hogares encuestados | J141: Número de hogares en los que se utiliza sal yodada adecuadamente (20-40 ppm) en los últimos 6 meses | K141: Zona geográfica | L141: No | M141: Referencia, Resultado | N141: No | O141: Seguridad alimenticia y nutrición 4.1.1 | P141: El indicador debe ser igual o mayor que 90 Proporción de (¿referencia?) -Número de hogares en los que se utiliza sal yodada adecuadamente (20-40 ppm) en los últimos 6 meses | Q141: preparatoria; Fases III y IV | R141: La sal yodada adecuadamente es aquella sal que contiene de 15 a 40 ppm de yodo a nivel de hogar. Referencia: Assessment of iodine deficiency disorders and monitoring their elimination: a guide for programme managers. 3rd edition WHO, 2008 | T141: Utilización de "que utilizan" en lugar de "que han consumido regularmente en los últimos 6 meses" en función de los métodos de evaluación recomendados, que consisten en medir el nivel de yodo en sal en los hogares en el momento de evaluación y no recopilar datos retrospectivos (ya que no se puede evaluar el nivel de yodo en sal consumido y muchas personas desconocen si la sal está/estaba yodada). Formulación alternativa: "Proporción de hogares que utilizan sal yodada adecuadamente" - véase la referencia. Aparentemente no es un indicador de seguridad alimenticia; | V141: F1 Asistencia alimenticia, F6 Disponibilidad, H2 Salud infantil, H5 Enfermedades no transmisibles y salud mental
A142: Nutrición | B142: No-principal | C142: N-024 | D142: N3 Prevención y control de las deficiencias de micronutrientes | E142: Prevalencia de la deficiencia de vitamina A | F142: (1) Proporción de M5 con deficiencia de vitamina A asintomática (2) Proporción de mujeres en edad reproductiva con una deficiencia de vitamina A sintomática | G142: Individual | H142: Porcentaje | I142: Número total de M5 encuestados o Número total de mujeres en edad reproductiva encuestadas | J142: Número de M5 con deficiencia de vitamina A (valores séricos de retinol <0,70 µmol/l) o proporción de mujeres en edad reproductiva o entre 15 y 49 años) con deficiencia de vitamina A (valores séricos de retinol <0,70 µmol/l) | K142: Zona geográfica, niños y niñas de entre 0 y 59 meses, mujeres en edad reproductiva | L142: Sí | M142: Referencia | N142: No | O142: Seguridad alimenticia y nutrición 4.1.1 | P142: Importancia de la salud pública: <2 Proporción normal; 2-9,9 Proporción baja; 10-19,9 Proporción media; >20 Proporción alta (ref: OMS 1996) | Q142: Preparatoria | R142: PARA NIÑOS/AS: los niveles séricos o plasmáticos de retinol medidos en muestras capilares o venosas constituyen una prueba invasiva que resulta cara en caso de utilizar HPLC. Ahora están surgiendo métodos novedosos para manchas de sangre seca con el método capilar. PARA MUJERES: la información puede verificarse oralmente. Como la pregunta va dirigida a un subconjunto específico de mujeres, el indicador no recopila todo el intervalo de mujeres en edad reproductiva. Es necesario estandarizar la formulación de la pregunta. | T142: Orientaciones de la OMS: who.int/vmnis/retinol.pdf | U142: datos primarios: Encuestas nacionales, Estudios locales, DHS, MICS; datos secundarios: VMNIS | V142: F1 Asistencia alimenticia, F3 Acceso a los alimentos, F4 Acceso a ingresos, F5 Acceso al mercado, F6 Disponibilidad F7 Utilización, H2 Salud infantil, H4.2 Cuidados para la madre y el recién nacido, H5 Enfermedades no transmisibles y salud mental
A143: Nutrición | B143: No-principal | C143: N-018 | D143: N3 Prevención y control de las deficiencias de micronutrientes | E143: Diversidad mínima de la dieta en niños/as de entre 24 y 59 meses | F143: Proporción de niños/as de entre 24 y 59 meses que reciben alimentos de 4 o más grupos de alimentos | G143: Individual | H143: Porcentaje | I143: Número total de niños/as de entre 24 y 59 meses encuestados | J143: Número de niños/as de entre 24 y 59 meses que reciben alimentos de 4 o más de los siguientes grupos de alimentos. | K143: Zona geográfica, edad, sexo | L143: No | M143: Referencia | N143: No | O143: Seguridad alimenticia y nutrición 4.1.1 | P143: Sin estándar identificado, solo el indicador fuente de la OMS | Q143: preparatoria; Fases I y II; Fases II y IV | R143: Utilizar el indicador del grupo etario de 6 a 23 meses como indicador de referencia para los de 24 a 59 meses y asumir que el grupo de personas mayores está en la peor situación PUEDE ser un indicador de ALERTA importante en las fases iniciales de una situación de emergencia (la OMS utiliza un parámetro de las últimas 24 horas). Grupos de alimentos definidos de la siguiente manera: (1) cereales, raíces y tubérculos (2) legumbres y frutos secos (3) lácteos (leche, yogur, queso) (4) cárnicos (carne roja, pescado, aves de corral y demás alimentos de casquería e hígados) (5) huevos (6) frutas y verduras ricas en vitamina A (7) otras frutas y verduras | T143: Indicador utilizado para la ALNP en el grupo etario de 6 a 23 meses en función del indicador de la OMS | U143: encuestas; evaluaciones rápidas; | V143: F1 Asistencia alimenticia, F3 Acceso a los alimentos, F4 Acceso a ingresos, F5 Acceso al mercado, F6 Disponibilidad, F7 Utilización, H2 Salud infantil, H4.2 Cuidados para la madre y el recién nacido
A144: Nutrición | B144: No-principal | C144: N-029 | D144: N2 Alimentación de lactantes y niños/as pequeños/as | E144: Iniciación temprana de la lactancia materna | F144: Proporción de niños/as de entre 0 y 23 meses que fueron amamantados en la primera hora posterior al parto. | G144: Individual | H144: Porcentaje | I144: Número total de mujeres que han dado a luz a un bebé vivo en los X años previos a la encuesta | J144: Número de mujeres que han dado a luz a un bebé vivo en los X años previos a la encuesta y que amamantaron al lactante recién nacido en la primera hora posterior al parto | K144: Zona geográfica, sexo | L144: No | M144: Referencia | N144: No | O144: Seguridad alimenticia y nutrición 4.2.1 | P144: Sin estándar; Proporción de <80 es generalmente una prioridad. Comentar en grupo las denominaciones de umbral alto, medio y bajo | Q144: Para las Fases III-IV, debe utilizarse un indicador adaptado en el que se utilice la misma metodología, pero en el que el denominador sea lactantes nacidos desde el principio de la situación de emergencia. (Proporción de niños/as nacidos/as desde el principio de la situación de emergencia que fueron amamantados en la primera hora posterior al parto). En las Fases I y II, el denominador utilizado debe ser lactantes nacidos desde el principio de la situación de emergencia. En estas fases serán necesarias las muestras por conveniencia, p. ej., en los centros de atención obstétrica o asistencia al recién nacido. | R144: Indicador principal de ALNP de la OMS. | S144: Para la fase preparatoria, el indicador principal de la OMS debe utilizarse como referencia en la que el denominador es niños/as nacidos/as en los últimos 24 meses (proporción de niños/as nacidos/as en los últimos 24 meses que fueron amamantados en la primera hora posterior al parto). | T144: Nota: los datos de DHS se basan en los 3 o 5 años previos a la encuesta, y los datos de MICS se basan en los 2 años previos a la encuesta | U144: Preparatoria, Fases III y IV: ensayo de ALNP representativo. Fases I y II: utilizar las entrevistas con los informadores principales y el muestreo por conveniencia para dar una indicación de ALERTA | V144: H2 Salud infantil, H4.2 Cuidados para la madre y el recién nacido, (R) Recuperación temprana
A145: Nutrición | B145: No-principal | C145: N-036 | D145: N2 Alimentación de lactantes y niños/as pequeños/as | E145: Frecuencia mínima de comidas | F145: Proporción de niños/as de entre 6 y 23 meses que han recibido alimentos sólidos, semisólidos o blandos el mínimo de veces o más. | G145: Individual | H145: Porcentaje | I145: Número total de niños/as de entre 6 y 23 meses encuestados | J145: Número de niños/as de entre 6 y 23 meses que han recibido alimentos sólidos, semisólidos o blandos el mínimo de veces o más | K145: Zona geográfica, sexo | L145: No | M145: Referencia, Resultado | N145: Sí | O145: Seguridad alimenticia y nutrición 4.2.2 | P145: Sin estándar; Proporción de <80 es generalmente una prioridad. Comentar en grupo las denominaciones de umbral alto, medio y bajo | Q145: preparatoria; Fases III y IV | R145: Indicador principal de ALNP de la OMS | U145: encuesta de ALNP representativa | V145: F3 Acceso a los alimentos, F4 Acceso a los ingresos, F5 Acceso al mercado, F6 Disponibilidad, F7 Utilización, H2 Salud infantil
A146: Nutrición | B146: No-principal | C146: N-038 | D146: N2 Alimentación de lactantes y niños/as pequeños/as | E146: Introducción de alimentos sólidos, semisólidos o blandos | F146: Proporción de niños/as de entre 6 y 8 meses que han recibido alimentos sólidos, semisólidos o blandos durante el día anterior | G146: Individual | H146: Porcentaje | I146: Número total de lactantes de entre 5 y 8 meses encuestados | J146: Número de lactantes de entre 5 y 8 meses que han recibido alimentos sólidos, semisólidos o blandos durante el día anterior | K146: Zona geográfica, sexo | L146: No | M146: Referencia, Resultado | N146: Sí | P146: Sin estándar; Proporción de <80 es generalmente una prioridad. Comentar en grupo las denominaciones de umbral alto, medio y bajo | Q146: preparatoria; Fases III y IV | R146: Indicador principal de ALNP de la OMS. Orientaciones necesarias para el tamaño de las muestras | U146: encuesta de ALNP representativa | V146: F3 Acceso a los alimentos, F4 Acceso a los ingresos, F5 Acceso al mercado, F6 Disponibilidad, F7 Utilización, H2 Salud infantil
A147: Nutrición | B147: No-principal | C147: N-039 | D147: N2 Alimentación de lactantes y niños/as pequeños/as | E147: Sin amamantar | F147: Proporción de lactantes de 0<12 meses y de 12<24 sin amamantar | G147: Individual | H147: Porcentaje | I147: Número total de niños/as de 0<12 meses y de 12<24 meses encuestados | J147: Número de lactantes de entre 0 y 12 meses y de entre 12 y 24 que no son amamantados | K147: Zona geográfica; 0-<12 meses, 12-<24 meses, sexo | L147: Sí | M147: Referencia, Resultado | N147: Sí | Q147: Calcular este indicador en función de los datos estandarizados recopilados. En las Fases I y II, debe estimarse una indicación de la proporción de lactantes no amamantados en función de las entrevistas con los informantes principales y el muestreo por conveniencia. | R147: Este no es un indicador estándar. Sin embargo, es posible calcular este indicador utilizando datos estandarizados recopilados para generar indicadores principales de ALNP de la OMS. | S147: Preparatoria: calcular este indicador en función de los datos estandarizados recopilados. En las Fases I y II, debe estimarse una indicación de la proporción de lactantes no amamantados en función de las entrevistas con los informantes principales y el muestreo por conveniencia. | T147: Necesidad de plantear esto con la OMS para ver cómo podemos desarrollar esto como un indicador estándar para informar en contextos propensos a las situaciones de emergencia. | U147: Preparatoria, Fases III y IV: Indicador producido a partir de los datos recopilados de MICS/DHS. Las Fases I y II utilizarán las entrevistas con los informadores principales y el muestreo por conveniencia para dar una indicación de ALERTA. | V147: H2 Salud infantil, H4.2 Cuidados para la madre y el recién nacido, W1 Fomento de la higiene, W2 Suministro de agua

Sheet Classification thresholds
A1: Classification Thresholds for Core Indicators | F1: Severity Scale based on IPC/OCHA phases
D2: Humanitarian Consequence | F2: Phase 1 | G2: Phase 2 | H2: Phase 3 | I2: Phase 4 | J2: Phase 5 | K2: Sources
A3: Category | B3: Alignment with IPC AMN framework | C3: Outcome Indicator Name/label | D3: U5 GAM ≥5% (Scenarios 1 & 2) | E3: U5 GAM <5% (Scenario 3) | F3: Acceptable/ Minimal | G3: Alert/ Stress | H3: Serious/ Severe | I3: Critical/ Extreme | J3: Extremely Critical/ Catastrophic
A4: Primary Outcomes | B4: Acute and chronic malnutrition | C4: Prevalence of Global Acute Malnutrition (GAM) based on weight for height Z-score (WHZ)<-2 and/or bilateral pitting oedema among children 0-59 months (if no data, use 6-59 months) | D4: Physical and Mental Well-being | F4: <5% | G4: 5-9.9% | H4: 10-14.9% | I4: 15-29.9% | J4: ≥30% | K4: Based on IPC AM Malnutrition Version 3 Guidance
C5: Prevalence of Global Acute Malnutrition (GAM) based on Mid-Upper Arm Circumference (MUAC) <125mm and/or bilateral pitting oedema among children 6-59 months | D5: Physical and Mental Well-being | F5: <5% | K5: Preliminary thresholds suggested by IPC Acute Malnutrition Version 3 guidance
G6: 5-9.9%
H7: 10-14.9%
I8: ≥15%
C9: Prevalence of Global Acute Malnutrition (GAM) based on Mid-Upper Arm Circumference (MUAC)<210-230 (depending on the contexts) and/or bilateral pitting oedema among PLW | D9: Physical and Mental Well-being | F9: <12.5% | G9: 12.6%-19.9% | H9: 20-24.9% | I9: 25-34.9% | J9: ≥35% | K9: Preliminary thresholds based on Somalia’s Food Security and Nutrition Analysis Unit (FSNAU)
C10: Prevalence of stunting based on height-for-age Z-score (HAZ)<-2 among children 0-59 months | D10: Living Standards | E10: Physical and Mental Well-being | F10: <10% | G10: 10-19.9% | H10: 20-29.9% | I10: ≥30% | K10: De Onis et al (2018) Prevalence thresholds for wasting, overweight, and stunting in children under 5 years
A11: Contextual Factors* *optional depending on the humanitarian situation | B11: Other causes | C11: Prevalence of overweight based on weight for height Z-score (WHZ)>2 among children 0-59 months | D11: Living Standards | E11: Physical and Mental Well-being | F11: <2.5% | G11: 2.5-4.9% | H11: 5-9.9% | I11: 10-14.9% | J11: ≥15% | K11: De Onis et al (2018) Prevalence thresholds for wasting, overweight, and stunting in children under 5 years
B12: Acute malnutrition | C12: Prevalence of Global Acute Malnutrition (GAM) based on Mid-Upper Arm Circumference (MUAC)<210mm among Older People | D12: Physical and Mental Well-being | F12: <5% | G12: 5-9.9% | H12: 10-14.9% OR 5-9.9%* | I12: ≥15% OR 10-14.9%* | K12: Based on HelpAge’s Nutrition Interventions for Older People in Emergencies
C13: Prevalence of Global Acute Malnutrition (GAM) based on BMI-for-Age Z-Score<-2 among Adolescents | D13: Physical and Mental Well-being | F13: <2.5% | G13: 2.5-4.9% | H13: 5-9.9% | I13: 10-14.9% | J13: ≥15% | K13: Preliminary thresholds suggested by Taskforce and NISWG
B14: Micronutrient deficiencies | C14: Prevalence of anemia Hb <11g/dl in children 6-59 months | D14: Physical and Mental Well-being | F14: <5% | G14: 5-19.9% | H14: 20-39.9% | I14: ≥40% | K14: WHO (2011) Haemoglobin concentrations for the diagnosis of anaemia and assessment of severity
C15: Prevalence of anemia Hb <11g/dl in pregnant women | D15: Physical and Mental Well-being | F15: <5% | G15: 5-19.9% | H15: 20-39.9% | I15: ≥40% | K15: WHO (2011) Haemoglobin concentrations for the diagnosis of anaemia and assessment of severity.
B16: Mortality indicators | C16: Crude Death/Mortality Rate (deaths/ 10,000 persons/ day) | D16: Physical and Mental Well-being | F16: <0.5 | H16: 0.5-0.9 | I16: 1-1.9 | J16: ≥2 | K16: Based on IPC AM Malnutrition Version 3 Guidance
C17: Under-five Death/Mortality Rate (deaths/ 10,000 children U5/ day) | D17: Physical and Mental Well-being | F17: <1 | H17: 1-1.9 | I17: 2-3.9 | J17: ≥4 | K17: Based on IPC AM Malnutrition Version 3 Guidance
A18: Key Contributing Factors | B18: Immediate causes (Food consumption) | C18: Minimum Dietary Diversity in children 6 to 23 months | D18: Living Standards | F18: ≥70% | G18: 40-70% | H18: 20-40% | I18: 10-20% | J18: <10% | K18: Preliminary thresholds suggested by IFE Core Group
C19: Minimum Acceptable Diet in children 6 to 23 months* *Requires Minimum Meal Frequency in children 6-23 months to be derived | D19: Living Standards | F19: ≥70% | G19: 40-70% | H19: 20-40% | I19: 10-20% | J19: <10% | K19: Preliminary thresholds suggested by IFE Core Group
C20: Exclusive breastfeeding for infants 0-5 months | D20: Living Standards | F20: ≥70% | G20: 50-70% | H20: 30 -50% | I20: 11-30% | J20: <11% | K20: Thresholds adapted from UNICEF Breastfeeding score cards
B21: Underlying causes (Caring and feeding practices) | C21: Infants 0-5 months that are not breastfed who have access to Breast Milk Substitutes (BMS) supplies and support in line with the Code and the IFE OG standards and recommendations | D21: Living Standards | F21: ≥60% | G21: 40-60% | H21: 20-40% | I21: 10-20% | J21: <10% | K21: Preliminary thresholds suggested by IFE Core Group
C22: Infants 6-11 months that are not breastfed who have access to Breast Milk Substitutes (BMS) supplies and support in line with the Code and the IFE OG standards and recommendations | D22: Living Standards | F22: ≥60% | G22: 40-60% | H22: 20-40% | I22: 10-20% | J22: <10% | K22: Preliminary thresholds suggested by IFE Core Group
B23: Underlying causes (WASH) | C23: % of HHs having access to an improved water source | D23: Living Standards | F23: Water comes from an improved water source which is located on premises | G23: Water comes from an improved water source, provided collection time is not more than 30 minutes for a roundtrip, including queuing | H23: Water comes from an improved source for which collection time exceeds 30 minutes for a roundtrip, including queuing | I23: Water comes from an unimproved water source | J23: Water comes directly from rivers, lakes, ponds, etc. | K23: Corresponds to the majority percentage of answer choices in WASH specific assessments/ MSNA/ DTM suggested by WASH colleagues for Joint Inter-sectoral Analysis Framework (JIAF) – see Limitations p.3 of the guidance. Please liaise with local Global WASH Cluster colleagues if using this indicator in the contributing factor analysis
C24: % of HHs having access to a sufficient quantity of water for drinking, cooking, bathing, washing or other domestic use | D24: Living standards | F24: Enough water for drinking, cooking, personal hygiene and other domestic purposes OR more than 50 l/d/p | G24: Enough water for drinking AND cooking AND personal hygiene, BUT NOT for other domestic purposes OR 15 or more but less than 50 l/d/p | H24: Enough water for drinking AND EITHER cooking OR personal hygiene OR 9 or more but less than 15 l/d/p | I24: Enough water for drinking BUT NOT for cooking AND personal hygiene OR 3 or more but less than 9 l/d/p | J24: Not enough water for drinking OR Less than 3 l/d/p | K24: Corresponds to the majority percentage of answer choices in WASH specific assessments/ MSNA/ DTM suggested by WASH colleagues for Joint Inter-sectoral Analysis Framework (JIAF) – see Limitations p.3 of the guidance. Please liaise with local Global WASH Cluster colleagues if using this indicator in the contributing factor analysis
C25: % of HHs having access to a functionnal and improved sanitation facility | D25: Living standards | F25: Access to improved sanitation facilities, not shared with other households | G25: Access to improved sanitation facilities, shared with less than 20 people | H25: Access to improved sanitation facilities, shared with more than 20 people | I25: Access to unimproved facilities OR access to improved facilities shared with more than 50 people | J25: Disposal of human faeces in open spaces or with solid waste | K25: Corresponds to the majority percentage of answer choices in WASH specific assessments/ MSNA/ DTM suggested by WASH colleagues for Joint Inter-sectoral Analysis Framework (JIAF) – see Limitations p.3 of the guidance. Please liaise with local Global WASH Cluster colleagues if using this indicator in the contributing factor analysis
C26: % of HHs with access to functioning handwashing facilities, with water and soap available or % of HHs with access to soap | D26: Living standards | F26: Soap is available at home AND handwashing facility is on premises with soap and water available | H26: Soap is available at home BUT no handwashing facility on premises with soap and water | J26: Soap is not available at home | K26: Corresponds to the majority percentage of answer choices in WASH specific assessments/ MSNA/ DTM suggested by WASH colleagues for Joint Inter-sectoral Analysis Framework (JIAF) – see Limitations p.3 of the guidance. Please liaise with local Global WASH Cluster colleagues if using this indicator in the contributing factor analysis
B27: Underlying causes (Immunization) | C27: Coverage of DTC3 (DPT3 / PENTA3) in < 1 year old, by administrative unit (%) | D27: Physical and Mental Well-being | F27: > 90% | G27: 85% - 90% | H27: 75% - 85% | I27: 65% - 75% | J27: < 65% | K27: This data may be available through projections, but if so, the quality of the data should be checked and noted. In some surveys data is collected from children aged 12-23 months. Please be sure to reference the age range that is the focus of the data. Only the first threshold has been tested and has evidence behind it. The others have been arbitrarily selected and should not be considered accurate measures at this stage
C28: Routine measles vaccination coverage (%) | D28: Physical and Mental Well-being | F28: No thresholds proposed | K28: Not from the official GHC list of ‘core’ health indicators. Use of consensus and expert judgement based on country-level experts for the analysis of contributing factors
C29: Routine polio vaccination coverage (%) | D29: Physical and Mental Well-being | F29: No thresholds proposed | K29: Not from the official GHC list of ‘core’ health indicators. Use of consensus and expert judgement based on country-level experts for the analysis of contributing factors
C30: Routine Vitamin A supplementation coverage (%) | D30: Physical and Mental Well-being | F30: No thresholds proposed | K30: Not from the official GHC list of ‘core’ health indicators. Use of consensus and expert judgement based on country-level experts for the analysis of contributing factors
C31: Campaign measles vaccination coverage (%) | D31: Physical and Mental Well-being | F31: No thresholds proposed | K31: Not from the official GHC list of ‘core’ health indicators. Use of consensus and expert judgement based on country-level experts for the analysis of contributing factors
C32: Campaign polio vaccination coverage (%) | D32: Physical and Mental Well-being | F32: No thresholds proposed | K32: Not from the official GHC list of ‘core’ health indicators. Use of consensus and expert judgement based on country-level experts for the analysis of contributing factors
C33: Campaign Vitamin A supplementation coverage (%) | D33: Physical and Mental Well-being | F33: No thresholds proposed | K33: Not from the official GHC list of ‘core’ health indicators. Use of consensus and expert judgement based on country-level experts for the analysis of contributing factors
C34: Measles vaccination coverage from surveys (%) | D34: Physical and Mental Well-being | F34: No thresholds proposed | K34: Not from the official GHC list of ‘core’ health indicators. Use of consensus and expert judgement based on country-level experts for the analysis of contributing factors
C35: Polio vaccination coverage from surveys (%) | D35: Physical and Mental Well-being | F35: No thresholds proposed | K35: Not from the official GHC list of ‘core’ health indicators. Use of consensus and expert judgement based on country-level experts for the analysis of contributing factors
C36: Vitamin A supplementation coverage from surveys (%) | D36: Physical and Mental Well-being | F36: No thresholds proposed | K36: Not from the official GHC list of ‘core’ health indicators. Use of consensus and expert judgement based on country-level experts for the analysis of contributing factors
C37: Coverage of all basic vaccinations from surveys (%) | D37: Physical and Mental Well-being | F37: No thresholds proposed | K37: Not from the official GHC list of ‘core’ health indicators. Use of consensus and expert judgement based on country-level experts for the analysis of contributing factors
C38: Percentage of children aged six months to 15 years who have received measles vaccination | D38: Physical and Mental Well-being | F38: >95% in camps /urban areas >90% in scattered or rural areas | G38: <94-85% urban and camps <89 - 84% in scattered or rural areas | H38: 75% - 85% | I38: 65% - 75% | J38: <65% | K38: This indicator is used to estimate vaccine coverage of the total EPI strategy. To avoid overestimation, measles vaccination coverage is used as proxy since it is usually lower than DPT3 coverage. Both indicators should be calculated on a yearly basis and can provide good indication of health system performance. It is necessary to assess the quality of the available data. Only the first threshold has been tested and has evidence behind it. The others have been arbitrarily selected and should not be considered accurate measures at this stage
B39: Immediate Causes (Health status) | C39: Number of cases or incidence rates for selected diseases relevant to the local context (cholera, measles, acute meningitis, others) | D39: Physical and Mental Well-being | F39: No thresholds proposed | K39: This indicator is primarily a country-level measurement and cannot be easily aggregated for use at higher levels. The list of diseases is context specific. Data collection can be problematic as health facility surveillance may have low sensitivity for conditions that do not commonly go to clinic. Access to health services is another factor. Please liaise with local GHC colleagues if using this indicator in the contributing factor analysis
C40: Case Fatality Ratio (CFR) for most common diseases | D40: Physical and Mental Well-being | F40: No thresholds proposed | K40: Mixture of disease severity and of quality of health care. Most likely will be biased upwards because only more severe cases normally go to clinic. This indicator is primarily a country-level measurement and cannot be easily aggregated for use at higher levels. The list of diseases is context specific. Data collection can be problematic as health facility surveillance may have low sensitivity for conditions that do not commonly go to clinic. Access to health services is another factor. Please liaise with local GHC colleagues if using this indicator in the contributing factor analysis
C41: Proportion of children U5 with diarrhea in the last two weeks | D41: Physical and Mental Well-being | F41: No thresholds proposed | K41: Not from the official GHC list of ‘core’ health indicators. Use of consensus and expert judgement based on country-level experts for the analysis of contributing factors
C42: Prevalence of HIV/AIDS | D42: Physical and Mental Well-being | F42: No thresholds proposed | K42: Not from the official GHC list of ‘core’ health indicators. Use of consensus and expert judgement based on country-level experts for the analysis of contributing factors
C43: Proportion of children U5 with fever in malaria-risk areas | D43: Physical and Mental Well-being | F43: No thresholds proposed | K43: Not from the official GHC list of ‘core’ health indicators. Use of consensus and expert judgement based on country-level experts for the analysis of contributing factors
C44: Proportion of children U5 who had Acute Respiratory Infections (ARI) in the last 2 weeks | D44: Physical and Mental Well-being | F44: No thresholds proposed | K44: Not from the official GHC list of ‘core’ health indicators. Use of consensus and expert judgement based on country-level experts for the analysis of contributing factors
C45: Number of reported cases of cholera or Acute Watery Diarrhea (AWD) | D45: Physical and Mental Well-being | F45: No thresholds proposed | K45: Not from the official GHC list of ‘core’ health indicators. Use of consensus and expert judgement based on country-level experts for the analysis of contributing factors
B46: Underlying causes (Availability of and access to health services) | C46: Percentage of healthcare facilities that deliver essential package of health services (including nutrition) | D46: Living Standards | F46: No thresholds proposed | K46: Not from the official GHC list of ‘core’ health indicators. The ‘essential package of health services’ must be defined to use this indicator. Use the minimum package of services that has been agreed at country level.
C47: Health-seeking behaviour from population-based surveys | D47: Living Standards | F47: No thresholds proposed | K47: Not from the official GHC list of ‘core’ health indicators. Use of consensus and expert judgement based on country-level experts for the analysis of contributing factors
C48: Percentage of population that can access primary healthcare within one hour’s walk from dwellings | D48: Living Standards | F48: ≥ 80% | G48: 75% - 80% | H48: 70% - 75% | I48: 65% - 70% | J48: < 65% | K48: As per JIAF guidance. Only the first threshold has been tested and has evidence behind it. The others have been arbitrarily selected and should not be considered accurate measures at this stage
C49: Number of HF with Basic Emergency Obstetric Care/ 500,000 population, by administrative unit | D49: Living Standards | F49: 4+ | G49: 3--4 | H49: 2--3 | I49: 1--2 | J49: < 1 | K49: As per JIAF guidance. Proxy indicators for the physical availability and geographical accessibility of emergency obstetric services and their distribution across districts in the affected areas. An unbalance between the availability of BEmOC and CEmOC (with too few BEmOC) is often observed. Only the first threshold has been tested and has evidence behind it. The others have been arbitrarily selected and should not be considered accurate measures at this stage
C50: Number of skilled birth attendant personnel (doctors, nurses, certified midwives) per 10,000 people | D50: Living Standards | F50: >= 23 | G50: >= 20 | H50: >= 17 | I50: >= 14 | J50: >= 11 | K50: As per JIAF guidance. Only the first threshold has been tested and has evidence behind it. The others have been arbitrarily selected and should not be considered accurate measures at this stage
B51: Immediate causes (Food consumption) | C51: PRIORITY: Food Security Cluster/Sector Analysis | D51: Living Standards | F51: 1 | G51: 2 | H51: 3 | I51: 4 | J51: 5 | K51: To align with the final analysis in terms of phases provided by the in-country Food security colleagues or IPC Acute Food Security Analysis
C52: Food Consumption Score | D52: Living Standards | F52: Acceptable and stable | G52: Acceptable but deterioration from typical | H52: Borderline | I52: Poor | J52: Poor | K52: As per JIAF guidance. Please liaise with local GFSC colleagues if using this indicator in the contributing factor analysis - see Limitations on Instructions spreadsheet.
C53: Household Hunger Scale | D53: Living Standards | F53: 0 (none) | G53: 1 (slight) | H53: 2 or 3 (moderate) | I53: 4 (severe) | J53: 5 or 6 (severe) | K53: As per JIAF guidance. Please liaise with local GFSC colleagues if using this indicator in the contributing factor analysis - see Limitations on Instructions spreadsheet.
C54: Reduced Coping Strategies Index | D54: Living Standards | F54: 0 to 3 | G54: 4 to 18 | H54: ≥ 19 | I54: ≥ 19 | J54: ≥ 19 | K54: As per JIAF guidance. Please liaise with local GFSC colleagues if using this indicator in the contributing factor analysis - see Limitations on Instructions spreadsheet.
C55: Household Dietary Diversity Score | D55: Living Standards | F55: 5-12 food groups and stable | G55: 5-FG but deterioration ≥1 FG from typical | H55: 3-4 FG | I55: 0-2 FG | J55: 0-2 FG | K55: As per JIAF guidance. Please liaise with local GFSC colleagues if using this indicator in the contributing factor analysis - see Limitations on Instructions spreadsheet.
A60: Seuils de classification pour les indicateurs clés | F60: Échelle de gravité basée sur les phases IPC/OCHA
D61: Conséquence Humanitaire | F61: Phase 1 | G61: Phase 2 | H61: Phase 3 | I61: Phase 4 | J61: Phase 5 | K61: Sources
A62: Catégorie | B62: Alignement avec le cadre de l’IPC de l'AMN | C62: Nom/Libellé de l'indicateur de résultat | D62: MAG ≥ 5 % chez les enfants de moins de 5 ans (Scénarios 1 et 2) | E62: MAG ≥ 5 % chez les enfants de moins de 5 ans (Scénario 3) | F62: Acceptable/ Minimale | G62: Alerte/Stress | H62: Grave/Sévère | I62: Critique/Extrême | J62: Extrêmement critique/Catastrophique
A63: Principaux résultats | B63: Malnutrition aiguë et chronique | C63: Prévalence de la malnutrition aiguë globale (MAG) basée sur le Z-score du poids-pour-taille (P/T)< -2 et/ou présence d’œdèmes bilatéraux chez les enfants 0-59 mois (en l’absence de données, utiliser 6-59 mois) | D63: Bien-être physique et mental | F63: <5% | G63: 5-9.9% | H63: 10-14.9% | I63: 15-29.9% | J63: ≥30% | K63: Basé sur les Directives de la version 3 de la malnutrition de l'IPC de l'AM
C64: Prévalence de la malnutrition aiguë globale (MAG) en fonction du périmètre brachial (PB) < 125 mm et/ou présence d’œdèmes bilatéraux chez les enfants de 6-59 mois | D64: Bien-être physique et mental | F64: <5% | K64: Seuils préliminaires suggéré par la directive sur la Malnutrition aiguë de l’IPC, Version 3
G65: 5-9.9%
H66: 10-14.9%
I67: ≥15%
C68: Prévalence de la malnutrition aiguë globale (MAG) basée sur le périmètre brachial (PB) < 210-230 mm (selon les contextes) et/ou présence d’œdèmes bilatéraux chez les femmes enceintes et allaitantes | D68: Bien-être physique et mental | F68: <12.5% | G68: 12.6%-19.9% | H68: 20-24.9% | I68: 25-34.9% | J68: ≥35% | K68: Seuils préliminaires basés sur l’unité d’analyse de la sécurité alimentaire et de la nutrition de la Somalie (FSNAU)
C69: Prévalence du retard de croissance basée sur le Z-score du rapport taille-pour-âge (T/A) <-2 parmi les enfants de 0-59 mois | D69: Conditions de vie | E69: Bien-être physique et mental | F69: <10% | G69: 10-19.9% | H69: 20-29.9% | I69: ≥30% | K69: De Onis et al (2018) Seuils de prévalence de l’émaciation, du surpoids et du retard de croissance chez les enfants de moins de 5 ans
A70: Facteurs contextuels* *facultatif et en fonction de la situation humanitaire | B70: Autres causes | C70: Prévalence de surpoids sur le score z du poids pour taille (P/T) >2 parmi les enfants de 0-59 mois | D70: Conditions de vie | E70: Bien-être physique et mental | F70: <2.5% | G70: 2.5-4.9% | H70: 5-9.9% | I70: 10-14.9% | J70: ≥15% | K70: De Onis et al (2018) Seuils de prévalence de l’émaciation, du surpoids et du retard de croissance chez les enfants de moins de 5 ans
B71: Malnutrition aiguë | C71: Prévalence de la malnutrition aiguë globale (MAG) basée sur le périmètre brachial (PB) < 210mm parmi les personnes âgées | D71: Bien-être physique et mental | F71: <5% | G71: 5-9.9% | H71: 10-14.9% OU 5-9.9%* | I71: ≥15% OU 10-14.9%* | K71: Basé sur les Interventions nutritionnelles de HelpAge pour les personnes âgées en situation d'urgences
C72: Prévalence de la malnutrition aiguë globale (MAG) basée sur le Z-score de l’IMC-pour-l'âge <-2 chez les adolescents | D72: Bien-être physique et mental | F72: <2.5% | G72: 2.5-4.9% | H72: 5-9.9% | I72: 10-14.9% | J72: ≥15% | K72: Seuils préliminaires suggérés par le Groupe de travail et le NISWG
B73: Carences en micronutriments | C73: Prévalence d’anémie Hb <11 g/dl chez les enfants de 6-59 mois | D73: Bien-être physique et mental | F73: <5% | G73: 5-19.9% | H73: 20-39.9% | I73: ≥40% | K73: OMS (2011) Concentrations d'hémoglobine pour le diagnostic de l’anémie et l’évaluation de la sévérité
C74: Prévalence d’anémie Hb <11 g/dl chez les femmes enceintes | D74: Bien-être physique et mental | F74: <5% | G74: 5-19.9% | H74: 20-39.9% | I74: ≥40% | K74: OMS (2011) Concentrations en hémoglobine pour le diagnostic de l’anémie et l’évaluation de la sévérité.
B75: Indicateurs de mortalité | C75: Taux de décès brut (décès/ 10 000 personnes/jour) | D75: Bien-être physique et mental | F75: <0.5 | H75: 0.5-0.9 | I75: 1-1.9 | J75: ≥2 | K75: Basé sur les Directives de la version 3 de la malnutrition de l'IPC de l'AM
C76: Taux de décès des moins de 5 ans (décès/10 000 enfants de moins de 5 ans/jour) | D76: Bien-être physique et mental | F76: <1 | H76: 1-1.9 | I76: 2-3.9 | J76: ≥4 | K76: Basé sur les Directives de la version 3 de la malnutrition de l'IPC de l'AM
A77: Principaux facteurs contributifs | B77: Causes immédiates (Consommation alimentaire) | C77: Diversité alimentaire minimale chez les enfants de 6-23 mois | D77: Conditions de vie | F77: ≥70% | G77: 40-70% | H77: 20-40% | I77: 10-20% | J77: <10% | K77: Seuils préliminaires suggérés par l'IFE Core Group
C78: Régime alimentaire minimum acceptable chez les enfants de 6-23 mois* *Nécessite une Fréquence minimale des repas chez les enfants de 6-23 mois pour obtenir cet indicateur | D78: Conditions de vie | F78: ≥70% | G78: 40-70% | H78: 20-40% | I78: 10-20% | J78: <10% | K78: Seuils préliminaires suggérés par l'IFE Core Group
C79: Allaitement maternel exclusif pour les nourrissons de 0-5 mois | D79: Conditions de vie | F79: ≥70% | G79: 50-70% | H79: 30 -50% | I79: 11-30% | J79: <11% | K79: Seuils inspirés de la fiche d’évaluation de l’UNICEF sur l’allaitement maternel
B80: Causes sous-jacentes (Pratiques de soins et d’alimentation) | C80: Nourrissons de 0-5 mois non allaités et ayant accès à l’approvisionnement en substituts de lait maternel (SLM) conformément au Code et aux normes et recommandations OG de l’IFE | D80: Conditions de vie | F80: ≥60% | G80: 40-60% | H80: 20-40% | I80: 10-20% | J80: <10% | K80: Seuils préliminaires suggérés par l'IFE Core Group
C81: Nourrissons de 6-11 mois non allaités et ayant accès à l’approvisionnement en substituts de lait maternel (SLM) conformément au Code et aux normes et recommandations OG de l’IFE | D81: Conditions de vie | F81: ≥60% | G81: 40-60% | H81: 20-40% | I81: 10-20% | J81: <10% | K81: Seuils préliminaires suggérés par l'IFE Core Group
B82: Causes sous-jacentes (WASH) | C82: % des ménages ayant accès à une source d’eau assainie | D82: Conditions de vie | F82: L'eau provient d'une source d'eau assainie située sur le site | G82: L’eau provient d’une source d’eau assainie, à condition que le temps de collecte ne dépasse pas 30 minutes pour un aller-retour, y compris le temps d’attente | H82: L’eau provient d’une source assainie pour laquelle le temps de collecte dépasse 30 minutes pour un aller-retour, y compris le temps d’attente | I82: L’eau provient d’une source d’eau non assainie | J82: L’eau provient directement des rivières, des lacs, des étangs, etc. | K82: En conformité avec le pourcentage majoritaire de réponses aux évaluations spécifiques de l’AEPAH (MSNA/DTM), tel que suggéré par nos collègues de l’AEPAH du JIAF. Voir aussi Limitations sur la feuille de travail Instructions. Si vous utilisez ces indicateurs dans l’analyse des facteurs contributifs, prendre contact avec le Cluster local du Global AEPAH.
C83: % des ménages ayant accès à une quantité suffisante d’eau pour la boisson, la cuisine, le bain, la toilette ou d’autres usages domestiques | D83: Conditions de vie | F83: Suffisamment d’eau pour la boisson, la cuisson, l’hygiène personnelle et d‘autres usages domestiques OU plus de 50 l/j/p | G83: Suffisamment d’eau pour la boisson ET la cuisson ET l’hygiène personnelle, MAIS PAS pour d’autres usages domestiques OU 15 l ou plus mais moins de 50 l/j/p | H83: Suffisamment d’eau pour la boisson ET SOIT pour la cuisson SOIT pour l’hygiène personnelle SOIT 9 l ou plus mais moins de 15 l/j/p | I83: Suffisamment d’eau pour la boisson MAIS PAS pour la cuisson ET l’hygiène personnelle OU 3 l ou plus mais moins de 9 l/j/p | J83: Pas assez d’eau pour la boisson OU moins de 3 l/j/p | K83: En conformité avec le pourcentage majoritaire de réponses aux évaluations spécifiques de l’AEPAH (MSNA/DTM), tel que suggéré par nos collègues de l’AEPAH du JIAF. Voir aussi Limitations sur la feuille de travail Instructions. Si vous utilisez ces indicateurs dans l’analyse des facteurs contributifs, prendre contact avec le Cluster local du Global AEPAH.
C84: % des ménages ayant accès à des installations sanitaires fonctionnelles et améliorées | D84: Conditions de vie | F84: Accès à des installations sanitaires améliorées, non partagées avec d’autres ménages | G84: Accès à des installations sanitaires améliorées, partagées avec moins de 20 personnes | H84: Accès à des installations sanitaires améliorées, partagées avec plus de 20 personnes | I84: Accès à des installations non améliorées OU accès à des installations améliorées partagées avec plus de 50 personnes | J84: Élimination des excréments humains dans des espaces ouverts ou avec les déchets solides | K84: En conformité avec le pourcentage majoritaire de réponses aux évaluations spécifiques de l’AEPAH (MSNA/DTM), tel que suggéré par nos collègues de l’AEPAH du JIAF. Voir aussi Limitations sur la feuille de travail Instructions. Si vous utilisez ces indicateurs dans l’analyse des facteurs contributifs, prendre contact avec le Cluster local du Global AEPAH.
C85: % des ménages ayant accès à des installations de lavage des mains fonctionnelles, avec de l’eau et du savon disponibles ou % des ménages ayant accès à du savon | D85: Conditions de vie | F85: Savon disponible au domicile ET installation de lavage des mains sur place avec de l'eau et du savon disponibles | H85: Savon disponible au domicile MAIS aucune installation de lavage des mains sur place avec de l’eau et du savon disponibles | J85: Savon disponible au domicile | K85: En conformité avec le pourcentage majoritaire de réponses aux évaluations spécifiques de l’AEPAH (MSNA/DTM), tel que suggéré par nos collègues de l’AEPAH du JIAF. Voir aussi Limitations sur la feuille de travail Instructions. Si vous utilisez ces indicateurs dans l’analyse des facteurs contributifs, prendre contact avec le Cluster local du Global AEPAH.
B86: Causes sous-jacentes (Immunisation) | C86: Couverture du DTC3 (DPT3/PENTA3) chez les enfants < 1 an, par unité administrative (%) | D86: Bien-être physique et mental | F86: > 90% | G86: 85% - 90% | H86: 75% - 85% | I86: 65% - 75% | J86: < 65% | K86: Ces données peuvent être disponibles par le biais de projections, mais si c'est le cas, la qualité des données doit être vérifiée et notée. Dans certaines enquêtes, les données sont recueillies auprès d’enfants âgés de 12-23 mois. Veuillez vous assurer de mentionner la tranche d'âge sur laquelle portent les données. Seul le premier seuil a été testé et a été étayé par des preuves. Les autres ont été choisis arbitrairement et ne doivent pas être considérés comme des mesures précises à ce stade
C87: Couverture vaccinale systématique contre la rougeole (%) | D87: Bien-être physique et mental | F87: Pas de seuils proposés | K87: Ne provient pas de la liste officielle du Cluster Santé de leurs indicateurs clefs. Utilisez le consensus et le jugement des experts au niveau des pays pour analyser les facteurs contributifs.
C88: Couverture vaccinale systématique contre la polio (%) | D88: Bien-être physique et mental | F88: Pas de seuils proposés | K88: Ne provient pas de la liste officielle du Cluster Santé de leurs indicateurs clefs. Utilisez le consensus et le jugement des experts au niveau des pays pour analyser les facteurs contributifs.
C89: Couverture de supplémentation systématique en vitamine A (%) | D89: Bien-être physique et mental | F89: Pas de seuils proposés | K89: Ne provient pas de la liste officielle du Cluster Santé de leurs indicateurs clefs. Utilisez le consensus et le jugement des experts au niveau des pays pour analyser les facteurs contributifs.
C90: Couverture de la campagne de vaccination contre la rougeole (%) | D90: Bien-être physique et mental | F90: Pas de seuils proposés | K90: Ne provient pas de la liste officielle du Cluster Santé de leurs indicateurs clefs. Utilisez le consensus et le jugement des experts au niveau des pays pour analyser les facteurs contributifs.
C91: Couverture de la campagne de vaccination contre la polio (%) | D91: Bien-être physique et mental | F91: Pas de seuils proposés | K91: Ne provient pas de la liste officielle du Cluster Santé de leurs indicateurs clefs. Utilisez le consensus et le jugement des experts au niveau des pays pour analyser les facteurs contributifs.
C92: Couverture de la campagne de supplémentation en vitamine A (%) | D92: Bien-être physique et mental | F92: Pas de seuils proposés | K92: Ne provient pas de la liste officielle du Cluster Santé de leurs indicateurs clefs. Utilisez le consensus et le jugement des experts au niveau des pays pour analyser les facteurs contributifs.
C93: Couverture vaccinale contre la rougeole à partir des enquêtes (%) | D93: Bien-être physique et mental | F93: Pas de seuils proposés | K93: Ne provient pas de la liste officielle du Cluster Santé de leurs indicateurs clefs. Utilisez le consensus et le jugement des experts au niveau des pays pour analyser les facteurs contributifs.
C94: Couverture vaccinale contre la polio d'après les enquêtes (%) | D94: Bien-être physique et mental | F94: Pas de seuils proposés | K94: Ne provient pas de la liste officielle du Cluster Santé de leurs indicateurs clefs. Utilisez le consensus et le jugement des experts au niveau des pays pour analyser les facteurs contributifs.
C95: Couverture de la supplémentation en vitamine A à partir des enquêtes (%) | D95: Bien-être physique et mental | F95: Pas de seuils proposés | K95: Ne provient pas de la liste officielle du Cluster Santé de leurs indicateurs clefs. Utilisez le consensus et le jugement des experts au niveau des pays pour analyser les facteurs contributifs.
C96: Couverture de tous les vaccins de base à partir des enquêtes (%) | D96: Bien-être physique et mental | F96: Pas de seuils proposés | K96: Ne provient pas de la liste officielle du Cluster Santé de leurs indicateurs clefs. Utilisez le consensus et le jugement des experts au niveau des pays pour analyser les facteurs contributifs.
C97: Pourcentage d’enfants âgés de 6 mois à 15 ans ayant été vaccinés contre la rougeole | D97: Bien-être physique et mental | F97: > 95 % dans les camps /zones urbaines > 90 % dans les zones dispersées ou rurales | G97: < 94 - 85 % dans les zones urbaines et les camps < 89 - 84 % dans les zones dispersées ou rurales | H97: 75 % - 85 % | I97: 65 % - 75 % | J97: <65% | K97: Cet indicateur est utilisé pour estimer la couverture vaccinale de la stratégie totale de l'EPI. Pour éviter toute surestimation, la couverture vaccinale contre la rougeole est utilisée comme approximation puisqu'elle est généralement inférieure à la couverture du DTC3. Ces deux indicateurs doivent être calculés sur une base annuelle et peuvent donner une bonne indication des performances du système de santé. Il est nécessaire d’évaluer la qualité des données disponibles. Seul le premier seuil a été testé et a été étayé par des preuves. Les autres ont été choisis arbitrairement et ne doivent pas être considérés comme des mesures précises à ce stade
B98: Causes immédiates (État de santé) | C98: Nombre de cas pour certaines maladies pertinentes dans le contexte local (par ex., le choléra, la rougeole, la méningite aiguë, la COVID-19) | D98: Bien-être physique et mental | F98: Pas de seuils proposés | K98: Cet indicateur est principalement une mesure au niveau national et ne peut pas être facilement agrégé pour être utilisé à des niveaux plus élevés. La liste des maladies est spécifique au contexte. La collecte de données peut être problématique car la surveillance des établissements de santé peut être peu sensible à des affections qui ne sont pas habituellement traitées en clinique. L’accès aux services de santé est un autre facteur. Prendre contact avec les collègues du Cluster Santé local si vous utilisez cet indicateur.
C99: Taux de létalité pour certaines maladies pertinentes | D99: Bien-être physique et mental | F99: Pas de seuils proposés | K99: Mélange de sévérité de la maladie et de la qualité du soin de santé. Probable biais vers le haut attendu car seuls les cas les plus sévères se retrouvent en établissement hospitalier. Cet indicateur est avant tout une mesure au niveau des pays et ne saurait être agrégée facilement à des niveaux plus globaux. La liste des maladies est à replacer dans le contexte local et la collecte de données peut être problématique, sauf pour les cas traités en établissement hospitalier. L’accès à ceux-ci est un autre facteur. Prendre contact avec les collègues du Cluster Santé local si vous utilisez cet indicateur.
C100: Proportion d’enfants de moins de 5 ans ayant souffert de diarrhée au cours des deux dernières semaines | D100: Bien-être physique et mental | F100: Pas de seuils proposés | K100: Ne provient pas de la liste officielle du Cluster Santé de leurs indicateurs clefs. Utilisez le consensus et le jugement des experts au niveau des pays pour analyser les facteurs contributifs.
C101: Prévalence de VIH/SIDA | D101: Bien-être physique et mental | F101: Pas de seuils proposés | K101: Ne provient pas de la liste officielle du Cluster Santé de leurs indicateurs clefs. Utilisez le consensus et le jugement des experts au niveau des pays pour analyser les facteurs contributifs.
C102: Proportion d’enfants de moins de 5 ans souffrant de fièvre dans les zones à risque de paludisme | D102: Bien-être physique et mental | F102: Pas de seuils proposés | K102: Ne provient pas de la liste officielle du Cluster Santé de leurs indicateurs clefs. Utilisez le consensus et le jugement des experts au niveau des pays pour analyser les facteurs contributifs.
C103: Proportion d’enfants de moins de 5 ans qui ont présentés des infections respiratoires aiguës (IRA) au cours des deux dernières semaines | D103: Bien-être physique et mental | F103: Pas de seuils proposés | K103: Ne provient pas de la liste officielle du Cluster Santé de leurs indicateurs clefs. Utilisez le consensus et le jugement des experts au niveau des pays pour analyser les facteurs contributifs.
C104: Nombre de cas signalés de choléra ou de Diarrhée aqueuse aiguë (AWD) | D104: Bien-être physique et mental | F104: Pas de seuils proposés | K104: Ne provient pas de la liste officielle du Cluster Santé de leurs indicateurs clefs. Utilisez le consensus et le jugement des experts au niveau des pays pour analyser les facteurs contributifs.
B105: Causes sous-jacentes (Disponibilité et accès aux services de santé) | C105: Pourcentage d'établissements de soins de santé qui fournissent un ensemble de services de santé de base (incluant la nutrition) | D105: Conditions de vie | F105: Pas de seuils proposés | K105: Ne provient pas de la liste officielle du Cluster Santé de leurs indicateurs clefs. Utilisez le consensus et le jugement des experts au niveau des pays pour analyser les facteurs contributifs.
C106: Bonne hygiène de vie selon les enquêtes de population | D106: Conditions de vie | F106: Pas de seuils proposés | K106: Ne provient pas de la liste officielle du Cluster Santé de leurs indicateurs clefs. Utilisez le consensus et le jugement des experts au niveau des pays pour analyser les facteurs contributifs.
C107: Pourcentage de la population ayant accès à des soins de santé primaires à moins d’une heure de marche de son domicile | D107: Conditions de vie | F107: ≥ 80% | G107: 75% - 80% | H107: 70% - 75% | I107: 65% - 70% | J107: < 65% | K107: Selon les directives de JIAF. Seul le premier seuil a été testé et a été étayé par des preuves. Les autres ont été choisis arbitrairement et ne doivent pas être considérés comme des mesures précises à ce stade
C108: Nombre de centres de santé avec soins obstétriques d’urgence de base/500 000 habitants, par unité administrative | D108: Conditions de vie | F108: 4+ | G108: 3--4 | H108: 2--3 | I108: 1--2 | J108: < 1 | K108: Selon les directives de JIAF. Indicateurs de substitution pour la disponibilité physique et l’accessibilité géographique des services obstétricaux d’urgence et leur répartition dans les districts des zones affectées. Un déséquilibre entre la disponibilité des BEmOC et des CEmOC (avec trop peu de BEmOC) est souvent observé. Seul le premier seuil a été testé et a été étayé par des preuves. Les autres ont été choisis arbitrairement et ne doivent pas être considérés comme des mesures précises à ce stade
C109: Nombre de personnel qualifié pour les accouchements (médecins, infirmières, sages-femmes certifiées) pour 10 000 habitants | D109: Conditions de vie | F109: >= 23 | G109: >= 20 | H109: >= 17 | I109: >= 14 | J109: >= 11 | K109: Selon les directives de JIAF.
B110: Causes immédiates (Consommation alimentaire) | C110: PRIORITÉ : Cluster Sécurité Alimentaire/Analyse sectorielle | D110: Conditions de vie | F110: 1 | G110: 2 | H110: 3 | I110: 4 | J110: 5 | K110: À harmoniser avec l’analyse finale ou les résultats de l’analyse d’IPC sur la sécurité alimentaire en termes de phases fournies par les collègues de la sécurité alimentaire dans le pays
C111: Score de consommation alimentaire | D111: Conditions de vie | F111: Acceptable et stable | G111: Acceptable mais détérioration par rapport au niveau typique | H111: Valeur limite | I111: Pauvre | J111: Pauvre | K111: Sous-ensemble suggéré par les collègues de la Sécurité alimentaire pour le JIAF – voir Limitations sur la feuille de travail Instructions
C112: Indice domestique de la faim | D112: Conditions de vie | F112: 0 (aucun) | G112: 1 (léger) | H112: 2 ou 3 (modéré) | I112: 4 (sévère) | J112: 5 ou 6 (sévère) | K112: Sous-ensemble suggéré par les collègues de la Sécurité alimentaire pour le JIAF – voir Limitations sur la feuille de travail Instructions
C113: Indice de stratégie d’adaptation réduit | D113: Conditions de vie | F113: 0-3 | G113: 4-18 | H113: ≥ 19 | I113: ≥ 19 | J113: ≥ 19 | K113: Sous-ensemble suggéré par les collègues de la Sécurité alimentaire pour le JIAF – voir Limitations sur la feuille de travail Instructions
C114: Score de diversité alimentaire des ménages | D114: Conditions de vie | F114: 5-12 groupes d’aliments et stabilité | G114: 5-GA mais détérioration > 1 / niveau typique | H114: 3-4 GA | I114: 0-2 GA | J114: 0-2 GA | K114: Sous-ensemble suggéré par les collègues de la Sécurité alimentaire pour le JIAF – voir Limitations sur la feuille de travail Instructions
A118: Umbrales de clasificación para los indicadores principales | F118: Escala de gravedad basada en las fases del IPC/OCHA
D119: Consecuencia humanitaria | F119: Fase I | G119: Fase II | H119: Fase III | I119: Fase IV | J119: Fase V | K119: Fuentes
A120: Categoría | B120: Alineación con el marco del IPC AMN | C120: Nombre/etiqueta del indicador de resultado | D120: DAG en M5 ≥5 % (Escenarios 1 y 2) | E120: DAG en M5 <5 % (Escenario 3) | F120: Aceptable/mínima | G120: Alerta/tensión | H120: Seria/grave | I120: Crítica/extrema | J120: Extremadamente crítica/catastrófica
A121: Resultados primarios | B121: Desnutrición aguda y crónica | C121: Prevalencia de DAG según el PTZ <-2 o edema con fóvea bilateral en niños/as de entre 0 y 59 meses (en caso de no haber datos, utilizar el de entre 6 y 59 meses) | D121: Bienestar físico y mental | F121: <5 % | G121: 5-9,9 % | H121: 10-14,9 % | I121: 15-29,9 % | J121: ≥30 % | K121: En función de las orientaciones de la versión 3 del IPC AMN
C122: Prevalencia de DAG según la circunferencia del brazo (MUAC) <125 mm o el edema con fóvea bilateral en niños/as de entre 6 y 59 meses | D122: Bienestar físico y mental | F122: <5 % | K122: Umbrales preliminares sugeridos por las orientaciones de la versión 3 del IPC AMN
G123: 5-9,9 %
H124: 10-14,9 %
I125: ≥15 %
C126: Prevalencia de DAG según la circunferencia del brazo (MUAC) <210-230 (según los contextos) o el edema con fóvea bilateral en MEL | D126: Bienestar físico y mental | F126: <12,5 % | G126: 12,6 %-19,9 % | H126: 20-24,9 % | I126: 25-34,9 % | J126: ≥35 % | K126: Umbrales preliminares basados en la Unidad de seguridad alimentaria y análisis nutricional de Somalia (FSNAU)
C127: Prevalencia de retraso del crecimiento según la TEZ <-2 en niños/as de entre 0 y 59 meses | D127: Calidad de vida | E127: Bienestar físico y mental | F127: <10 % | G127: 10-19,9 % | H127: 20-29,9 % | I127: ≥30 % | K127: De Onis et al. (2018) Prevalence thresholds for wasting, overweight, and stunting in children under 5 years
A128: Factores contextuales* * opcional según la situación humanitaria | B128: Otras causas | C128: Prevalencia de sobrepeso según el PTZ >2 en niños/as de entre 0 y 59 meses | D128: Calidad de vida | E128: Bienestar físico y mental | F128: <2,5 % | G128: 2,5-4,9 % | H128: 5-9,9 % | I128: 10-14,9 % | J128: ≥15 % | K128: De Onis et al. (2018) Prevalence thresholds for wasting, overweight, and stunting in children under 5 years
B129: Desnutrición aguda | C129: Prevalencia de DAG según el MUAC <210 mm en personas mayores | D129: Bienestar físico y mental | F129: <5 % | G129: 5-9,9 % | H129: 10-14,9 % O 5-9,9 %* | I129: ≥15 % O 10-14,9 %* | K129: Según las intervenciones en materia de nutrición de HelpAge para las personas mayores en situaciones de emergencia
C130: Prevalencia de DAG según la puntuación z del IMC para la edad <-2 en adolescentes | D130: Bienestar físico y mental | F130: <2,5 % | G130: 2,5-4,9 % | H130: 5-9,9 % | I130: 10-14,9 % | J130: ≥15 % | K130: Umbrales preliminares sugeridos por Taskforce y NISWG
B131: Deficiencias de micronutrientes | C131: Prevalencia de anemia Hb <11 g/dl en niños/as de entre 6 y 59 meses | D131: Bienestar físico y mental | F131: <5 % | G131: 5-19,9 % | H131: 20-39,9 % | I131: ≥40 % | K131: OMS (2011) Concentraciones de hemoglobina para diagnosticar la anemia y evaluar su gravedad
C132: Prevalencia de anemia Hb <11 g/dl en mujeres embarazadas | D132: Bienestar físico y mental | F132: <5 % | G132: 5-19,9 % | H132: 20-39,9 % | I132: ≥40 % | K132: OMS (2011) Concentraciones de hemoglobina para diagnosticar la anemia y evaluar su gravedad
B133: Indicadores sobre mortalidad | C133: Tasa bruta de mortalidad / tasa de mortalidad (fallecimientos por cada 10 000 personas/día) | D133: Bienestar físico y mental | F133: <0,5 | H133: 0,5-0,9 | I133: 1-1,9 | J133: ≥2 | K133: En función de las orientaciones de la versión 3 del IPC AMN
C134: Tasa bruta de mortalidad / tasa de mortalidad en M5 (fallecimientos por cada 10 000 menores/día) | D134: Bienestar físico y mental | F134: <1 | H134: 1-1,9 | I134: 2-3,9 | J134: ≥4 | K134: En función de las orientaciones de la versión 3 del IPC AMN
A135: Factores contribuyentes clave | B135: Causas inmediatas (Consumo de alimentos) | C135: Diversidad mínima de la dieta en niños/as de entre 6 y 23 meses | D135: Calidad de vida | F135: ≥70 % | G135: 40-70 % | H135: 20-40 % | I135: 10-20 % | J135: <10 % | K135: Umbrales preliminares sugeridos por el Grupo central de IFE
C136: Régimen alimenticio mínimo aceptable en niños/as de entre 6 y 23 meses* * Requiere derivar la Frecuencia mínima de comidas en niños/as de entre 6 y 23 meses | D136: Calidad de vida | F136: ≥70 % | G136: 40-70 % | H136: 20-40 % | I136: 10-20 % | J136: <10 % | K136: Umbrales preliminares sugeridos por el Grupo central de IFE
C137: Lactancia materna exclusiva en lactantes de entre 0 y 5 meses | D137: Calidad de vida | F137: ≥70 % | G137: 50-70 % | H137: 30-50 % | I137: 11-30 % | J137: <11 % | K137: Umbrales adaptados de las tarjetas de puntuación de lactancia materna del UNICEF
B138: Causas subyacentes (prácticas de cuidados y alimentación) | C138: Lactantes de entre 0 y 5 meses no amamantados con acceso a un suministro de SLM y apoyo en línea con el Código y los estándares de las guías operativas y las recomendaciones de IFE | D138: Calidad de vida | F138: ≥60 % | G138: 40-60 % | H138: 20-40 % | I138: 10-20 % | J138: <10 % | K138: Umbrales preliminares sugeridos por el Grupo central de IFE
C139: Lactantes de entre 6 y 11 meses no amamantados con acceso a un suministro de SLM y apoyo en línea con el Código y los estándares de las guías operativas y las recomendaciones de IFE | D139: Calidad de vida | F139: ≥60 % | G139: 40-60 % | H139: 20-40 % | I139: 10-20 % | J139: <10 % | K139: Umbrales preliminares sugeridos por el Grupo central de IFE
B140: Causas subyacentes (WASH) | C140: % hogares con acceso a una fuente mejorada de agua potable | D140: Calidad de vida | F140: El agua procede de una fuente mejorada de agua potable in situ | G140: El agua proviene de una fuente mejorada de agua potable cuyo tiempo de recogida supera los 30 minutos entre ida/vuelta, incluido el tiempo de espera en cola | H140: El agua procede de una fuente mejorada cuyo tiempo de ida/vuelta para su recogida es superior a 30 minutos, incluida la espera de turno | I140: El agua procede de una fuente no mejorada de agua potable | J140: El agua procede directamente de ríos, lagos, pozos, etc. | K140: Corresponde al porcentaje mayoritario de opciones de respuesta en las evaluaciones específicas de WASH/ MSNA/ DTM propuestas por los compañeros de WASH para el Marco conjunto de análisis intersectorial (JIAF). Véase Limitaciones, p. 3 de las orientaciones. Consultar con los compañeros del clúster WASH global de ámbito local en caso de utilizar este indicador para el análisis de factores contribuyentes.
C141: % hogares con acceso a una cantidad de agua suficiente para beber, cocinar, bañarse, lavarse u otros usos domésticos | D141: Calidad de vida | F141: Suficiente agua para beber, cocinar, mantener la higiene personal y otros usos domésticos O BIEN más de 50 l/d/p | G141: Suficiente agua para beber, cocinar Y mantener la higiene personal, PERO NO para otros usos domésticos O BIEN 15 l/d/p o más, pero menos de 50 | H141: Suficiente agua para beber Y cocinar O mantener la higiene personal, O BIEN 9 l/d/p o más, pero menos de 15 | I141: Suficiente agua para beber PERO NO para cocinar Y mantener la higiene personal, O BIEN 3 l/d/p o más, pero menos de 9 | J141: Sin agua suficiente para beber O BIEN menos de 3 l/d/p | K141: Corresponde al porcentaje mayoritario de opciones de respuesta en las evaluaciones específicas de WASH/ MSNA/ DTM propuestas por los compañeros de WASH para el Marco conjunto de análisis intersectorial (JIAF). Véase Limitaciones, p. 3 de las orientaciones. Consultar con los compañeros del clúster WASH global de ámbito local en caso de utilizar este indicador para el análisis de factores contribuyentes.
C142: % hogares con acceso a un servicio de saneamiento funcional y mejorado | D142: Calidad de vida | F142: Acceso a servicios de saneamiento mejorados, sin compartirlos con otros hogares | G142: Acceso a servicios de saneamiento mejorados, compartidos con menos de 20 personas | H142: Acceso a servicios de saneamiento mejorados, compartidos con más de 20 personas | I142: Acceso a servicios de saneamiento no mejorados O BIEN a servicios mejorados compartidos con más de 50 personas | J142: Evacuación de las heces humanas en espacios abiertos o con residuos sólidos | K142: Corresponde al porcentaje mayoritario de opciones de respuesta en las evaluaciones específicas de WASH/ MSNA/ DTM propuestas por los compañeros de WASH para el Marco conjunto de análisis intersectorial (JIAF). Véase Limitaciones, p. 3 de las orientaciones. Consultar con los compañeros del clúster WASH global de ámbito local en caso de utilizar este indicador para el análisis de factores contribuyentes.
C143: % hogares con acceso a equipamientos funcionales para la higiene de manos, con agua y jabón disponibles o % hogares con acceso a jabón | D143: Calidad de vida | F143: El hogar dispone de jabón Y de un lavabo para manos dentro con jabón y agua corriente | H143: Hay jabón en el hogar PERO no hay punto para la higiene de manos dentro del recinto con jabón y agua disponibles | J143: El hogar no dispone de jabón | K143: Corresponde al porcentaje mayoritario de opciones de respuesta en las evaluaciones específicas de WASH/ MSNA/ DTM propuestas por los compañeros de WASH para el Marco conjunto de análisis intersectorial (JIAF). Véase Limitaciones, p. 3 de las orientaciones. Consultar con los compañeros del clúster WASH global de ámbito local en caso de utilizar este indicador para el análisis de factores contribuyentes.
B144: Causas subyacentes (Inmunización) | C144: Cobertura de DTC3 (DPT3/PENTA3) en <1 año, por unidad administrativa (%) | D144: Bienestar físico y mental | F144: > 90 % | G144: 85 % - 90 % | H144: 75 % - 85 % | I144: 65 % - 75 % | J144: < 65 % | K144: Estos datos pueden estar disponibles a través de proyecciones; en tal caso, debe comprobarse y anotarse la calidad de los mismos. En algunas encuestas, se recopilan datos de niños de entre 12 y 23 meses. Es necesario asegurarse de que se referencia el intervalo de edades de los datos de interés. Tan solo se ha probado el primer umbral y hay evidencias que lo respaldan. El resto se han seleccionado arbitrariamente y no deben considerarse como cálculos de precisión en esta etapa.
C145: Cobertura rutinaria de la vacunación contra el sarampión (%) | D145: Bienestar físico y mental | F145: No se han propuesto umbrales | K145: No de la lista oficial del GHC de indicadores de salud «principales». Se debe emplear la opinión consensuada y la de los expertos en función de los expertos a nivel nacional para el análisis de los factores contribuyentes.
C146: Cobertura rutinaria de la vacunación contra la poliomielitis (%) | D146: Bienestar físico y mental | F146: No se han propuesto umbrales | K146: No de la lista oficial del GHC de indicadores de salud «principales». Se debe emplear la opinión consensuada y la de los expertos en función de los expertos a nivel nacional para el análisis de los factores contribuyentes.
C147: Cobertura rutinaria de suplementación en vitamina A (%) | D147: Bienestar físico y mental | F147: No se han propuesto umbrales | K147: No de la lista oficial del GHC de indicadores de salud «principales». Se debe emplear la opinión consensuada y la de los expertos en función de los expertos a nivel nacional para el análisis de los factores contribuyentes.
C148: Cobertura de la vacunación en campaña contra el sarampión (%) | D148: Bienestar físico y mental | F148: No se han propuesto umbrales | K148: No de la lista oficial del GHC de indicadores de salud «principales». Se debe emplear la opinión consensuada y la de los expertos en función de los expertos a nivel nacional para el análisis de los factores contribuyentes.
C149: Cobertura de la vacunación en campaña contra la poliomielitis (%) | D149: Bienestar físico y mental | F149: No se han propuesto umbrales | K149: No de la lista oficial del GHC de indicadores de salud «principales». Se debe emplear la opinión consensuada y la de los expertos en función de los expertos a nivel nacional para el análisis de los factores contribuyentes.
C150: Cobertura de la campaña de suplementación en vitamina A (%) | D150: Bienestar físico y mental | F150: No se han propuesto umbrales | K150: No de la lista oficial del GHC de indicadores de salud «principales». Se debe emplear la opinión consensuada y la de los expertos en función de los expertos a nivel nacional para el análisis de los factores contribuyentes.
C151: Cobertura de la vacunación contra el sarampión a partir de encuestas (%) | D151: Bienestar físico y mental | F151: No se han propuesto umbrales | K151: No de la lista oficial del GHC de indicadores de salud «principales». Se debe emplear la opinión consensuada y la de los expertos en función de los expertos a nivel nacional para el análisis de los factores contribuyentes.
C152: Cobertura de la vacunación contra la poliomielitis a partir de encuestas (%) | D152: Bienestar físico y mental | F152: No se han propuesto umbrales | K152: No de la lista oficial del GHC de indicadores de salud «principales». Se debe emplear la opinión consensuada y la de los expertos en función de los expertos a nivel nacional para el análisis de los factores contribuyentes.
C153: Cobertura de la suplementación en vitamina A a partir de encuestas (%) | D153: Bienestar físico y mental | F153: No se han propuesto umbrales | K153: No de la lista oficial del GHC de indicadores de salud «principales». Se debe emplear la opinión consensuada y la de los expertos en función de los expertos a nivel nacional para el análisis de los factores contribuyentes.
C154: Cobertura de todas las vacunas básicas a partir de encuestas (%) | D154: Bienestar físico y mental | F154: No se han propuesto umbrales | K154: No de la lista oficial del GHC de indicadores de salud «principales». Se debe emplear la opinión consensuada y la de los expertos en función de los expertos a nivel nacional para el análisis de los factores contribuyentes.
C155: Porcentaje de niños/as entre 6 meses y 15 años que han recibido la vacuna contra el sarampión | D155: Bienestar físico y mental | F155: >95 % en campamentos / zonas urbanas >90 % en zonas rurales o dispersas | G155: <94-85 % zonas urbanas y campamentos <89 - 84 % en zonas rurales o dispersadas | H155: 75 % - 85 % | I155: 65 % - 75 % | J155: <65 % | K155: Este indicador se utiliza para realizar una estimación de la tasa de vacunación de la estrategia total del PAI. Para evitar una estimación por encima de la real, se emplea la tasa de vacunación contra el sarampión ya que esta es habitualmente inferior a la de la DtAP3. Ambos indicadores deben calcularse anualmente y pueden convertirse en un buen indicador del rendimiento del sistema sanitario. Es necesario evaluar la calidad de los datos disponibles. Tan solo se ha probado el primer umbral y hay evidencias que lo respaldan. El resto se han seleccionado arbitrariamente y no deben considerarse como cálculos de precisión en esta etapa.
B156: Causas inmediatas (Estado de salud) | C156: Número de casos o tasa de incidencia de determinadas enfermedades pertinentes para el contexto local (cólera, sarampión, meningitis aguda u otras) | D156: Bienestar físico y mental | F156: No se han propuesto umbrales | K156: Este indicador es principalmente un cálculo a nivel nacional y no se puede agrupar fácilmente para utilizarlo a un nivel superior. La lista de enfermedades es específica para el contexto. La recopilación de datos puede presentar problemas dado que la vigilancia de los centros de salud puede tener una sensibilidad baja con respecto a aquellos trastornos para los que la población no solicita asistencia habitualmente. El acceso a los servicios sanitarios es otro factor. Consultar con los compañeros del GHC local en caso de utilizar este indicador para el análisis de factores contribuyentes.
C157: Tasa de letalidad (TL) para las enfermedades más comunes | D157: Bienestar físico y mental | F157: No se han propuesto umbrales | K157: Combinación de gravedad de la enfermedad y calidad de la asistencia sanitaria. Lo más probable es que haya un sesgo hacia arriba porque normalmente tan solo los casos más graves se presentan en la clínica. Este indicador es principalmente un cálculo a nivel nacional y no se puede agrupar fácilmente para utilizarlo a un nivel superior. La lista de enfermedades es específica para el contexto. La recopilación de datos puede presentar problemas dado que la vigilancia de los centros de salud puede tener una sensibilidad baja con respecto a aquellos trastornos para los que la población no solicita asistencia habitualmente. El acceso a los servicios sanitarios es otro factor. Consultar con los compañeros del GHC local en caso de utilizar este indicador para el análisis de factores contribuyentes.
C158: Proporción de M5 con diarrea durante las últimas dos semanas | D158: Bienestar físico y mental | F158: No se han propuesto umbrales | K158: No de la lista oficial del GHC de indicadores de salud «principales». Se debe emplear la opinión consensuada y la de los expertos en función de los expertos a nivel nacional para el análisis de los factores contribuyentes.
C159: Prevalencia de VIH/SIDA | D159: Bienestar físico y mental | F159: No se han propuesto umbrales | K159: No de la lista oficial del GHC de indicadores de salud «principales». Se debe emplear la opinión consensuada y la de los expertos en función de los expertos a nivel nacional para el análisis de los factores contribuyentes.
C160: Proporción de M5 con fiebre en zonas con riesgo de malaria | D160: Bienestar físico y mental | F160: No se han propuesto umbrales | K160: No de la lista oficial del GHC de indicadores de salud «principales». Se debe emplear la opinión consensuada y la de los expertos en función de los expertos a nivel nacional para el análisis de los factores contribuyentes.
C161: Proporción de M5 que sufrieron infecciones respiratorias agudas (IRA) durante las dos últimas semanas | D161: Bienestar físico y mental | F161: No se han propuesto umbrales | K161: No de la lista oficial del GHC de indicadores de salud «principales». Se debe emplear la opinión consensuada y la de los expertos en función de los expertos a nivel nacional para el análisis de los factores contribuyentes.
C162: Número de casos notificados de cólera o diarrea acuosa aguda | D162: Bienestar físico y mental | F162: No se han propuesto umbrales | K162: No de la lista oficial del GHC de indicadores de salud «principales». Se debe emplear la opinión consensuada y la de los expertos en función de los expertos a nivel nacional para el análisis de los factores contribuyentes.
B163: Causas subyacentes (Disponibilidad y acceso a los servicios de atención médica) | C163: Porcentaje de centros sanitarios que ofrecen un paquete básico de servicios médicos (incluidos los servicios sobre nutrición) | D163: Calidad de vida | F163: No se han propuesto umbrales | K163: No de la lista oficial del GHC de indicadores de salud «principales». Es preciso definir el "paquete básico de servicios sanitarios" para usar este indicador. Utilizar el paquete mínimo de servicios que se haya acordado con el país.
C164: Decisiones en materia de salud extraídas de encuestas sobre población | D164: Calidad de vida | F164: No se han propuesto umbrales | K164: No de la lista oficial del GHC de indicadores de salud «principales». Se debe emplear la opinión consensuada y la de los expertos en función de los expertos a nivel nacional para el análisis de los factores contribuyentes.
C165: Porcentaje de población que puede acceder a la atención primaria de salud en el plazo de una hora caminando desde el domicilio | D165: Calidad de vida | F165: ≥ 80% | G165: 75% - 80% | H165: 70% - 75% | I165: 65% - 70% | J165: < 65% | K165: Según la guía del JIAF. Tan solo se ha probado el primer umbral y hay evidencias que lo respaldan. El resto se han seleccionado arbitrariamente y no deben considerarse como cálculos de precisión en esta etapa.
C166: Número de centros de salud con asistencia obstétrica básica de urgencia / 500 000 personas, por unidad administrativa | D166: Calidad de vida | F166: 4+ | G166: 3--4 | H166: 2--3 | I166: 1--2 | J166: < 1 | K166: Según la guía del JIAF. Indicadores representativos de la disponibilidad física y la accesibilidad geográfica a los servicios obstétricos de urgencia y su distribución entre los barrios de las zonas afectadas. Se observa un desequilibrio entre la disponibilidad de los servicios de asistencia obstétrica de urgencias básica y los de asistencia obstétrica de urgencias completa (con muy pocos centros para los primeros). Tan solo se ha probado el primer umbral y hay evidencias que lo respaldan. El resto se han seleccionado arbitrariamente y no deben considerarse como cálculos de precisión en esta etapa.
C167: Número de profesionales cualificados para asistir en partos (personal médico, enfermería, comadronas tituladas) por cada 10 000 personas | D167: Calidad de vida | F167: >= 23 | G167: >= 20 | H167: >= 17 | I167: >= 14 | J167: >= 11 | K167: Según la guía del JIAF. Tan solo se ha probado el primer umbral y hay evidencias que lo respaldan. El resto se han seleccionado arbitrariamente y no deben considerarse como cálculos de precisión en esta etapa.
B168: Causas inmediatas (Consumo de alimentos) | C168: PRIORIDAD: Análisis sobre seguridad alimentaria a nivel de clúster/sector | D168: Calidad de vida | F168: 1 | G168: 2 | H168: 3 | I168: 4 | J168: 5 | K168: Alinear con el análisis final en lo relativo a las fases proporcionadas por los compañeros que trabajan localmente en seguridad alimentaria o con el análisis sobre inseguridad alimentaria aguda del IPC.
C169: Puntuación de consumo de alimentos | D169: Calidad de vida | F169: Aceptable y estable | G169: Aceptable pero deteriorada con respecto a la habitual | H169: Al el límite | I169: Escasa | J169: Escasa | K169: Según la guía del JIAF. En caso de usar este indicador en el análisis de factores contribuyentes, es importante colaborar con los compañeros de GFSC local. Véase Limitaciones en la pestaña Instrucciones.
C170: Escala de hambre en los hogares | D170: Calidad de vida | F170: 0 (sin hambre) | G170: 1 (ligera) | H170: 2 o 3 (moderada) | I170: 4 (grave) | J170: 5 o 6 (grave) | K170: Según la guía del JIAF. En caso de usar este indicador en el análisis de factores contribuyentes, es importante colaborar con los compañeros de GFSC local. Véase Limitaciones en la pestaña Instrucciones.
C171: Índice reducido de estrategias de afrontamiento | D171: Calidad de vida | F171: De 0 a 3 | G171: De 4 a 18 | H171: ≥ 19 | I171: ≥ 19 | J171: ≥ 19 | K171: Según la guía del JIAF. En caso de usar este indicador en el análisis de factores contribuyentes, es importante colaborar con los compañeros de GFSC local. Véase Limitaciones en la pestaña Instrucciones.
C172: Puntuación de la diversidad de la dieta en el hogar | D172: Calidad de vida | F172: 5-12 grupos de alimentos y estable | G172: 5 grupos de alimentos, pero deteriorado respecto a la norma ≥1 grupos de alimentos | H172: De 3 a 4 grupos de alimentos | I172: De 0 a 2 grupos de alimentos | J172: De 0 a 2 grupos de alimentos | K172: Según la guía del JIAF. En caso de usar este indicador en el análisis de factores contribuyentes, es importante colaborar con los compañeros de GFSC local. Véase Limitaciones en la pestaña Instrucciones.

Sheet Evidence Repository,Reliability
A1: =HLOOKUP(Instructions!E1,langSelected,3,TRUE) -> Repository and reliability of Evidence Used | G1: =HLOOKUP(Instructions!E1,langSelected,4,TRUE) -> IPC AM Reliability Score Table - see Figure 2 on p. 6
C2: =HLOOKUP(Instructions!E1,langSelected,5,TRUE) -> EVIDENCE USED | G2: =HLOOKUP(Instructions!E1,langSelected,6,TRUE) -> Time relevant | H2: =HLOOKUP(Instructions!E1,langSelected,7,TRUE) -> Time relevant | I2: =HLOOKUP(Instructions!E1,langSelected,8,TRUE) -> Not time relevant | J2: =HLOOKUP(Instructions!E1,langSelected,9,TRUE) -> Not time relevant
C3: =HLOOKUP(Instructions!E1,langSelected,10,TRUE) -> Name of report | D3: =HLOOKUP(Instructions!E1,langSelected,11,TRUE) -> Source of report | E3: =HLOOKUP(Instructions!E1,langSelected,12,TRUE) -> Data collection period | F3: =HLOOKUP(Instructions!E1,langSelected,13,TRUE) -> Date of publication | G3: =HLOOKUP(Instructions!E1,langSelected,14,TRUE) -> Soundness of Method | H3: =HLOOKUP(Instructions!E1,langSelected,15,TRUE) -> Limited Method | I3: =HLOOKUP(Instructions!E1,langSelected,16,TRUE) -> Soundness of Method | J3: =HLOOKUP(Instructions!E1,langSelected,17,TRUE) -> Limited Method | K3: =HLOOKUP(Instructions!E1,langSelected,18,TRUE) -> Remarks and raw data evidence [Indicate representativeness, quality, etc.; status of the report such as preliminary; if nothing to highlight, leave it blank]
A4: =HLOOKUP(Instructions!E1,langSelected,19,TRUE) -> Sector | B4: =HLOOKUP(Instructions!E1,langSelected,20,TRUE) -> Outcome Indicator Name/label | C4: =HLOOKUP(Instructions!E1,langSelected,21,TRUE) -> [Write the exact name of the report] | D4: =HLOOKUP(Instructions!E1,langSelected,22,TRUE) -> [Write the name(s) of agency(ies) that published the report] | E4: =HLOOKUP(Instructions!E1,langSelected,23,TRUE) -> [Write the dates during which the data was collected] | F4: =HLOOKUP(Instructions!E1,langSelected,24,TRUE) -> [Write the date in which the report was published] | G4: =HLOOKUP(Instructions!E1,langSelected,25,TRUE) -> Reliable - R2 | H4: =HLOOKUP(Instructions!E1,langSelected,26,TRUE) -> Somewhat Reliable - R1+ | I4: =HLOOKUP(Instructions!E1,langSelected,27,TRUE) -> Somewhat Reliable - R1- | J4: =HLOOKUP(Instructions!E1,langSelected,28,TRUE) -> X
A5: =HLOOKUP(Instructions!E1,langSelected,29,TRUE) -> Nutrition | B5: =HLOOKUP(Instructions!E1,langSelected,30,TRUE) -> Prevalence of Global Acute Malnutrition (GAM) based on weight for height Z-score (WHZ)<-2 and/or bilateral pitting oedema among children 0-59 months (if no data, use 6-59 months) | G5: X
B6: =HLOOKUP(Instructions!E1,langSelected,31,TRUE) -> Prevalence of Global Acute Malnutrition (GAM) based on Mid-Upper Arm Circumference (MUAC) <125mm and/or bilateral pitting oedema among children 6-59 months | H6: X
B7: =HLOOKUP(Instructions!E1,langSelected,32,TRUE) -> Prevalence of Global Acute Malnutrition (GAM) based on Mid-Upper Arm Circumference (MUAC)<210-230 (depending on the contexts) and/or bilateral pitting oedema among PLW
B8: =HLOOKUP(Instructions!E1,langSelected,33,TRUE) -> Prevalence of stunting based on height-for-age Z-score (HAZ)<-2 among children 0-59 months
B9: =HLOOKUP(Instructions!E1,langSelected,34,TRUE) -> Prevalence of overweight based on weight for height Z-score (WHZ)>2 among children 0-59 months
B10: =HLOOKUP(Instructions!E1,langSelected,35,TRUE) -> Prevalence of Global Acute Malnutrition (GAM) based on Mid-Upper Arm Circumference (MUAC)<210mm among Older People
B11: =HLOOKUP(Instructions!E1,langSelected,36,TRUE) -> Prevalence of Global Acute Malnutrition (GAM) based on BMI-for-Age Z-Score<-2 among Adolescents
B12: =HLOOKUP(Instructions!E1,langSelected,37,TRUE) -> Prevalence of anemia Hb <11g/dl in children 6-59 months
B13: =HLOOKUP(Instructions!E1,langSelected,38,TRUE) -> Prevalence of anemia Hb <11g/dl in pregnant women
B14: =HLOOKUP(Instructions!E1,langSelected,39,TRUE) -> Crude Death/Mortality Rate (deaths/ 10,000 persons/ day)
B15: =HLOOKUP(Instructions!E1,langSelected,40,TRUE) -> Under-five Death/Mortality Rate (deaths/ 10,000 children U5/ day)
A16: =HLOOKUP(Instructions!E1,langSelected,41,TRUE) -> IYCF Practices | B16: =HLOOKUP(Instructions!E1,langSelected,42,TRUE) -> Minimum Dietary Diversity in children 6 to 23 months
B17: =HLOOKUP(Instructions!E1,langSelected,44,TRUE) -> Exclusive breastfeeding for infants 0-5 months
B18: =HLOOKUP(Instructions!E1,langSelected,45,TRUE) -> Infants 0-5 months that are not breastfed who have access to Breast Milk Substitutes (BMS) supplies and support in line with the Code and the IFE OG standards and recommendations
B19: =HLOOKUP(Instructions!E1,langSelected,46,TRUE) -> Infants 6-11 months that are not breastfed who have access to Breast Milk Substitutes (BMS) supplies and support in line with the Code and the IFE OG standards and recommendations
A20: =HLOOKUP(Instructions!E1,langSelected,47,TRUE) -> WASH | B20: =HLOOKUP(Instructions!E1,langSelected,48,TRUE) -> % of HHs having access to an improved water source
B21: =HLOOKUP(Instructions!E1,langSelected,49,TRUE) -> % of HHs having access to a sufficient quantity of water for drinking, cooking, bathing, washing or other domestic use
B22: =HLOOKUP(Instructions!E1,langSelected,50,TRUE) -> % of HHs having access to a functionnal and improved sanitation facility
B23: =HLOOKUP(Instructions!E1,langSelected,51,TRUE) -> % of HHs with access to functioning handwashing facilities, with water and soap available or % of HHs with access to soap
A24: =HLOOKUP(Instructions!E1,langSelected,52,TRUE) -> Health | B24: =HLOOKUP(Instructions!E1,langSelected,53,TRUE) -> Coverage of DTC3 (DPT3 / PENTA3) in < 1 year old, by administrative unit (%)
B25: =HLOOKUP(Instructions!E1,langSelected,54,TRUE) -> Routine measles vaccination coverage (%)
B26: =HLOOKUP(Instructions!E1,langSelected,55,TRUE) -> Routine polio vaccination coverage (%)
B27: =HLOOKUP(Instructions!E1,langSelected,56,TRUE) -> Routine Vitamin A supplementation coverage (%)
B28: =HLOOKUP(Instructions!E1,langSelected,57,TRUE) -> Campaign measles vaccination coverage (%)
B29: =HLOOKUP(Instructions!E1,langSelected,58,TRUE) -> Campaign polio vaccination coverage (%)
B30: =HLOOKUP(Instructions!E1,langSelected,59,TRUE) -> Campaign Vitamin A supplementation coverage (%)
B31: =HLOOKUP(Instructions!E1,langSelected,60,TRUE) -> Measles vaccination coverage from surveys (%)
B32: =HLOOKUP(Instructions!E1,langSelected,61,TRUE) -> Polio vaccination coverage from surveys (%)
B33: =HLOOKUP(Instructions!E1,langSelected,62,TRUE) -> Vitamin A supplementation coverage from surveys (%)
B34: =HLOOKUP(Instructions!E1,langSelected,63,TRUE) -> Coverage of all basic vaccinations from surveys (%)
B35: =HLOOKUP(Instructions!E1,langSelected,64,TRUE) -> Percentage of children aged six months to 15 years who have received measles vaccination
B36: =HLOOKUP(Instructions!E1,langSelected,65,TRUE) -> Number of cases or incidence rates for selected diseases relevant to the local context (cholera, measles, acute meningitis, others)
B37: =HLOOKUP(Instructions!E1,langSelected,66,TRUE) -> Case Fatality Ratio (CFR) for most common diseases
B38: =HLOOKUP(Instructions!E1,langSelected,67,TRUE) -> Proportion of children U5 with diarrhea in the last two weeks
B39: =HLOOKUP(Instructions!E1,langSelected,68,TRUE) -> Prevalence of HIV/AIDS
B40: =HLOOKUP(Instructions!E1,langSelected,69,TRUE) -> Proportion of children U5 with fever in malaria-risk areas
B41: =HLOOKUP(Instructions!E1,langSelected,70,TRUE) -> Proportion of children U5 who had Acute Respiratory Infections (ARI) in the last 2 weeks
B42: =HLOOKUP(Instructions!E1,langSelected,71,TRUE) -> Number of reported cases of cholera or Acute Watery Diarrhea (AWD)
B43: =HLOOKUP(Instructions!E1,langSelected,72,TRUE) -> Percentage of healthcare facilities that deliver essential package of health services (including nutrition)
B44: =HLOOKUP(Instructions!E1,langSelected,74,TRUE) -> Percentage of population that can access primary healthcare within one hour’s walk from dwellings
B45: =HLOOKUP(Instructions!E1,langSelected,75,TRUE) -> Number of HF with Basic Emergency Obstetric Care/ 500,000 population, by administrative unit
B46: =HLOOKUP(Instructions!E1,langSelected,76,TRUE) -> Number of skilled birth attendant personnel (doctors, nurses, certified midwives) per 10,000 people
B47: =HLOOKUP(Instructions!E1,langSelected,77,TRUE) -> Food Security
A48: =HLOOKUP(Instructions!E1,langSelected,77,TRUE) -> Food Security | B48: =HLOOKUP(Instructions!E1,langSelected,78,TRUE) -> PRIORITY: Food Security Cluster/Sector Analysis
B49: =HLOOKUP(Instructions!E1,langSelected,79,TRUE) -> Food Consumption Score
B50: =HLOOKUP(Instructions!E1,langSelected,80,TRUE) -> Household Hunger Scale
B51: =HLOOKUP(Instructions!E1,langSelected,81,TRUE) -> Reduced Coping Strategies Index
B52: =HLOOKUP(Instructions!E1,langSelected,82,TRUE) -> Household Dietary Diversity Score

Sheet Analysis Team Composition
A1: =HLOOKUP(Instructions!E1,langSelected,84,TRUE) -> ANALYSIS TEAM COMPOSITION MATRIX
E2: =HLOOKUP(Instructions!E1,langSelected,85,TRUE) -> (adapted from IPC AMN)
A3: =HLOOKUP(Instructions!E1,langSelected,86,TRUE) -> Nutrition Cluster Coordinator: | C3: =HLOOKUP(Instructions!E1,langSelected,87,TRUE) -> Stakeholder Organization Representation
A4: =HLOOKUP(Instructions!E1,langSelected,88,TRUE) -> Facilitator(s): | C4: =HLOOKUP(Instructions!E1,langSelected,89,TRUE) -> Member of the NIS TWG (Yes/No) | D4: =HLOOKUP(Instructions!E1,langSelected,90,TRUE) -> (Indicate the name, title, and agency)
D5: =HLOOKUP(Instructions!E1,langSelected,91,TRUE) -> National Government | E5: =HLOOKUP(Instructions!E1,langSelected,92,TRUE) -> National NGOs/ Civil Society/ Private Sector | F5: =HLOOKUP(Instructions!E1,langSelected,93,TRUE) -> Technical Agencies/Academic Institutions | G5: =HLOOKUP(Instructions!E1,langSelected,94,TRUE) -> International NGOs | H5: =HLOOKUP(Instructions!E1,langSelected,95,TRUE) -> United Nations Agencies
D6: =HLOOKUP(Instructions!E1,langSelected,96,TRUE) -> (at all relevant levels)
A7: =HLOOKUP(Instructions!E1,langSelected,97,TRUE) -> Area of Expertise (include as relevant for analysis) | B7: =HLOOKUP(Instructions!E1,langSelected,98,TRUE) -> Nutrition
B8: =HLOOKUP(Instructions!E1,langSelected,99,TRUE) -> Food Security/ Livelihoods
B9: =HLOOKUP(Instructions!E1,langSelected,100,TRUE) -> Health
B10: =HLOOKUP(Instructions!E1,langSelected,101,TRUE) -> WASH
B11: =HLOOKUP(Instructions!E1,langSelected,102,TRUE) -> Gender
B12: =HLOOKUP(Instructions!E1,langSelected,103,TRUE) -> Statistics
B13: =HLOOKUP(Instructions!E1,langSelected,104,TRUE) -> Other 1
B14: =HLOOKUP(Instructions!E1,langSelected,105,TRUE) -> Other 2
B15: =HLOOKUP(Instructions!E1,langSelected,106,TRUE) -> Other 3

Sheet Scenario 2 - Nut.Analysis
A1: =HLOOKUP(Instructions!E1,langSelected,108,TRUE) -> PHYSICAL AND MENTAL WELL-BEING | D1: =HLOOKUP(Instructions!E1,langSelected,109,TRUE) -> SCENARIO 2 with U5 GAM≥5%
B2: =HLOOKUP(Instructions!E1,langSelected,110,TRUE) -> Reliability Scores
B3: =HLOOKUP(Instructions!E1,langSelected,111,TRUE) -> Based on soundness of method and time relevance (see Figure 2) R2 - Reliable R1 - Somewhat reliable | C3: =HLOOKUP(Instructions!E1,langSelected,112,TRUE) -> Based on soundness of method and time relevance (see Figure 2) R2 - Reliable R1 - Somewhat reliable | D3: =HLOOKUP(Instructions!E1,langSelected,113,TRUE) -> Based on soundness of method and time relevance (see Figure 2) R2 - Reliable R1 - Somewhat reliable | E3: =HLOOKUP(Instructions!E1,langSelected,114,TRUE) -> Based on soundness of method and time relevance (see Figure 2) R2 - Reliable R1 - Somewhat reliable | F3: =HLOOKUP(Instructions!E1,langSelected,115,TRUE) -> Based on soundness of method and time relevance (see Figure 2) R2 - Reliable R1 - Somewhat reliable
A5: =HLOOKUP(Instructions!E1,langSelected,116,TRUE) -> Admin for "Affected" areas of interest | B5: =HLOOKUP(Instructions!E1,langSelected,117,TRUE) -> GAM prevalence % (WHZ) for children 0-59 months | C5: =HLOOKUP(Instructions!E1,langSelected,118,TRUE) -> ONLY IF GAM (WHZ) is not available: GAM prevalence % (MUAC) for children 6-59 months | D5: =HLOOKUP(Instructions!E1,langSelected,119,TRUE) -> GAM prevalence % for PLW (MUAC<210mm)* | E5: =HLOOKUP(Instructions!E1,langSelected,120,TRUE) -> Severity Analysis based on GAM prevalence % | F5: =HLOOKUP(Instructions!E1,langSelected,121,TRUE) -> Justification if GAM based on MUAC was used
A6: =HLOOKUP(Instructions!E1,langSelected,122,TRUE) -> Use Admin names from the CODs | B6: =HLOOKUP(Instructions!E1,langSelected,123,TRUE) -> Insert prevalence data - Automatic classification (see Classification thresholds worksheet) | C6: =HLOOKUP(Instructions!E1,langSelected,124,TRUE) -> Insert prevalence data - Automatic classification (see Classification thresholds worksheet) | D6: =HLOOKUP(Instructions!E1,langSelected,125,TRUE) -> Insert prevalence data - Automatic classification (see Classification thresholds worksheet) | E6: =HLOOKUP(Instructions!E1,langSelected,126,TRUE) -> Automatic Classifier | G6: =HLOOKUP(Instructions!E1,langSelected,127,TRUE) -> * adapt with country-level cut-off if different
A7: Badakhshan | B7: 0.05 | C7: 0.15 | D7: 0.45 | E7: =IF(B7<>"", (IF(B7<5%,'Classification thresholds'!$F$2, IF(B7<10%,'Classification thresholds'!$G$2, IF(B7<15%,'Classification thresholds'!$H$2,IF(B7<30%,'Classification thresholds'!$I$2,IF(B7>29%,'Classification thresholds'!$J$2,"")))))), IF(C7<>"",(IF(C7<5%,"Provide justification for value", IF(C7<10%,"Provide justification for value", IF(C7<15%,"Provide justification for value", IF(C7<30%,"Provide justification for value",""))))), IF(D7<>"",(IF(D7<12.5%,'Classification thresholds'!$F$2, IF(D7<20%,'Classification thresholds'!$G$2, IF(D7<25%,'Classification thresholds'!$H$2, IF(D7<35%,'Classification thresholds'!$I$2,IF(D7>34%,'Classification thresholds'!$J$2,"")))))),""))) -> Phase 2
A8: Badghis | B8: 0.17 | D8: 0.15 | E8: =IF(B8<>"", (IF(B8<5%,'Classification thresholds'!$F$2, IF(B8<10%,'Classification thresholds'!$G$2, IF(B8<15%,'Classification thresholds'!$H$2,IF(B8<30%,'Classification thresholds'!$I$2,IF(B8>29%,'Classification thresholds'!$J$2,"")))))), IF(C8<>"",(IF(C8<5%,"Provide justification for value", IF(C8<10%,"Provide justification for value", IF(C8<15%,"Provide justification for value", IF(C8<30%,"Provide justification for value",""))))), IF(D8<>"",(IF(D8<12.5%,'Classification thresholds'!$F$2, IF(D8<20%,'Classification thresholds'!$G$2, IF(D8<25%,'Classification thresholds'!$H$2, IF(D8<35%,'Classification thresholds'!$I$2,IF(D8>34%,'Classification thresholds'!$J$2,"")))))),""))) -> Phase 4
A9: Baghlan | B9: 0.35 | C9: 0.12 | D9: 0.12 | E9: =IF(B9<>"", (IF(B9<5%,'Classification thresholds'!$F$2, IF(B9<10%,'Classification thresholds'!$G$2, IF(B9<15%,'Classification thresholds'!$H$2,IF(B9<30%,'Classification thresholds'!$I$2,IF(B9>29%,'Classification thresholds'!$J$2,"")))))), IF(C9<>"",(IF(C9<5%,"Provide justification for value", IF(C9<10%,"Provide justification for value", IF(C9<15%,"Provide justification for value", IF(C9<30%,"Provide justification for value",""))))), IF(D9<>"",(IF(D9<12.5%,'Classification thresholds'!$F$2, IF(D9<20%,'Classification thresholds'!$G$2, IF(D9<25%,'Classification thresholds'!$H$2, IF(D9<35%,'Classification thresholds'!$I$2,IF(D9>34%,'Classification thresholds'!$J$2,"")))))),""))) -> Phase 5
A10: Balkh | B10: 0.05 | D10: 0.24 | E10: =IF(B10<>"", (IF(B10<5%,'Classification thresholds'!$F$2, IF(B10<10%,'Classification thresholds'!$G$2, IF(B10<15%,'Classification thresholds'!$H$2,IF(B10<30%,'Classification thresholds'!$I$2,IF(B10>29%,'Classification thresholds'!$J$2,"")))))), IF(C10<>"",(IF(C10<5%,"Provide justification for value", IF(C10<10%,"Provide justification for value", IF(C10<15%,"Provide justification for value", IF(C10<30%,"Provide justification for value",""))))), IF(D10<>"",(IF(D10<12.5%,'Classification thresholds'!$F$2, IF(D10<20%,'Classification thresholds'!$G$2, IF(D10<25%,'Classification thresholds'!$H$2, IF(D10<35%,'Classification thresholds'!$I$2,IF(D10>34%,'Classification thresholds'!$J$2,"")))))),""))) -> Phase 2
A11: Bamyan | D11: 0.3 | E11: =IF(B11<>"", (IF(B11<5%,'Classification thresholds'!$F$2, IF(B11<10%,'Classification thresholds'!$G$2, IF(B11<15%,'Classification thresholds'!$H$2,IF(B11<30%,'Classification thresholds'!$I$2,IF(B11>29%,'Classification thresholds'!$J$2,"")))))), IF(C11<>"",(IF(C11<5%,"Provide justification for value", IF(C11<10%,"Provide justification for value", IF(C11<15%,"Provide justification for value", IF(C11<30%,"Provide justification for value",""))))), IF(D11<>"",(IF(D11<12.5%,'Classification thresholds'!$F$2, IF(D11<20%,'Classification thresholds'!$G$2, IF(D11<25%,'Classification thresholds'!$H$2, IF(D11<35%,'Classification thresholds'!$I$2,IF(D11>34%,'Classification thresholds'!$J$2,"")))))),""))) -> Phase 4
A12: Dykundi | B12: 0.05 | E12: =IF(B12<>"", (IF(B12<5%,'Classification thresholds'!$F$2, IF(B12<10%,'Classification thresholds'!$G$2, IF(B12<15%,'Classification thresholds'!$H$2,IF(B12<30%,'Classification thresholds'!$I$2,IF(B12>29%,'Classification thresholds'!$J$2,"")))))), IF(C12<>"",(IF(C12<5%,"Provide justification for value", IF(C12<10%,"Provide justification for value", IF(C12<15%,"Provide justification for value", IF(C12<30%,"Provide justification for value",""))))), IF(D12<>"",(IF(D12<12.5%,'Classification thresholds'!$F$2, IF(D12<20%,'Classification thresholds'!$G$2, IF(D12<25%,'Classification thresholds'!$H$2, IF(D12<35%,'Classification thresholds'!$I$2,IF(D12>34%,'Classification thresholds'!$J$2,"")))))),""))) -> Phase 2
A13: Farah | B13: 0.05 | E13: =IF(B13<>"", (IF(B13<5%,'Classification thresholds'!$F$2, IF(B13<10%,'Classification thresholds'!$G$2, IF(B13<15%,'Classification thresholds'!$H$2,IF(B13<30%,'Classification thresholds'!$I$2,IF(B13>29%,'Classification thresholds'!$J$2,"")))))), IF(C13<>"",(IF(C13<5%,"Provide justification for value", IF(C13<10%,"Provide justification for value", IF(C13<15%,"Provide justification for value", IF(C13<30%,"Provide justification for value",""))))), IF(D13<>"",(IF(D13<12.5%,'Classification thresholds'!$F$2, IF(D13<20%,'Classification thresholds'!$G$2, IF(D13<25%,'Classification thresholds'!$H$2, IF(D13<35%,'Classification thresholds'!$I$2,IF(D13>34%,'Classification thresholds'!$J$2,"")))))),""))) -> Phase 2
A14: Faryab | C14: 0.15 | E14: =IF(B14<>"", (IF(B14<5%,'Classification thresholds'!$F$2, IF(B14<10%,'Classification thresholds'!$G$2, IF(B14<15%,'Classification thresholds'!$H$2,IF(B14<30%,'Classification thresholds'!$I$2,IF(B14>29%,'Classification thresholds'!$J$2,"")))))), IF(C14<>"",(IF(C14<5%,"Provide justification for value", IF(C14<10%,"Provide justification for value", IF(C14<15%,"Provide justification for value", IF(C14<30%,"Provide justification for value",""))))), IF(D14<>"",(IF(D14<12.5%,'Classification thresholds'!$F$2, IF(D14<20%,'Classification thresholds'!$G$2, IF(D14<25%,'Classification thresholds'!$H$2, IF(D14<35%,'Classification thresholds'!$I$2,IF(D14>34%,'Classification thresholds'!$J$2,"")))))),""))) -> Provide justification for value
A15: Ghazni | B15: 0.05 | E15: =IF(B15<>"", (IF(B15<5%,'Classification thresholds'!$F$2, IF(B15<10%,'Classification thresholds'!$G$2, IF(B15<15%,'Classification thresholds'!$H$2,IF(B15<30%,'Classification thresholds'!$I$2,IF(B15>29%,'Classification thresholds'!$J$2,"")))))), IF(C15<>"",(IF(C15<5%,"Provide justification for value", IF(C15<10%,"Provide justification for value", IF(C15<15%,"Provide justification for value", IF(C15<30%,"Provide justification for value",""))))), IF(D15<>"",(IF(D15<12.5%,'Classification thresholds'!$F$2, IF(D15<20%,'Classification thresholds'!$G$2, IF(D15<25%,'Classification thresholds'!$H$2, IF(D15<35%,'Classification thresholds'!$I$2,IF(D15>34%,'Classification thresholds'!$J$2,"")))))),""))) -> Phase 2
A16: Ghor | D16: 0.5 | E16: =IF(B16<>"", (IF(B16<5%,'Classification thresholds'!$F$2, IF(B16<10%,'Classification thresholds'!$G$2, IF(B16<15%,'Classification thresholds'!$H$2,IF(B16<30%,'Classification thresholds'!$I$2,IF(B16>29%,'Classification thresholds'!$J$2,"")))))), IF(C16<>"",(IF(C16<5%,"Provide justification for value", IF(C16<10%,"Provide justification for value", IF(C16<15%,"Provide justification for value", IF(C16<30%,"Provide justification for value",""))))), IF(D16<>"",(IF(D16<12.5%,'Classification thresholds'!$F$2, IF(D16<20%,'Classification thresholds'!$G$2, IF(D16<25%,'Classification thresholds'!$H$2, IF(D16<35%,'Classification thresholds'!$I$2,IF(D16>34%,'Classification thresholds'!$J$2,"")))))),""))) -> Phase 5
A17: Helmand | B17: 0.05 | E17: =IF(B17<>"", (IF(B17<5%,'Classification thresholds'!$F$2, IF(B17<10%,'Classification thresholds'!$G$2, IF(B17<15%,'Classification thresholds'!$H$2,IF(B17<30%,'Classification thresholds'!$I$2,IF(B17>29%,'Classification thresholds'!$J$2,"")))))), IF(C17<>"",(IF(C17<5%,"Provide justification for value", IF(C17<10%,"Provide justification for value", IF(C17<15%,"Provide justification for value", IF(C17<30%,"Provide justification for value",""))))), IF(D17<>"",(IF(D17<12.5%,'Classification thresholds'!$F$2, IF(D17<20%,'Classification thresholds'!$G$2, IF(D17<25%,'Classification thresholds'!$H$2, IF(D17<35%,'Classification thresholds'!$I$2,IF(D17>34%,'Classification thresholds'!$J$2,"")))))),""))) -> Phase 2
A18: Hirat | B18: 0.05 | E18: =IF(B18<>"", (IF(B18<5%,'Classification thresholds'!$F$2, IF(B18<10%,'Classification thresholds'!$G$2, IF(B18<15%,'Classification thresholds'!$H$2,IF(B18<30%,'Classification thresholds'!$I$2,IF(B18>29%,'Classification thresholds'!$J$2,"")))))), IF(C18<>"",(IF(C18<5%,"Provide justification for value", IF(C18<10%,"Provide justification for value", IF(C18<15%,"Provide justification for value", IF(C18<30%,"Provide justification for value",""))))), IF(D18<>"",(IF(D18<12.5%,'Classification thresholds'!$F$2, IF(D18<20%,'Classification thresholds'!$G$2, IF(D18<25%,'Classification thresholds'!$H$2, IF(D18<35%,'Classification thresholds'!$I$2,IF(D18>34%,'Classification thresholds'!$J$2,"")))))),""))) -> Phase 2
A19: Jawzjan | B19: 0.05 | E19: =IF(B19<>"", (IF(B19<5%,'Classification thresholds'!$F$2, IF(B19<10%,'Classification thresholds'!$G$2, IF(B19<15%,'Classification thresholds'!$H$2,IF(B19<30%,'Classification thresholds'!$I$2,IF(B19>29%,'Classification thresholds'!$J$2,"")))))), IF(C19<>"",(IF(C19<5%,"Provide justification for value", IF(C19<10%,"Provide justification for value", IF(C19<15%,"Provide justification for value", IF(C19<30%,"Provide justification for value",""))))), IF(D19<>"",(IF(D19<12.5%,'Classification thresholds'!$F$2, IF(D19<20%,'Classification thresholds'!$G$2, IF(D19<25%,'Classification thresholds'!$H$2, IF(D19<35%,'Classification thresholds'!$I$2,IF(D19>34%,'Classification thresholds'!$J$2,"")))))),""))) -> Phase 2
A20: Kabul | B20: 0.2 | E20: =IF(B20<>"", (IF(B20<5%,'Classification thresholds'!$F$2, IF(B20<10%,'Classification thresholds'!$G$2, IF(B20<15%,'Classification thresholds'!$H$2,IF(B20<30%,'Classification thresholds'!$I$2,IF(B20>29%,'Classification thresholds'!$J$2,"")))))), IF(C20<>"",(IF(C20<5%,"Provide justification for value", IF(C20<10%,"Provide justification for value", IF(C20<15%,"Provide justification for value", IF(C20<30%,"Provide justification for value",""))))), IF(D20<>"",(IF(D20<12.5%,'Classification thresholds'!$F$2, IF(D20<20%,'Classification thresholds'!$G$2, IF(D20<25%,'Classification thresholds'!$H$2, IF(D20<35%,'Classification thresholds'!$I$2,IF(D20>34%,'Classification thresholds'!$J$2,"")))))),""))) -> Phase 4
A21: Kandahar | B21: 0.05 | E21: =IF(B21<>"", (IF(B21<5%,'Classification thresholds'!$F$2, IF(B21<10%,'Classification thresholds'!$G$2, IF(B21<15%,'Classification thresholds'!$H$2,IF(B21<30%,'Classification thresholds'!$I$2,IF(B21>29%,'Classification thresholds'!$J$2,"")))))), IF(C21<>"",(IF(C21<5%,"Provide justification for value", IF(C21<10%,"Provide justification for value", IF(C21<15%,"Provide justification for value", IF(C21<30%,"Provide justification for value",""))))), IF(D21<>"",(IF(D21<12.5%,'Classification thresholds'!$F$2, IF(D21<20%,'Classification thresholds'!$G$2, IF(D21<25%,'Classification thresholds'!$H$2, IF(D21<35%,'Classification thresholds'!$I$2,IF(D21>34%,'Classification thresholds'!$J$2,"")))))),""))) -> Phase 2
A22: Kapisa | B22: 0.05 | E22: =IF(B22<>"", (IF(B22<5%,'Classification thresholds'!$F$2, IF(B22<10%,'Classification thresholds'!$G$2, IF(B22<15%,'Classification thresholds'!$H$2,IF(B22<30%,'Classification thresholds'!$I$2,IF(B22>29%,'Classification thresholds'!$J$2,"")))))), IF(C22<>"",(IF(C22<5%,"Provide justification for value", IF(C22<10%,"Provide justification for value", IF(C22<15%,"Provide justification for value", IF(C22<30%,"Provide justification for value",""))))), IF(D22<>"",(IF(D22<12.5%,'Classification thresholds'!$F$2, IF(D22<20%,'Classification thresholds'!$G$2, IF(D22<25%,'Classification thresholds'!$H$2, IF(D22<35%,'Classification thresholds'!$I$2,IF(D22>34%,'Classification thresholds'!$J$2,"")))))),""))) -> Phase 2
A23: Khost | B23: 0.05 | E23: =IF(B23<>"", (IF(B23<5%,'Classification thresholds'!$F$2, IF(B23<10%,'Classification thresholds'!$G$2, IF(B23<15%,'Classification thresholds'!$H$2,IF(B23<30%,'Classification thresholds'!$I$2,IF(B23>29%,'Classification thresholds'!$J$2,"")))))), IF(C23<>"",(IF(C23<5%,"Provide justification for value", IF(C23<10%,"Provide justification for value", IF(C23<15%,"Provide justification for value", IF(C23<30%,"Provide justification for value",""))))), IF(D23<>"",(IF(D23<12.5%,'Classification thresholds'!$F$2, IF(D23<20%,'Classification thresholds'!$G$2, IF(D23<25%,'Classification thresholds'!$H$2, IF(D23<35%,'Classification thresholds'!$I$2,IF(D23>34%,'Classification thresholds'!$J$2,"")))))),""))) -> Phase 2
